{"text_format":"1","workbook":"xlsx","n_sheets":2,"sheets":["Treppenlagerliste","Parameter"],"not_rendered":{"charts":0,"images":27,"macros":0,"external_links":0,"defined_names":2,"comments":0,"pivot_tables":0},"unopened":[],"bounds":{"document_bytes":16777216,"sheet_cells":100000,"rows_first":2000,"rows_last":500,"rows_between":2000,"halvings":0,"cell_chars":16384,"cell_head_chars":4096},"cells_cut":0,"cells_raw":0,"read":"whole","date_system":"1900"}

{"sheet":"Treppenlagerliste","index":0,"n_rows":316,"n_cols":19,"rows_kept":316,"cut":false,"hidden":false,"merged":[[70,3,70,4],[72,3,72,4],[75,3,75,4],[260,7,260,18],[3,13,3,19],[248,7,248,18],[251,14,251,15],[251,16,251,18],[252,14,252,15],[252,16,252,18],[254,7,254,18],[257,14,257,15],[257,16,257,18],[258,14,258,15],[258,16,258,18],[236,7,236,18],[239,14,239,15],[239,16,239,18],[240,14,240,15],[240,16,240,18],[242,7,242,18],[245,14,245,15],[245,16,245,18],[246,14,246,15],[246,16,246,18],[227,5,227,12],[227,14,227,15],[227,16,227,18],[228,14,228,15],[228,16,228,18],[230,7,230,18],[233,14,233,15],[233,16,233,18],[234,14,234,15],[234,16,234,18],[214,14,214,15],[214,16,214,18],[215,14,215,15],[215,16,215,18],[216,14,216,15],[216,16,216,18],[217,7,217,18],[220,3,224,4],[220,14,220,15],[220,16,220,18],[221,7,221,8],[221,10,221,11],[221,14,221,15],[221,16,221,18],[222,7,222,8],[222,10,222,11],[222,14,222,15],[222,16,222,18],[223,7,223,8],[223,10,223,11],[223,14,223,15],[223,16,223,18],[224,7,224,18],[204,7,204,18],[207,14,207,15],[207,16,207,18],[208,7,208,8],[208,10,208,11],[208,14,208,15],[208,16,208,18],[210,7,210,18],[213,14,213,15],[213,16,213,18],[195,14,195,15],[195,16,197,18],[196,14,196,15],[197,14,197,15],[198,7,198,18],[201,14,201,15],[201,16,201,18],[202,7,202,8],[202,10,202,11],[202,14,202,15],[202,16,202,18],[187,14,187,15],[187,16,190,18],[188,14,188,15],[189,14,189,15],[190,14,190,15],[191,7,191,18],[193,14,193,18],[194,14,194,15],[194,16,194,18],[179,14,179,15],[179,16,182,18],[180,14,180,15],[181,14,181,15],[182,14,182,15],[183,7,183,18],[185,14,185,18],[186,14,186,15],[186,16,186,18],[171,14,171,15],[171,16,174,18],[172,14,172,15],[173,14,173,15],[174,14,174,15],[175,7,175,18],[177,14,177,18],[178,14,178,15],[178,16,178,18],[162,16,162,18],[163,16,163,18],[164,16,164,18],[165,16,165,18],[166,3,167,4],[166,7,166,18],[169,14,169,18],[170,14,170,15],[170,16,170,18],[149,3,150,4],[149,7,149,18],[152,14,152,18],[153,3,159,4],[153,14,153,15],[153,16,153,18],[154,14,154,15],[154,16,158,18],[155,14,155,15],[156,12,157,12],[156,13,157,13],[156,14,157,15],[158,14,158,15],[159,7,159,18],[144,14,144,15],[144,16,144,18],[145,14,145,15],[145,16,145,18],[146,14,146,15],[146,16,146,18],[147,14,147,15],[147,16,147,18],[148,14,148,15],[148,16,148,18],[134,3,141,4],[134,14,134,15],[134,16,140,18],[135,14,135,15],[136,12,137,12],[136,13,137,13],[136,14,137,15],[138,14,138,15],[139,14,139,15],[140,14,140,15],[141,7,141,18],[125,16,125,18],[126,16,126,18],[127,16,127,18],[128,16,128,18],[129,3,130,4],[129,7,129,18],[132,14,132,18],[133,14,133,15],[133,16,133,18],[115,14,115,18],[116,14,116,15],[116,16,116,18],[117,3,122,4],[117,14,117,15],[117,16,121,18],[118,14,118,15],[119,14,120,15],[121,14,121,15],[122,7,122,18],[108,14,108,15],[108,16,108,18],[109,14,109,15],[109,16,109,18],[110,14,110,15],[110,16,110,18],[111,14,111,15],[111,16,111,18],[112,3,113,4],[112,7,112,18],[98,3,105,4],[98,14,98,15],[98,16,104,18],[99,14,99,15],[100,12,101,12],[100,13,101,13],[100,14,101,15],[102,14,102,15],[103,14,103,15],[104,14,104,15],[105,7,105,18],[92,3,94,4],[92,14,92,15],[92,16,92,18],[93,14,93,15],[93,16,93,18],[94,7,94,18],[96,14,96,18],[97,14,97,15],[97,16,97,18],[85,3,89,4],[85,14,85,15],[85,16,85,18],[86,14,86,15],[86,16,86,18],[87,14,87,15],[87,16,87,18],[88,14,88,15],[88,16,88,18],[89,7,89,18],[80,5,80,8],[80,9,80,15],[80,16,80,18],[81,3,81,4],[81,5,81,8],[81,9,81,15],[81,16,81,18],[82,3,82,4],[82,5,82,8],[82,9,82,15],[82,16,82,18],[59,14,59,15],[61,14,61,15],[36,14,36,15],[24,16,24,17],[76,16,76,18],[77,3,77,4],[77,5,77,8],[77,9,77,15],[77,16,77,18],[37,14,37,15],[34,16,34,17],[35,16,35,17],[36,16,36,17],[37,16,37,17],[38,16,38,17],[39,16,39,17],[40,16,40,17],[41,16,41,17],[42,16,42,17],[54,16,54,17],[55,16,55,17],[56,16,56,17],[57,16,57,17],[58,16,58,17],[67,1,68,1],[25,6,31,6],[25,7,31,7],[25,4,31,4],[25,5,31,5],[25,3,31,3],[4,1,30,1],[0,1,1,1],[28,20,57,28],[62,14,62,15],[63,14,63,15],[64,14,64,15],[65,14,65,15],[66,14,66,15],[50,14,50,15],[51,14,51,15],[52,14,52,15],[53,14,53,15],[54,14,54,15],[55,14,55,15],[58,14,58,15],[60,14,60,15],[41,14,41,15],[42,14,42,15],[10,3,10,4],[24,14,24,15],[34,14,34,15],[35,14,35,15],[56,14,56,15],[57,14,57,15],[46,14,46,15],[47,14,47,15],[48,14,48,15],[49,14,49,15],[38,14,38,15],[39,14,39,15],[40,14,40,15],[11,3,11,4],[12,3,12,4],[13,3,13,4],[10,5,10,7],[10,8,10,9],[25,8,31,8],[29,11,31,11],[29,12,31,12],[43,14,43,15],[44,14,44,15],[45,14,45,15],[1,5,1,7],[3,3,3,4],[4,3,4,4],[5,3,5,4],[6,3,6,4],[7,3,7,4],[10,14,10,17],[9,14,9,17],[11,5,11,9],[7,5,7,9],[8,5,8,9],[9,5,9,9],[8,13,8,19],[7,13,7,19],[7,10,7,12],[8,10,8,12],[4,5,4,19],[1,8,1,14],[2,8,2,14],[5,5,5,19],[6,5,6,19],[1,3,2,4],[3,5,3,12],[11,13,11,19],[2,1,3,1],[25,18,31,19],[25,16,31,17],[32,16,32,17],[33,16,33,17],[32,18,32,19],[33,18,33,19],[24,2,30,2],[12,5,12,9],[13,5,13,9],[13,13,13,19],[12,13,12,19],[11,10,11,12],[12,10,12,12],[13,10,13,12],[29,9,31,9],[29,10,31,10],[25,9,28,12],[25,13,31,13],[25,14,31,15],[32,14,32,15],[33,14,33,15],[8,3,8,4],[9,3,9,4],[59,16,59,17],[60,16,60,17],[43,16,43,17],[44,16,44,17],[45,16,45,17],[46,16,46,17],[47,16,47,17],[48,16,48,17],[49,16,49,17],[50,16,50,17],[51,16,51,17],[45,18,45,19],[46,18,46,19],[47,18,47,19],[48,18,48,19],[49,18,49,19],[50,18,50,19],[51,18,51,19],[52,16,52,17],[53,16,53,17],[36,18,36,19],[37,18,37,19],[38,18,38,19],[39,18,39,19],[40,18,40,19],[41,18,41,19],[42,18,42,19],[43,18,43,19],[44,18,44,19],[61,18,61,19],[62,18,62,19],[63,18,63,19],[64,18,64,19],[65,18,65,19],[66,16,66,17],[16,14,16,15],[52,18,52,19],[53,18,53,19],[54,18,54,19],[55,18,55,19],[56,18,56,19],[57,18,57,19],[58,18,58,19],[59,18,59,19],[60,18,60,19],[61,16,61,17],[62,16,62,17],[63,16,63,17],[64,16,64,17],[65,16,65,17],[66,18,66,19],[34,18,34,19],[35,18,35,19],[71,0,71,1],[263,14,263,15],[271,2,277,2],[271,14,271,15],[271,16,271,17],[272,3,278,3],[272,4,278,4],[272,5,278,5],[272,6,278,6],[272,7,278,7],[272,8,278,8],[272,9,275,12],[272,13,278,13],[272,14,278,15],[272,16,278,17],[78,3,78,4],[78,5,78,8],[78,9,78,15],[78,16,78,18],[79,3,79,4],[79,5,79,8],[79,9,79,15],[79,16,79,18],[80,3,80,4],[272,18,278,19],[276,9,278,9],[276,10,278,10],[276,11,278,11],[276,12,278,12],[279,14,279,15],[279,16,279,17],[279,18,279,19],[280,14,280,15],[280,16,280,17],[280,18,280,19],[281,14,281,15],[281,16,281,17],[281,18,281,19],[282,14,282,15],[282,16,282,17],[282,18,282,19],[283,14,283,15],[283,16,283,17],[283,18,283,19],[284,14,284,15],[284,16,284,17],[284,18,284,19],[285,14,285,15],[285,16,285,17],[285,18,285,19],[286,14,286,15],[286,16,286,17],[286,18,286,19],[287,14,287,15],[287,16,287,17],[287,18,287,19],[288,14,288,15],[288,16,288,17],[288,18,288,19],[289,14,289,15],[289,16,289,17],[289,18,289,19],[290,14,290,15],[290,16,290,17],[290,18,290,19],[291,14,291,15],[291,16,291,17],[291,18,291,19],[292,14,292,15],[292,16,292,17],[292,18,292,19],[293,14,293,15],[293,16,293,17],[293,18,293,19],[294,14,294,15],[294,16,294,17],[294,18,294,19],[295,14,295,15],[295,16,295,17],[295,18,295,19],[296,14,296,15],[296,16,296,17],[296,18,296,19],[297,14,297,15],[297,16,297,17],[297,18,297,19],[298,14,298,15],[298,16,298,17],[298,18,298,19],[299,14,299,15],[299,16,299,17],[299,18,299,19],[300,14,300,15],[300,16,300,17],[300,18,300,19],[301,14,301,15],[301,16,301,17],[301,18,301,19],[302,14,302,15],[302,16,302,17],[302,18,302,19],[303,14,303,15],[303,16,303,17],[303,18,303,19],[304,14,304,15],[304,16,304,17],[304,18,304,19],[305,14,305,15],[305,16,305,17],[305,18,305,19],[306,14,306,15],[306,16,306,17],[306,18,306,19],[307,14,307,15],[307,16,307,17],[307,18,307,19],[308,14,308,15],[308,16,308,17],[308,18,308,19],[309,14,309,15],[309,16,309,17],[309,18,309,19],[310,14,310,15],[310,16,310,17],[310,18,310,19],[314,1,315,1],[311,14,311,15],[311,16,311,17],[311,18,311,19],[312,14,312,15],[312,16,312,17],[312,18,312,19],[313,14,313,15],[313,16,313,17],[313,18,313,19]]}
[null,"Informationen zum Umgang mit diesem Dokument"]
[null,null,null,"Bestellung\nBestellliste gültig ab: 15.05.2023",null,"durch Firma "]
[null,"WICHTIG - Bitte verschieben Sie keine Zellen und vermeiden Sie sowohl spaltenübergreifendes Kopieren/Einfügen als auch Ausschneiden/Einfügen.",null,null,null,null,null,null,{"$f":"\"max. \"&Parameter!C15&\" Zeichen für Firmenname, aktuell: \"&LEN(I2)&IF(LEN(I2)>Parameter!C15, \" | Bitte kürzen.\", \"\")","v":"max. 20 Zeichen für Firmenname, aktuell: 0"}]
[null,null,null,"Bauobjekt",null,null,null,null,null,null,null,null,null,{"$f":"\"max. \"&Parameter!C14&\" Zeichen für Bauobjekt, aktuell: \"&LEN(F4)&IF(LEN(F4)>Parameter!C14, \" | Bitte kürzen.\", \"\")","v":"max. 35 Zeichen für Bauobjekt, aktuell: 0"}]
[null,null,null,"Lieferadresse   der Baustelle"]
[null,null,null,"Lieferadresse   vom Werk "]
[null,null,null,"Bauunternehmer"]
[null,null,null,"Polier",null,null,null,null,null,null,"Mobil-Nr. Polier"]
[null,null,null,"Besteller",null,null,null,null,null,null,"Tel.-Nr. Besteller"]
[null,null,null,"Ingenieur"]
[null,null,null,"Anlieferstelle/Lieferdatum",null,"Bitte auswählen!"]
[null,null,null,"Ausgefüllt durch",null,null,null,null,null,null,"Datum",null,null,{"$f":"TODAY()","v":"2023-10-26"}]
[null,null,null,"Plan.- Materialliste-Nr. ",null,null,null,null,null,null,"HBT-ISOL Objekt Nr.",null,null,"wird von HBT ausgefüllt"]
[null,null,null,"Kommission.- Auftrag Nr.  ",null,null,null,null,null,null,"Auftrags-Nr.",null,null,"wird von HBT ausgefüllt"]
[]
[null,null,null,"ISOTREPP"]
[null,null,null,null,"F-Form",null,"L-Form",null,null,null,"Z-Form",null,null,null,"U-Form"]
[]
[]
[]
[]
[]
[]
[]
[null,null,"Beschreibungslänge"]
[null,null,null,"#",{"$f":"\"Beschreibung (Freitext)                                       (max. \"&Parameter!$C$2&\" Zeichen)\"","v":"Beschreibung (Freitext)                                       (max. 25 Zeichen)"}," \nAntritt \nAustritt\nPodest \nWand","Lagertyp                "," Form (F/L/Z/U)","Trittschallminderung ΔL*W  (28 / 32 dB)","Abmessungen mm",null,null,null," Bestell-Menge \n(Stk.)","Falls A > 600mm                         4-Punkt-Lager                        ",null,"Pläne mitsenden",null,"Wegfall Anschlagspunkte"]
[]
[]
[]
[null,null,null,null,null,null,null,null,null,"A","B","C","Länge"]
[]
[null,null,null,null,null,null,null,null,null,null,"Mass b","Mass c","Mass l"]
[null,{"$f":"IF(LEN(D33)=0,\"\", IF(LEN(E33)>Parameter!$C$2,\"Beschreibung zu lang, bitte die Beschreibung kürzen\",IF(NOT(COUNTIF(Parameter!$C$3:$G$3, F33)),\"Beschreibung (optional) eingeben und Antritt/Austritt/Podest/Wand/Leer auswählen\",IF(ISBLANK(G33),\"Lagertyp auswählen\", IF(NOT(COUNTIF(Parameter!$C$4:$M$4, G33)),\"Bitte geben Sie einen korrekten Lagertyp ein \",IF(ISBLANK(H33),\"Form auswählen\", IF(NOT(COUNTIF(Parameter!$C$5:$F$5, H33)),\"Bitte geben Sie eine korrekte Form ein \",IF(ISBLANK(I33),\"Trittschallminderung auswählen\",IF(NOT(COUNTIF(Parameter!$C$6:$D$6, I33)),\"Bitte geben Sie eine korrekte Trittschallminderung ein\",  IF(AND(COUNTIF(Parameter!$L$4:$M$4,G33),I33=Parameter!C6), \"Achtung: TL-14000 und TL-16000 gibt es nur mit 32dB. Bitte korrigieren!\", IF(AND(H33=\"F\", ISBLANK(J33)),\"Mass A eingeben in mm\", IF(AND(H33=\"L\", OR(ISBLANK(J33), ISBLANK(K33))),\"Mass A und B eingeben in mm\", IF(AND(OR(H33=\"Z\", H33=\"U\"), OR(ISBLANK(J33), ISBLANK(K33), ISBLANK(L33))),\"Mass A, B und C eingeben in mm\", IF(AND(H33=\"F\", OR(NOT(ISBLANK(K33)),NOT(ISBLANK(L33)))),\"Nur A eingeben bei F Form, bitte Abmessungen B und C löschen\", IF(AND(H33=\"L\", NOT(ISBLANK(L33))),\"Nur A und B eingeben bei L Form, bitte Abmessung C löschen\", IF(OR(AND(OR(Parameter!$D$7>J33, J33>Parameter!$F$7), OR(H33=\"F\", H33=\"U\")), AND(OR(Parameter!$H$7>J33, J33>Parameter!$J$7), OR(H33=\"L\", H33=\"Z\"))),\"Bitte korrigiere die Abmessung A\", IF(AND(OR(Parameter!$D$8>K33, K33>Parameter!$F$8), OR(H33=\"L\", H33=\"Z\", H33=\"U\")),\"Bitte korrigiere die Abmessung B\", IF(AND(OR(Parameter!$D$9>L33, L33>Parameter!$F$9), OR(H33=\"Z\", H33=\"U\")),\"Bitte korrigiere die Abmessung C\", IF(ISBLANK(M33),\"Länge eingeben in mm\", IF(OR(Parameter!$D$10>M33, M33>Parameter!$F$10),\"Bitte korrigiere die Länge\", IF(ISBLANK(N33),\"Menge eingeben\", IF(NOT(ISNUMBER(N33)),\"Bitte korrigiere die Menge\", \"OK\"))))))))))))))))))))))","v":"Beschreibung (optional) eingeben und Antritt/Austritt/Podest/Wand/Leer auswählen"},{"$f":"LEN(E33)","v":0},1,null,null,null,null,null,null,null,null,null,null,{"$f":"IF(NOT(D33=\"\"), IF(J33 > 600, \"Ja\", \"Nein\"),\"\")","v":"Nein"},null,{"$f":"IF(NOT(D33=\"\"), IF(O33=\"Ja\", \"X\", \"\"), \"\")","v":""},null,{"$f":"IF(NOT(D33=\"\"), IF(AND(K33<53,NOT(ISBLANK(K33)), OR(H33=\"L\", H33=\"Z\")), \"X\", \"\"), \"\")","v":""}]
[null,{"$f":"IF(LEN(D34)=0,IF(NOT(B33=\"OK\"),IF(SUMPRODUCT(--(D33:N33<>\"\"))=0,IF(AND(NOT(SUMPRODUCT(--(E34:N34<>\"\"))=0),D33=\"\"),\"Bitte keine Leerzeilen\",\"\"),IF(NOT(SUMPRODUCT(--(E34:N34<>\"\"))=0),\"Bitte korrigiere zuerst die vorherige Zeile\",\"\")),\"\"),IF(LEN(E34)>Parameter!$C$2,\"Beschreibung zu lang, bitte die Beschreibung kürzen\",IF(NOT(COUNTIF(Parameter!$C$3:$G$3, F34)),\"Beschreibung (optional) eingeben und Antritt/Austritt/Podest/Wand/Leer auswählen\",IF(ISBLANK(G34),\"Lagertyp auswählen\", IF(NOT(COUNTIF(Parameter!$C$4:$M$4, G34)),\"Bitte geben Sie einen korrekten Lagertyp ein \",IF(ISBLANK(H34),\"Form auswählen\", IF(NOT(COUNTIF(Parameter!$C$5:$F$5, H34)),\"Bitte geben Sie eine korrekte Form ein \",IF(ISBLANK(I34),\"Trittschallminderung auswählen\",IF(NOT(COUNTIF(Parameter!$C$6:$D$6, I34)),\"Bitte geben Sie eine korrekte Trittschallminderung ein\",  IF(AND(COUNTIF(Parameter!$L$4:$M$4,G33),I33=Parameter!$C$6), \"Achtung: TL-14000 und TL-16000 gibt es nur mit 32dB. Bitte korrigieren!\", IF(AND(H34=\"F\", ISBLANK(J34)),\"Mass A eingeben in mm\", IF(AND(H34=\"L\", OR(ISBLANK(J34), ISBLANK(K34))),\"Mass A und B eingeben in mm\", IF(AND(OR(H34=\"Z\", H34=\"U\"), OR(ISBLANK(J34), ISBLANK(K34), ISBLANK(L34))),\"Mass A, B und C eingeben in mm\", IF(AND(H34=\"F\", OR(NOT(ISBLANK(K34)),NOT(ISBLANK(L34)))),\"Nur A eingeben bei F Form, bitte Abmessungen B und C löschen\", IF(AND(H34=\"L\", NOT(ISBLANK(L34))),\"Nur A und B eingeben bei L Form, bitte Abmessung C löschen\", IF(OR(AND(OR(Parameter!$D$7>J34, J34>Parameter!$F$7), OR(H34=\"F\", H34=\"U\")), AND(OR(Parameter!$H$7>J34, J34>Parameter!$J$7), OR(H34=\"L\", H34=\"Z\"))),\"Bitte korrigiere die Abmessung A\", IF(AND(OR(Parameter!$D$8>K34, K34>Parameter!$F$8), OR(H34=\"L\", H34=\"Z\", H34=\"U\")),\"Bitte korrigiere die Abmessung B\", IF(AND(OR(Parameter!$D$9>L34, L34>Parameter!$F$9), OR(H34=\"Z\", H34=\"U\")),\"Bitte korrigiere die Abmessung C\", IF(ISBLANK(M34),\"Länge eingeben in mm\", IF(OR(Parameter!$D$10>M34, M34>Parameter!$F$10),\"Bitte korrigiere die Länge\", IF(ISBLANK(N34),\"Menge eingeben\", IF(NOT(ISNUMBER(N34)),\"Bitte korrigiere die Menge\", \"OK\"))))))))))))))))))))))","v":""},{"$f":"LEN(E34)","v":0},{"$f":"IF(OR(ISBLANK(N33), NOT(B33=\"OK\")),\"\",D33+1)","v":""},null,null,null,null,null,null,null,null,null,null,"",null,"",null,{"$f":"IF(NOT(D34=\"\"), IF(AND(K34<53,NOT(ISBLANK(K34)), OR(H34=\"L\", H34=\"Z\")), \"X\", \"\"), \"\")","v":""}]
[null,{"$f":"IF(LEN(D35)=0,IF(NOT(B34=\"OK\"),IF(SUMPRODUCT(--(D34:N34<>\"\"))=0,IF(AND(NOT(SUMPRODUCT(--(E35:N35<>\"\"))=0),D34=\"\"),\"Bitte keine Leerzeilen\",\"\"),IF(NOT(SUMPRODUCT(--(E35:N35<>\"\"))=0),\"Bitte korrigiere zuerst die vorherige Zeile\",\"\")),\"\"),IF(LEN(E35)>Parameter!$C$2,\"Beschreibung zu lang, bitte die Beschreibung kürzen\",IF(NOT(COUNTIF(Parameter!$C$3:$G$3, F35)),\"Beschreibung (optional) eingeben und Antritt/Austritt/Podest/Wand/Leer auswählen\",IF(ISBLANK(G35),\"Lagertyp auswählen\", IF(NOT(COUNTIF(Parameter!$C$4:$M$4, G35)),\"Bitte geben Sie einen korrekten Lagertyp ein \",IF(ISBLANK(H35),\"Form auswählen\", IF(NOT(COUNTIF(Parameter!$C$5:$F$5, H35)),\"Bitte geben Sie eine korrekte Form ein \",IF(ISBLANK(I35),\"Trittschallminderung auswählen\",IF(NOT(COUNTIF(Parameter!$C$6:$D$6, I35)),\"Bitte geben Sie eine korrekte Trittschallminderung ein\",  IF(AND(COUNTIF(Parameter!$L$4:$M$4,G34),I34=Parameter!$C$6), \"Achtung: TL-14000 und TL-16000 gibt es nur mit 32dB. Bitte korrigieren!\", IF(AND(H35=\"F\", ISBLANK(J35)),\"Mass A eingeben in mm\", IF(AND(H35=\"L\", OR(ISBLANK(J35), ISBLANK(K35))),\"Mass A und B eingeben in mm\", IF(AND(OR(H35=\"Z\", H35=\"U\"), OR(ISBLANK(J35), ISBLANK(K35), ISBLANK(L35))),\"Mass A, B und C eingeben in mm\", IF(AND(H35=\"F\", OR(NOT(ISBLANK(K35)),NOT(ISBLANK(L35)))),\"Nur A eingeben bei F Form, bitte Abmessungen B und C löschen\", IF(AND(H35=\"L\", NOT(ISBLANK(L35))),\"Nur A und B eingeben bei L Form, bitte Abmessung C löschen\", IF(OR(AND(OR(Parameter!$D$7>J35, J35>Parameter!$F$7), OR(H35=\"F\", H35=\"U\")), AND(OR(Parameter!$H$7>J35, J35>Parameter!$J$7), OR(H35=\"L\", H35=\"Z\"))),\"Bitte korrigiere die Abmessung A\", IF(AND(OR(Parameter!$D$8>K35, K35>Parameter!$F$8), OR(H35=\"L\", H35=\"Z\", H35=\"U\")),\"Bitte korrigiere die Abmessung B\", IF(AND(OR(Parameter!$D$9>L35, L35>Parameter!$F$9), OR(H35=\"Z\", H35=\"U\")),\"Bitte korrigiere die Abmessung C\", IF(ISBLANK(M35),\"Länge eingeben in mm\", IF(OR(Parameter!$D$10>M35, M35>Parameter!$F$10),\"Bitte korrigiere die Länge\", IF(ISBLANK(N35),\"Menge eingeben\", IF(NOT(ISNUMBER(N35)),\"Bitte korrigiere die Menge\", \"OK\"))))))))))))))))))))))","v":""},{"$f":"LEN(E35)","v":0},{"$f":"IF(OR(ISBLANK(N34), NOT(B34=\"OK\")),\"\",D34+1)","v":""},null,null,null,null,null,null,null,null,null,null,{"$f":"IF(NOT(D35=\"\"), IF(J35 > 600, \"Ja\", \"Nein\"),\"\")","v":""},null,{"$f":"IF(NOT(D35=\"\"), IF(O35=\"Ja\", \"X\", \"\"), \"\")","v":""},null,""]
[null,{"$f":"IF(LEN(D36)=0,IF(NOT(B35=\"OK\"),IF(SUMPRODUCT(--(D35:N35<>\"\"))=0,IF(AND(NOT(SUMPRODUCT(--(E36:N36<>\"\"))=0),D35=\"\"),\"Bitte keine Leerzeilen\",\"\"),IF(NOT(SUMPRODUCT(--(E36:N36<>\"\"))=0),\"Bitte korrigiere zuerst die vorherige Zeile\",\"\")),\"\"),IF(LEN(E36)>Parameter!$C$2,\"Beschreibung zu lang, bitte die Beschreibung kürzen\",IF(NOT(COUNTIF(Parameter!$C$3:$G$3, F36)),\"Beschreibung (optional) eingeben und Antritt/Austritt/Podest/Wand/Leer auswählen\",IF(ISBLANK(G36),\"Lagertyp auswählen\", IF(NOT(COUNTIF(Parameter!$C$4:$M$4, G36)),\"Bitte geben Sie einen korrekten Lagertyp ein \",IF(ISBLANK(H36),\"Form auswählen\", IF(NOT(COUNTIF(Parameter!$C$5:$F$5, H36)),\"Bitte geben Sie eine korrekte Form ein \",IF(ISBLANK(I36),\"Trittschallminderung auswählen\",IF(NOT(COUNTIF(Parameter!$C$6:$D$6, I36)),\"Bitte geben Sie eine korrekte Trittschallminderung ein\",  IF(AND(COUNTIF(Parameter!$L$4:$M$4,G35),I35=Parameter!$C$6), \"Achtung: TL-14000 und TL-16000 gibt es nur mit 32dB. Bitte korrigieren!\", IF(AND(H36=\"F\", ISBLANK(J36)),\"Mass A eingeben in mm\", IF(AND(H36=\"L\", OR(ISBLANK(J36), ISBLANK(K36))),\"Mass A und B eingeben in mm\", IF(AND(OR(H36=\"Z\", H36=\"U\"), OR(ISBLANK(J36), ISBLANK(K36), ISBLANK(L36))),\"Mass A, B und C eingeben in mm\", IF(AND(H36=\"F\", OR(NOT(ISBLANK(K36)),NOT(ISBLANK(L36)))),\"Nur A eingeben bei F Form, bitte Abmessungen B und C löschen\", IF(AND(H36=\"L\", NOT(ISBLANK(L36))),\"Nur A und B eingeben bei L Form, bitte Abmessung C löschen\", IF(OR(AND(OR(Parameter!$D$7>J36, J36>Parameter!$F$7), OR(H36=\"F\", H36=\"U\")), AND(OR(Parameter!$H$7>J36, J36>Parameter!$J$7), OR(H36=\"L\", H36=\"Z\"))),\"Bitte korrigiere die Abmessung A\", IF(AND(OR(Parameter!$D$8>K36, K36>Parameter!$F$8), OR(H36=\"L\", H36=\"Z\", H36=\"U\")),\"Bitte korrigiere die Abmessung B\", IF(AND(OR(Parameter!$D$9>L36, L36>Parameter!$F$9), OR(H36=\"Z\", H36=\"U\")),\"Bitte korrigiere die Abmessung C\", IF(ISBLANK(M36),\"Länge eingeben in mm\", IF(OR(Parameter!$D$10>M36, M36>Parameter!$F$10),\"Bitte korrigiere die Länge\", IF(ISBLANK(N36),\"Menge eingeben\", IF(NOT(ISNUMBER(N36)),\"Bitte korrigiere die Menge\", \"OK\"))))))))))))))))))))))","v":""},{"$f":"LEN(E36)","v":0},"",null,null,null,null,null,null,null,null,null,null,"",null,"",null,""]
[null,{"$f":"IF(LEN(D37)=0,IF(NOT(B36=\"OK\"),IF(SUMPRODUCT(--(D36:N36<>\"\"))=0,IF(AND(NOT(SUMPRODUCT(--(E37:N37<>\"\"))=0),D36=\"\"),\"Bitte keine Leerzeilen\",\"\"),IF(NOT(SUMPRODUCT(--(E37:N37<>\"\"))=0),\"Bitte korrigiere zuerst die vorherige Zeile\",\"\")),\"\"),IF(LEN(E37)>Parameter!$C$2,\"Beschreibung zu lang, bitte die Beschreibung kürzen\",IF(NOT(COUNTIF(Parameter!$C$3:$G$3, F37)),\"Beschreibung (optional) eingeben und Antritt/Austritt/Podest/Wand/Leer auswählen\",IF(ISBLANK(G37),\"Lagertyp auswählen\", IF(NOT(COUNTIF(Parameter!$C$4:$M$4, G37)),\"Bitte geben Sie einen korrekten Lagertyp ein \",IF(ISBLANK(H37),\"Form auswählen\", IF(NOT(COUNTIF(Parameter!$C$5:$F$5, H37)),\"Bitte geben Sie eine korrekte Form ein \",IF(ISBLANK(I37),\"Trittschallminderung auswählen\",IF(NOT(COUNTIF(Parameter!$C$6:$D$6, I37)),\"Bitte geben Sie eine korrekte Trittschallminderung ein\",  IF(AND(COUNTIF(Parameter!$L$4:$M$4,G36),I36=Parameter!$C$6), \"Achtung: TL-14000 und TL-16000 gibt es nur mit 32dB. Bitte korrigieren!\", IF(AND(H37=\"F\", ISBLANK(J37)),\"Mass A eingeben in mm\", IF(AND(H37=\"L\", OR(ISBLANK(J37), ISBLANK(K37))),\"Mass A und B eingeben in mm\", IF(AND(OR(H37=\"Z\", H37=\"U\"), OR(ISBLANK(J37), ISBLANK(K37), ISBLANK(L37))),\"Mass A, B und C eingeben in mm\", IF(AND(H37=\"F\", OR(NOT(ISBLANK(K37)),NOT(ISBLANK(L37)))),\"Nur A eingeben bei F Form, bitte Abmessungen B und C löschen\", IF(AND(H37=\"L\", NOT(ISBLANK(L37))),\"Nur A und B eingeben bei L Form, bitte Abmessung C löschen\", IF(OR(AND(OR(Parameter!$D$7>J37, J37>Parameter!$F$7), OR(H37=\"F\", H37=\"U\")), AND(OR(Parameter!$H$7>J37, J37>Parameter!$J$7), OR(H37=\"L\", H37=\"Z\"))),\"Bitte korrigiere die Abmessung A\", IF(AND(OR(Parameter!$D$8>K37, K37>Parameter!$F$8), OR(H37=\"L\", H37=\"Z\", H37=\"U\")),\"Bitte korrigiere die Abmessung B\", IF(AND(OR(Parameter!$D$9>L37, L37>Parameter!$F$9), OR(H37=\"Z\", H37=\"U\")),\"Bitte korrigiere die Abmessung C\", IF(ISBLANK(M37),\"Länge eingeben in mm\", IF(OR(Parameter!$D$10>M37, M37>Parameter!$F$10),\"Bitte korrigiere die Länge\", IF(ISBLANK(N37),\"Menge eingeben\", IF(NOT(ISNUMBER(N37)),\"Bitte korrigiere die Menge\", \"OK\"))))))))))))))))))))))","v":""},0,"",null,null,null,null,null,null,null,null,null,null,"",null,"",null,""]
[null,{"$f":"IF(LEN(D38)=0,IF(NOT(B37=\"OK\"),IF(SUMPRODUCT(--(D37:N37<>\"\"))=0,IF(AND(NOT(SUMPRODUCT(--(E38:N38<>\"\"))=0),D37=\"\"),\"Bitte keine Leerzeilen\",\"\"),IF(NOT(SUMPRODUCT(--(E38:N38<>\"\"))=0),\"Bitte korrigiere zuerst die vorherige Zeile\",\"\")),\"\"),IF(LEN(E38)>Parameter!$C$2,\"Beschreibung zu lang, bitte die Beschreibung kürzen\",IF(NOT(COUNTIF(Parameter!$C$3:$G$3, F38)),\"Beschreibung (optional) eingeben und Antritt/Austritt/Podest/Wand/Leer auswählen\",IF(ISBLANK(G38),\"Lagertyp auswählen\", IF(NOT(COUNTIF(Parameter!$C$4:$M$4, G38)),\"Bitte geben Sie einen korrekten Lagertyp ein \",IF(ISBLANK(H38),\"Form auswählen\", IF(NOT(COUNTIF(Parameter!$C$5:$F$5, H38)),\"Bitte geben Sie eine korrekte Form ein \",IF(ISBLANK(I38),\"Trittschallminderung auswählen\",IF(NOT(COUNTIF(Parameter!$C$6:$D$6, I38)),\"Bitte geben Sie eine korrekte Trittschallminderung ein\",  IF(AND(COUNTIF(Parameter!$L$4:$M$4,G37),I37=Parameter!$C$6), \"Achtung: TL-14000 und TL-16000 gibt es nur mit 32dB. Bitte korrigieren!\", IF(AND(H38=\"F\", ISBLANK(J38)),\"Mass A eingeben in mm\", IF(AND(H38=\"L\", OR(ISBLANK(J38), ISBLANK(K38))),\"Mass A und B eingeben in mm\", IF(AND(OR(H38=\"Z\", H38=\"U\"), OR(ISBLANK(J38), ISBLANK(K38), ISBLANK(L38))),\"Mass A, B und C eingeben in mm\", IF(AND(H38=\"F\", OR(NOT(ISBLANK(K38)),NOT(ISBLANK(L38)))),\"Nur A eingeben bei F Form, bitte Abmessungen B und C löschen\", IF(AND(H38=\"L\", NOT(ISBLANK(L38))),\"Nur A und B eingeben bei L Form, bitte Abmessung C löschen\", IF(OR(AND(OR(Parameter!$D$7>J38, J38>Parameter!$F$7), OR(H38=\"F\", H38=\"U\")), AND(OR(Parameter!$H$7>J38, J38>Parameter!$J$7), OR(H38=\"L\", H38=\"Z\"))),\"Bitte korrigiere die Abmessung A\", IF(AND(OR(Parameter!$D$8>K38, K38>Parameter!$F$8), OR(H38=\"L\", H38=\"Z\", H38=\"U\")),\"Bitte korrigiere die Abmessung B\", IF(AND(OR(Parameter!$D$9>L38, L38>Parameter!$F$9), OR(H38=\"Z\", H38=\"U\")),\"Bitte korrigiere die Abmessung C\", IF(ISBLANK(M38),\"Länge eingeben in mm\", IF(OR(Parameter!$D$10>M38, M38>Parameter!$F$10),\"Bitte korrigiere die Länge\", IF(ISBLANK(N38),\"Menge eingeben\", IF(NOT(ISNUMBER(N38)),\"Bitte korrigiere die Menge\", \"OK\"))))))))))))))))))))))","v":""},0,"",null,null,null,null,null,null,null,null,null,null,"",null,"",null,""]
[null,{"$f":"IF(LEN(D39)=0,IF(NOT(B38=\"OK\"),IF(SUMPRODUCT(--(D38:N38<>\"\"))=0,IF(AND(NOT(SUMPRODUCT(--(E39:N39<>\"\"))=0),D38=\"\"),\"Bitte keine Leerzeilen\",\"\"),IF(NOT(SUMPRODUCT(--(E39:N39<>\"\"))=0),\"Bitte korrigiere zuerst die vorherige Zeile\",\"\")),\"\"),IF(LEN(E39)>Parameter!$C$2,\"Beschreibung zu lang, bitte die Beschreibung kürzen\",IF(NOT(COUNTIF(Parameter!$C$3:$G$3, F39)),\"Beschreibung (optional) eingeben und Antritt/Austritt/Podest/Wand/Leer auswählen\",IF(ISBLANK(G39),\"Lagertyp auswählen\", IF(NOT(COUNTIF(Parameter!$C$4:$M$4, G39)),\"Bitte geben Sie einen korrekten Lagertyp ein \",IF(ISBLANK(H39),\"Form auswählen\", IF(NOT(COUNTIF(Parameter!$C$5:$F$5, H39)),\"Bitte geben Sie eine korrekte Form ein \",IF(ISBLANK(I39),\"Trittschallminderung auswählen\",IF(NOT(COUNTIF(Parameter!$C$6:$D$6, I39)),\"Bitte geben Sie eine korrekte Trittschallminderung ein\",  IF(AND(COUNTIF(Parameter!$L$4:$M$4,G38),I38=Parameter!$C$6), \"Achtung: TL-14000 und TL-16000 gibt es nur mit 32dB. Bitte korrigieren!\", IF(AND(H39=\"F\", ISBLANK(J39)),\"Mass A eingeben in mm\", IF(AND(H39=\"L\", OR(ISBLANK(J39), ISBLANK(K39))),\"Mass A und B eingeben in mm\", IF(AND(OR(H39=\"Z\", H39=\"U\"), OR(ISBLANK(J39), ISBLANK(K39), ISBLANK(L39))),\"Mass A, B und C eingeben in mm\", IF(AND(H39=\"F\", OR(NOT(ISBLANK(K39)),NOT(ISBLANK(L39)))),\"Nur A eingeben bei F Form, bitte Abmessungen B und C löschen\", IF(AND(H39=\"L\", NOT(ISBLANK(L39))),\"Nur A und B eingeben bei L Form, bitte Abmessung C löschen\", IF(OR(AND(OR(Parameter!$D$7>J39, J39>Parameter!$F$7), OR(H39=\"F\", H39=\"U\")), AND(OR(Parameter!$H$7>J39, J39>Parameter!$J$7), OR(H39=\"L\", H39=\"Z\"))),\"Bitte korrigiere die Abmessung A\", IF(AND(OR(Parameter!$D$8>K39, K39>Parameter!$F$8), OR(H39=\"L\", H39=\"Z\", H39=\"U\")),\"Bitte korrigiere die Abmessung B\", IF(AND(OR(Parameter!$D$9>L39, L39>Parameter!$F$9), OR(H39=\"Z\", H39=\"U\")),\"Bitte korrigiere die Abmessung C\", IF(ISBLANK(M39),\"Länge eingeben in mm\", IF(OR(Parameter!$D$10>M39, M39>Parameter!$F$10),\"Bitte korrigiere die Länge\", IF(ISBLANK(N39),\"Menge eingeben\", IF(NOT(ISNUMBER(N39)),\"Bitte korrigiere die Menge\", \"OK\"))))))))))))))))))))))","v":""},0,"",null,null,null,null,null,null,null,null,null,null,"",null,"",null,""]
[null,{"$f":"IF(LEN(D40)=0,IF(NOT(B39=\"OK\"),IF(SUMPRODUCT(--(D39:N39<>\"\"))=0,IF(AND(NOT(SUMPRODUCT(--(E40:N40<>\"\"))=0),D39=\"\"),\"Bitte keine Leerzeilen\",\"\"),IF(NOT(SUMPRODUCT(--(E40:N40<>\"\"))=0),\"Bitte korrigiere zuerst die vorherige Zeile\",\"\")),\"\"),IF(LEN(E40)>Parameter!$C$2,\"Beschreibung zu lang, bitte die Beschreibung kürzen\",IF(NOT(COUNTIF(Parameter!$C$3:$G$3, F40)),\"Beschreibung (optional) eingeben und Antritt/Austritt/Podest/Wand/Leer auswählen\",IF(ISBLANK(G40),\"Lagertyp auswählen\", IF(NOT(COUNTIF(Parameter!$C$4:$M$4, G40)),\"Bitte geben Sie einen korrekten Lagertyp ein \",IF(ISBLANK(H40),\"Form auswählen\", IF(NOT(COUNTIF(Parameter!$C$5:$F$5, H40)),\"Bitte geben Sie eine korrekte Form ein \",IF(ISBLANK(I40),\"Trittschallminderung auswählen\",IF(NOT(COUNTIF(Parameter!$C$6:$D$6, I40)),\"Bitte geben Sie eine korrekte Trittschallminderung ein\",  IF(AND(COUNTIF(Parameter!$L$4:$M$4,G39),I39=Parameter!$C$6), \"Achtung: TL-14000 und TL-16000 gibt es nur mit 32dB. Bitte korrigieren!\", IF(AND(H40=\"F\", ISBLANK(J40)),\"Mass A eingeben in mm\", IF(AND(H40=\"L\", OR(ISBLANK(J40), ISBLANK(K40))),\"Mass A und B eingeben in mm\", IF(AND(OR(H40=\"Z\", H40=\"U\"), OR(ISBLANK(J40), ISBLANK(K40), ISBLANK(L40))),\"Mass A, B und C eingeben in mm\", IF(AND(H40=\"F\", OR(NOT(ISBLANK(K40)),NOT(ISBLANK(L40)))),\"Nur A eingeben bei F Form, bitte Abmessungen B und C löschen\", IF(AND(H40=\"L\", NOT(ISBLANK(L40))),\"Nur A und B eingeben bei L Form, bitte Abmessung C löschen\", IF(OR(AND(OR(Parameter!$D$7>J40, J40>Parameter!$F$7), OR(H40=\"F\", H40=\"U\")), AND(OR(Parameter!$H$7>J40, J40>Parameter!$J$7), OR(H40=\"L\", H40=\"Z\"))),\"Bitte korrigiere die Abmessung A\", IF(AND(OR(Parameter!$D$8>K40, K40>Parameter!$F$8), OR(H40=\"L\", H40=\"Z\", H40=\"U\")),\"Bitte korrigiere die Abmessung B\", IF(AND(OR(Parameter!$D$9>L40, L40>Parameter!$F$9), OR(H40=\"Z\", H40=\"U\")),\"Bitte korrigiere die Abmessung C\", IF(ISBLANK(M40),\"Länge eingeben in mm\", IF(OR(Parameter!$D$10>M40, M40>Parameter!$F$10),\"Bitte korrigiere die Länge\", IF(ISBLANK(N40),\"Menge eingeben\", IF(NOT(ISNUMBER(N40)),\"Bitte korrigiere die Menge\", \"OK\"))))))))))))))))))))))","v":""},0,"",null,null,null,null,null,null,null,null,null,null,"",null,"",null,""]
[null,{"$f":"IF(LEN(D41)=0,IF(NOT(B40=\"OK\"),IF(SUMPRODUCT(--(D40:N40<>\"\"))=0,IF(AND(NOT(SUMPRODUCT(--(E41:N41<>\"\"))=0),D40=\"\"),\"Bitte keine Leerzeilen\",\"\"),IF(NOT(SUMPRODUCT(--(E41:N41<>\"\"))=0),\"Bitte korrigiere zuerst die vorherige Zeile\",\"\")),\"\"),IF(LEN(E41)>Parameter!$C$2,\"Beschreibung zu lang, bitte die Beschreibung kürzen\",IF(NOT(COUNTIF(Parameter!$C$3:$G$3, F41)),\"Beschreibung (optional) eingeben und Antritt/Austritt/Podest/Wand/Leer auswählen\",IF(ISBLANK(G41),\"Lagertyp auswählen\", IF(NOT(COUNTIF(Parameter!$C$4:$M$4, G41)),\"Bitte geben Sie einen korrekten Lagertyp ein \",IF(ISBLANK(H41),\"Form auswählen\", IF(NOT(COUNTIF(Parameter!$C$5:$F$5, H41)),\"Bitte geben Sie eine korrekte Form ein \",IF(ISBLANK(I41),\"Trittschallminderung auswählen\",IF(NOT(COUNTIF(Parameter!$C$6:$D$6, I41)),\"Bitte geben Sie eine korrekte Trittschallminderung ein\",  IF(AND(COUNTIF(Parameter!$L$4:$M$4,G40),I40=Parameter!$C$6), \"Achtung: TL-14000 und TL-16000 gibt es nur mit 32dB. Bitte korrigieren!\", IF(AND(H41=\"F\", ISBLANK(J41)),\"Mass A eingeben in mm\", IF(AND(H41=\"L\", OR(ISBLANK(J41), ISBLANK(K41))),\"Mass A und B eingeben in mm\", IF(AND(OR(H41=\"Z\", H41=\"U\"), OR(ISBLANK(J41), ISBLANK(K41), ISBLANK(L41))),\"Mass A, B und C eingeben in mm\", IF(AND(H41=\"F\", OR(NOT(ISBLANK(K41)),NOT(ISBLANK(L41)))),\"Nur A eingeben bei F Form, bitte Abmessungen B und C löschen\", IF(AND(H41=\"L\", NOT(ISBLANK(L41))),\"Nur A und B eingeben bei L Form, bitte Abmessung C löschen\", IF(OR(AND(OR(Parameter!$D$7>J41, J41>Parameter!$F$7), OR(H41=\"F\", H41=\"U\")), AND(OR(Parameter!$H$7>J41, J41>Parameter!$J$7), OR(H41=\"L\", H41=\"Z\"))),\"Bitte korrigiere die Abmessung A\", IF(AND(OR(Parameter!$D$8>K41, K41>Parameter!$F$8), OR(H41=\"L\", H41=\"Z\", H41=\"U\")),\"Bitte korrigiere die Abmessung B\", IF(AND(OR(Parameter!$D$9>L41, L41>Parameter!$F$9), OR(H41=\"Z\", H41=\"U\")),\"Bitte korrigiere die Abmessung C\", IF(ISBLANK(M41),\"Länge eingeben in mm\", IF(OR(Parameter!$D$10>M41, M41>Parameter!$F$10),\"Bitte korrigiere die Länge\", IF(ISBLANK(N41),\"Menge eingeben\", IF(NOT(ISNUMBER(N41)),\"Bitte korrigiere die Menge\", \"OK\"))))))))))))))))))))))","v":""},0,"",null,null,null,null,null,null,null,null,null,null,"",null,"",null,""]
[null,{"$f":"IF(LEN(D42)=0,IF(NOT(B41=\"OK\"),IF(SUMPRODUCT(--(D41:N41<>\"\"))=0,IF(AND(NOT(SUMPRODUCT(--(E42:N42<>\"\"))=0),D41=\"\"),\"Bitte keine Leerzeilen\",\"\"),IF(NOT(SUMPRODUCT(--(E42:N42<>\"\"))=0),\"Bitte korrigiere zuerst die vorherige Zeile\",\"\")),\"\"),IF(LEN(E42)>Parameter!$C$2,\"Beschreibung zu lang, bitte die Beschreibung kürzen\",IF(NOT(COUNTIF(Parameter!$C$3:$G$3, F42)),\"Beschreibung (optional) eingeben und Antritt/Austritt/Podest/Wand/Leer auswählen\",IF(ISBLANK(G42),\"Lagertyp auswählen\", IF(NOT(COUNTIF(Parameter!$C$4:$M$4, G42)),\"Bitte geben Sie einen korrekten Lagertyp ein \",IF(ISBLANK(H42),\"Form auswählen\", IF(NOT(COUNTIF(Parameter!$C$5:$F$5, H42)),\"Bitte geben Sie eine korrekte Form ein \",IF(ISBLANK(I42),\"Trittschallminderung auswählen\",IF(NOT(COUNTIF(Parameter!$C$6:$D$6, I42)),\"Bitte geben Sie eine korrekte Trittschallminderung ein\",  IF(AND(COUNTIF(Parameter!$L$4:$M$4,G41),I41=Parameter!$C$6), \"Achtung: TL-14000 und TL-16000 gibt es nur mit 32dB. Bitte korrigieren!\", IF(AND(H42=\"F\", ISBLANK(J42)),\"Mass A eingeben in mm\", IF(AND(H42=\"L\", OR(ISBLANK(J42), ISBLANK(K42))),\"Mass A und B eingeben in mm\", IF(AND(OR(H42=\"Z\", H42=\"U\"), OR(ISBLANK(J42), ISBLANK(K42), ISBLANK(L42))),\"Mass A, B und C eingeben in mm\", IF(AND(H42=\"F\", OR(NOT(ISBLANK(K42)),NOT(ISBLANK(L42)))),\"Nur A eingeben bei F Form, bitte Abmessungen B und C löschen\", IF(AND(H42=\"L\", NOT(ISBLANK(L42))),\"Nur A und B eingeben bei L Form, bitte Abmessung C löschen\", IF(OR(AND(OR(Parameter!$D$7>J42, J42>Parameter!$F$7), OR(H42=\"F\", H42=\"U\")), AND(OR(Parameter!$H$7>J42, J42>Parameter!$J$7), OR(H42=\"L\", H42=\"Z\"))),\"Bitte korrigiere die Abmessung A\", IF(AND(OR(Parameter!$D$8>K42, K42>Parameter!$F$8), OR(H42=\"L\", H42=\"Z\", H42=\"U\")),\"Bitte korrigiere die Abmessung B\", IF(AND(OR(Parameter!$D$9>L42, L42>Parameter!$F$9), OR(H42=\"Z\", H42=\"U\")),\"Bitte korrigiere die Abmessung C\", IF(ISBLANK(M42),\"Länge eingeben in mm\", IF(OR(Parameter!$D$10>M42, M42>Parameter!$F$10),\"Bitte korrigiere die Länge\", IF(ISBLANK(N42),\"Menge eingeben\", IF(NOT(ISNUMBER(N42)),\"Bitte korrigiere die Menge\", \"OK\"))))))))))))))))))))))","v":""},{"$f":"LEN(E42)","v":0},"",null,null,null,null,null,null,null,null,null,null,"",null,"",null,""]
[null,{"$f":"IF(LEN(D43)=0,IF(NOT(B42=\"OK\"),IF(SUMPRODUCT(--(D42:N42<>\"\"))=0,IF(AND(NOT(SUMPRODUCT(--(E43:N43<>\"\"))=0),D42=\"\"),\"Bitte keine Leerzeilen\",\"\"),IF(NOT(SUMPRODUCT(--(E43:N43<>\"\"))=0),\"Bitte korrigiere zuerst die vorherige Zeile\",\"\")),\"\"),IF(LEN(E43)>Parameter!$C$2,\"Beschreibung zu lang, bitte die Beschreibung kürzen\",IF(NOT(COUNTIF(Parameter!$C$3:$G$3, F43)),\"Beschreibung (optional) eingeben und Antritt/Austritt/Podest/Wand/Leer auswählen\",IF(ISBLANK(G43),\"Lagertyp auswählen\", IF(NOT(COUNTIF(Parameter!$C$4:$M$4, G43)),\"Bitte geben Sie einen korrekten Lagertyp ein \",IF(ISBLANK(H43),\"Form auswählen\", IF(NOT(COUNTIF(Parameter!$C$5:$F$5, H43)),\"Bitte geben Sie eine korrekte Form ein \",IF(ISBLANK(I43),\"Trittschallminderung auswählen\",IF(NOT(COUNTIF(Parameter!$C$6:$D$6, I43)),\"Bitte geben Sie eine korrekte Trittschallminderung ein\",  IF(AND(COUNTIF(Parameter!$L$4:$M$4,G42),I42=Parameter!$C$6), \"Achtung: TL-14000 und TL-16000 gibt es nur mit 32dB. Bitte korrigieren!\", IF(AND(H43=\"F\", ISBLANK(J43)),\"Mass A eingeben in mm\", IF(AND(H43=\"L\", OR(ISBLANK(J43), ISBLANK(K43))),\"Mass A und B eingeben in mm\", IF(AND(OR(H43=\"Z\", H43=\"U\"), OR(ISBLANK(J43), ISBLANK(K43), ISBLANK(L43))),\"Mass A, B und C eingeben in mm\", IF(AND(H43=\"F\", OR(NOT(ISBLANK(K43)),NOT(ISBLANK(L43)))),\"Nur A eingeben bei F Form, bitte Abmessungen B und C löschen\", IF(AND(H43=\"L\", NOT(ISBLANK(L43))),\"Nur A und B eingeben bei L Form, bitte Abmessung C löschen\", IF(OR(AND(OR(Parameter!$D$7>J43, J43>Parameter!$F$7), OR(H43=\"F\", H43=\"U\")), AND(OR(Parameter!$H$7>J43, J43>Parameter!$J$7), OR(H43=\"L\", H43=\"Z\"))),\"Bitte korrigiere die Abmessung A\", IF(AND(OR(Parameter!$D$8>K43, K43>Parameter!$F$8), OR(H43=\"L\", H43=\"Z\", H43=\"U\")),\"Bitte korrigiere die Abmessung B\", IF(AND(OR(Parameter!$D$9>L43, L43>Parameter!$F$9), OR(H43=\"Z\", H43=\"U\")),\"Bitte korrigiere die Abmessung C\", IF(ISBLANK(M43),\"Länge eingeben in mm\", IF(OR(Parameter!$D$10>M43, M43>Parameter!$F$10),\"Bitte korrigiere die Länge\", IF(ISBLANK(N43),\"Menge eingeben\", IF(NOT(ISNUMBER(N43)),\"Bitte korrigiere die Menge\", \"OK\"))))))))))))))))))))))","v":""},{"$f":"LEN(E43)","v":0},"",null,null,null,null,null,null,null,null,null,null,"",null,"",null,""]
[null,{"$f":"IF(LEN(D44)=0,IF(NOT(B43=\"OK\"),IF(SUMPRODUCT(--(D43:N43<>\"\"))=0,IF(AND(NOT(SUMPRODUCT(--(E44:N44<>\"\"))=0),D43=\"\"),\"Bitte keine Leerzeilen\",\"\"),IF(NOT(SUMPRODUCT(--(E44:N44<>\"\"))=0),\"Bitte korrigiere zuerst die vorherige Zeile\",\"\")),\"\"),IF(LEN(E44)>Parameter!$C$2,\"Beschreibung zu lang, bitte die Beschreibung kürzen\",IF(NOT(COUNTIF(Parameter!$C$3:$G$3, F44)),\"Beschreibung (optional) eingeben und Antritt/Austritt/Podest/Wand/Leer auswählen\",IF(ISBLANK(G44),\"Lagertyp auswählen\", IF(NOT(COUNTIF(Parameter!$C$4:$M$4, G44)),\"Bitte geben Sie einen korrekten Lagertyp ein \",IF(ISBLANK(H44),\"Form auswählen\", IF(NOT(COUNTIF(Parameter!$C$5:$F$5, H44)),\"Bitte geben Sie eine korrekte Form ein \",IF(ISBLANK(I44),\"Trittschallminderung auswählen\",IF(NOT(COUNTIF(Parameter!$C$6:$D$6, I44)),\"Bitte geben Sie eine korrekte Trittschallminderung ein\",  IF(AND(COUNTIF(Parameter!$L$4:$M$4,G43),I43=Parameter!$C$6), \"Achtung: TL-14000 und TL-16000 gibt es nur mit 32dB. Bitte korrigieren!\", IF(AND(H44=\"F\", ISBLANK(J44)),\"Mass A eingeben in mm\", IF(AND(H44=\"L\", OR(ISBLANK(J44), ISBLANK(K44))),\"Mass A und B eingeben in mm\", IF(AND(OR(H44=\"Z\", H44=\"U\"), OR(ISBLANK(J44), ISBLANK(K44), ISBLANK(L44))),\"Mass A, B und C eingeben in mm\", IF(AND(H44=\"F\", OR(NOT(ISBLANK(K44)),NOT(ISBLANK(L44)))),\"Nur A eingeben bei F Form, bitte Abmessungen B und C löschen\", IF(AND(H44=\"L\", NOT(ISBLANK(L44))),\"Nur A und B eingeben bei L Form, bitte Abmessung C löschen\", IF(OR(AND(OR(Parameter!$D$7>J44, J44>Parameter!$F$7), OR(H44=\"F\", H44=\"U\")), AND(OR(Parameter!$H$7>J44, J44>Parameter!$J$7), OR(H44=\"L\", H44=\"Z\"))),\"Bitte korrigiere die Abmessung A\", IF(AND(OR(Parameter!$D$8>K44, K44>Parameter!$F$8), OR(H44=\"L\", H44=\"Z\", H44=\"U\")),\"Bitte korrigiere die Abmessung B\", IF(AND(OR(Parameter!$D$9>L44, L44>Parameter!$F$9), OR(H44=\"Z\", H44=\"U\")),\"Bitte korrigiere die Abmessung C\", IF(ISBLANK(M44),\"Länge eingeben in mm\", IF(OR(Parameter!$D$10>M44, M44>Parameter!$F$10),\"Bitte korrigiere die Länge\", IF(ISBLANK(N44),\"Menge eingeben\", IF(NOT(ISNUMBER(N44)),\"Bitte korrigiere die Menge\", \"OK\"))))))))))))))))))))))","v":""},0,"",null,null,null,null,null,null,null,null,null,null,"",null,"",null,""]
[null,{"$f":"IF(LEN(D45)=0,IF(NOT(B44=\"OK\"),IF(SUMPRODUCT(--(D44:N44<>\"\"))=0,IF(AND(NOT(SUMPRODUCT(--(E45:N45<>\"\"))=0),D44=\"\"),\"Bitte keine Leerzeilen\",\"\"),IF(NOT(SUMPRODUCT(--(E45:N45<>\"\"))=0),\"Bitte korrigiere zuerst die vorherige Zeile\",\"\")),\"\"),IF(LEN(E45)>Parameter!$C$2,\"Beschreibung zu lang, bitte die Beschreibung kürzen\",IF(NOT(COUNTIF(Parameter!$C$3:$G$3, F45)),\"Beschreibung (optional) eingeben und Antritt/Austritt/Podest/Wand/Leer auswählen\",IF(ISBLANK(G45),\"Lagertyp auswählen\", IF(NOT(COUNTIF(Parameter!$C$4:$M$4, G45)),\"Bitte geben Sie einen korrekten Lagertyp ein \",IF(ISBLANK(H45),\"Form auswählen\", IF(NOT(COUNTIF(Parameter!$C$5:$F$5, H45)),\"Bitte geben Sie eine korrekte Form ein \",IF(ISBLANK(I45),\"Trittschallminderung auswählen\",IF(NOT(COUNTIF(Parameter!$C$6:$D$6, I45)),\"Bitte geben Sie eine korrekte Trittschallminderung ein\",  IF(AND(COUNTIF(Parameter!$L$4:$M$4,G44),I44=Parameter!$C$6), \"Achtung: TL-14000 und TL-16000 gibt es nur mit 32dB. Bitte korrigieren!\", IF(AND(H45=\"F\", ISBLANK(J45)),\"Mass A eingeben in mm\", IF(AND(H45=\"L\", OR(ISBLANK(J45), ISBLANK(K45))),\"Mass A und B eingeben in mm\", IF(AND(OR(H45=\"Z\", H45=\"U\"), OR(ISBLANK(J45), ISBLANK(K45), ISBLANK(L45))),\"Mass A, B und C eingeben in mm\", IF(AND(H45=\"F\", OR(NOT(ISBLANK(K45)),NOT(ISBLANK(L45)))),\"Nur A eingeben bei F Form, bitte Abmessungen B und C löschen\", IF(AND(H45=\"L\", NOT(ISBLANK(L45))),\"Nur A und B eingeben bei L Form, bitte Abmessung C löschen\", IF(OR(AND(OR(Parameter!$D$7>J45, J45>Parameter!$F$7), OR(H45=\"F\", H45=\"U\")), AND(OR(Parameter!$H$7>J45, J45>Parameter!$J$7), OR(H45=\"L\", H45=\"Z\"))),\"Bitte korrigiere die Abmessung A\", IF(AND(OR(Parameter!$D$8>K45, K45>Parameter!$F$8), OR(H45=\"L\", H45=\"Z\", H45=\"U\")),\"Bitte korrigiere die Abmessung B\", IF(AND(OR(Parameter!$D$9>L45, L45>Parameter!$F$9), OR(H45=\"Z\", H45=\"U\")),\"Bitte korrigiere die Abmessung C\", IF(ISBLANK(M45),\"Länge eingeben in mm\", IF(OR(Parameter!$D$10>M45, M45>Parameter!$F$10),\"Bitte korrigiere die Länge\", IF(ISBLANK(N45),\"Menge eingeben\", IF(NOT(ISNUMBER(N45)),\"Bitte korrigiere die Menge\", \"OK\"))))))))))))))))))))))","v":""},{"$f":"LEN(E45)","v":0},"",null,null,null,null,null,null,null,null,null,null,"",null,"",null,""]
[null,{"$f":"IF(LEN(D46)=0,IF(NOT(B45=\"OK\"),IF(SUMPRODUCT(--(D45:N45<>\"\"))=0,IF(AND(NOT(SUMPRODUCT(--(E46:N46<>\"\"))=0),D45=\"\"),\"Bitte keine Leerzeilen\",\"\"),IF(NOT(SUMPRODUCT(--(E46:N46<>\"\"))=0),\"Bitte korrigiere zuerst die vorherige Zeile\",\"\")),\"\"),IF(LEN(E46)>Parameter!$C$2,\"Beschreibung zu lang, bitte die Beschreibung kürzen\",IF(NOT(COUNTIF(Parameter!$C$3:$G$3, F46)),\"Beschreibung (optional) eingeben und Antritt/Austritt/Podest/Wand/Leer auswählen\",IF(ISBLANK(G46),\"Lagertyp auswählen\", IF(NOT(COUNTIF(Parameter!$C$4:$M$4, G46)),\"Bitte geben Sie einen korrekten Lagertyp ein \",IF(ISBLANK(H46),\"Form auswählen\", IF(NOT(COUNTIF(Parameter!$C$5:$F$5, H46)),\"Bitte geben Sie eine korrekte Form ein \",IF(ISBLANK(I46),\"Trittschallminderung auswählen\",IF(NOT(COUNTIF(Parameter!$C$6:$D$6, I46)),\"Bitte geben Sie eine korrekte Trittschallminderung ein\",  IF(AND(COUNTIF(Parameter!$L$4:$M$4,G45),I45=Parameter!$C$6), \"Achtung: TL-14000 und TL-16000 gibt es nur mit 32dB. Bitte korrigieren!\", IF(AND(H46=\"F\", ISBLANK(J46)),\"Mass A eingeben in mm\", IF(AND(H46=\"L\", OR(ISBLANK(J46), ISBLANK(K46))),\"Mass A und B eingeben in mm\", IF(AND(OR(H46=\"Z\", H46=\"U\"), OR(ISBLANK(J46), ISBLANK(K46), ISBLANK(L46))),\"Mass A, B und C eingeben in mm\", IF(AND(H46=\"F\", OR(NOT(ISBLANK(K46)),NOT(ISBLANK(L46)))),\"Nur A eingeben bei F Form, bitte Abmessungen B und C löschen\", IF(AND(H46=\"L\", NOT(ISBLANK(L46))),\"Nur A und B eingeben bei L Form, bitte Abmessung C löschen\", IF(OR(AND(OR(Parameter!$D$7>J46, J46>Parameter!$F$7), OR(H46=\"F\", H46=\"U\")), AND(OR(Parameter!$H$7>J46, J46>Parameter!$J$7), OR(H46=\"L\", H46=\"Z\"))),\"Bitte korrigiere die Abmessung A\", IF(AND(OR(Parameter!$D$8>K46, K46>Parameter!$F$8), OR(H46=\"L\", H46=\"Z\", H46=\"U\")),\"Bitte korrigiere die Abmessung B\", IF(AND(OR(Parameter!$D$9>L46, L46>Parameter!$F$9), OR(H46=\"Z\", H46=\"U\")),\"Bitte korrigiere die Abmessung C\", IF(ISBLANK(M46),\"Länge eingeben in mm\", IF(OR(Parameter!$D$10>M46, M46>Parameter!$F$10),\"Bitte korrigiere die Länge\", IF(ISBLANK(N46),\"Menge eingeben\", IF(NOT(ISNUMBER(N46)),\"Bitte korrigiere die Menge\", \"OK\"))))))))))))))))))))))","v":""},{"$f":"LEN(E46)","v":0},"",null,null,null,null,null,null,null,null,null,null,"",null,"",null,""]
[null,{"$f":"IF(LEN(D47)=0,IF(NOT(B46=\"OK\"),IF(SUMPRODUCT(--(D46:N46<>\"\"))=0,IF(AND(NOT(SUMPRODUCT(--(E47:N47<>\"\"))=0),D46=\"\"),\"Bitte keine Leerzeilen\",\"\"),IF(NOT(SUMPRODUCT(--(E47:N47<>\"\"))=0),\"Bitte korrigiere zuerst die vorherige Zeile\",\"\")),\"\"),IF(LEN(E47)>Parameter!$C$2,\"Beschreibung zu lang, bitte die Beschreibung kürzen\",IF(NOT(COUNTIF(Parameter!$C$3:$G$3, F47)),\"Beschreibung (optional) eingeben und Antritt/Austritt/Podest/Wand/Leer auswählen\",IF(ISBLANK(G47),\"Lagertyp auswählen\", IF(NOT(COUNTIF(Parameter!$C$4:$M$4, G47)),\"Bitte geben Sie einen korrekten Lagertyp ein \",IF(ISBLANK(H47),\"Form auswählen\", IF(NOT(COUNTIF(Parameter!$C$5:$F$5, H47)),\"Bitte geben Sie eine korrekte Form ein \",IF(ISBLANK(I47),\"Trittschallminderung auswählen\",IF(NOT(COUNTIF(Parameter!$C$6:$D$6, I47)),\"Bitte geben Sie eine korrekte Trittschallminderung ein\",  IF(AND(COUNTIF(Parameter!$L$4:$M$4,G46),I46=Parameter!$C$6), \"Achtung: TL-14000 und TL-16000 gibt es nur mit 32dB. Bitte korrigieren!\", IF(AND(H47=\"F\", ISBLANK(J47)),\"Mass A eingeben in mm\", IF(AND(H47=\"L\", OR(ISBLANK(J47), ISBLANK(K47))),\"Mass A und B eingeben in mm\", IF(AND(OR(H47=\"Z\", H47=\"U\"), OR(ISBLANK(J47), ISBLANK(K47), ISBLANK(L47))),\"Mass A, B und C eingeben in mm\", IF(AND(H47=\"F\", OR(NOT(ISBLANK(K47)),NOT(ISBLANK(L47)))),\"Nur A eingeben bei F Form, bitte Abmessungen B und C löschen\", IF(AND(H47=\"L\", NOT(ISBLANK(L47))),\"Nur A und B eingeben bei L Form, bitte Abmessung C löschen\", IF(OR(AND(OR(Parameter!$D$7>J47, J47>Parameter!$F$7), OR(H47=\"F\", H47=\"U\")), AND(OR(Parameter!$H$7>J47, J47>Parameter!$J$7), OR(H47=\"L\", H47=\"Z\"))),\"Bitte korrigiere die Abmessung A\", IF(AND(OR(Parameter!$D$8>K47, K47>Parameter!$F$8), OR(H47=\"L\", H47=\"Z\", H47=\"U\")),\"Bitte korrigiere die Abmessung B\", IF(AND(OR(Parameter!$D$9>L47, L47>Parameter!$F$9), OR(H47=\"Z\", H47=\"U\")),\"Bitte korrigiere die Abmessung C\", IF(ISBLANK(M47),\"Länge eingeben in mm\", IF(OR(Parameter!$D$10>M47, M47>Parameter!$F$10),\"Bitte korrigiere die Länge\", IF(ISBLANK(N47),\"Menge eingeben\", IF(NOT(ISNUMBER(N47)),\"Bitte korrigiere die Menge\", \"OK\"))))))))))))))))))))))","v":""},0,"",null,null,null,null,null,null,null,null,null,null,"",null,"",null,""]
[null,{"$f":"IF(LEN(D48)=0,IF(NOT(B47=\"OK\"),IF(SUMPRODUCT(--(D47:N47<>\"\"))=0,IF(AND(NOT(SUMPRODUCT(--(E48:N48<>\"\"))=0),D47=\"\"),\"Bitte keine Leerzeilen\",\"\"),IF(NOT(SUMPRODUCT(--(E48:N48<>\"\"))=0),\"Bitte korrigiere zuerst die vorherige Zeile\",\"\")),\"\"),IF(LEN(E48)>Parameter!$C$2,\"Beschreibung zu lang, bitte die Beschreibung kürzen\",IF(NOT(COUNTIF(Parameter!$C$3:$G$3, F48)),\"Beschreibung (optional) eingeben und Antritt/Austritt/Podest/Wand/Leer auswählen\",IF(ISBLANK(G48),\"Lagertyp auswählen\", IF(NOT(COUNTIF(Parameter!$C$4:$M$4, G48)),\"Bitte geben Sie einen korrekten Lagertyp ein \",IF(ISBLANK(H48),\"Form auswählen\", IF(NOT(COUNTIF(Parameter!$C$5:$F$5, H48)),\"Bitte geben Sie eine korrekte Form ein \",IF(ISBLANK(I48),\"Trittschallminderung auswählen\",IF(NOT(COUNTIF(Parameter!$C$6:$D$6, I48)),\"Bitte geben Sie eine korrekte Trittschallminderung ein\",  IF(AND(COUNTIF(Parameter!$L$4:$M$4,G47),I47=Parameter!$C$6), \"Achtung: TL-14000 und TL-16000 gibt es nur mit 32dB. Bitte korrigieren!\", IF(AND(H48=\"F\", ISBLANK(J48)),\"Mass A eingeben in mm\", IF(AND(H48=\"L\", OR(ISBLANK(J48), ISBLANK(K48))),\"Mass A und B eingeben in mm\", IF(AND(OR(H48=\"Z\", H48=\"U\"), OR(ISBLANK(J48), ISBLANK(K48), ISBLANK(L48))),\"Mass A, B und C eingeben in mm\", IF(AND(H48=\"F\", OR(NOT(ISBLANK(K48)),NOT(ISBLANK(L48)))),\"Nur A eingeben bei F Form, bitte Abmessungen B und C löschen\", IF(AND(H48=\"L\", NOT(ISBLANK(L48))),\"Nur A und B eingeben bei L Form, bitte Abmessung C löschen\", IF(OR(AND(OR(Parameter!$D$7>J48, J48>Parameter!$F$7), OR(H48=\"F\", H48=\"U\")), AND(OR(Parameter!$H$7>J48, J48>Parameter!$J$7), OR(H48=\"L\", H48=\"Z\"))),\"Bitte korrigiere die Abmessung A\", IF(AND(OR(Parameter!$D$8>K48, K48>Parameter!$F$8), OR(H48=\"L\", H48=\"Z\", H48=\"U\")),\"Bitte korrigiere die Abmessung B\", IF(AND(OR(Parameter!$D$9>L48, L48>Parameter!$F$9), OR(H48=\"Z\", H48=\"U\")),\"Bitte korrigiere die Abmessung C\", IF(ISBLANK(M48),\"Länge eingeben in mm\", IF(OR(Parameter!$D$10>M48, M48>Parameter!$F$10),\"Bitte korrigiere die Länge\", IF(ISBLANK(N48),\"Menge eingeben\", IF(NOT(ISNUMBER(N48)),\"Bitte korrigiere die Menge\", \"OK\"))))))))))))))))))))))","v":""},0,"",null,null,null,null,null,null,null,null,null,null,"",null,"",null,""]
[null,{"$f":"IF(LEN(D49)=0,IF(NOT(B48=\"OK\"),IF(SUMPRODUCT(--(D48:N48<>\"\"))=0,IF(AND(NOT(SUMPRODUCT(--(E49:N49<>\"\"))=0),D48=\"\"),\"Bitte keine Leerzeilen\",\"\"),IF(NOT(SUMPRODUCT(--(E49:N49<>\"\"))=0),\"Bitte korrigiere zuerst die vorherige Zeile\",\"\")),\"\"),IF(LEN(E49)>Parameter!$C$2,\"Beschreibung zu lang, bitte die Beschreibung kürzen\",IF(NOT(COUNTIF(Parameter!$C$3:$G$3, F49)),\"Beschreibung (optional) eingeben und Antritt/Austritt/Podest/Wand/Leer auswählen\",IF(ISBLANK(G49),\"Lagertyp auswählen\", IF(NOT(COUNTIF(Parameter!$C$4:$M$4, G49)),\"Bitte geben Sie einen korrekten Lagertyp ein \",IF(ISBLANK(H49),\"Form auswählen\", IF(NOT(COUNTIF(Parameter!$C$5:$F$5, H49)),\"Bitte geben Sie eine korrekte Form ein \",IF(ISBLANK(I49),\"Trittschallminderung auswählen\",IF(NOT(COUNTIF(Parameter!$C$6:$D$6, I49)),\"Bitte geben Sie eine korrekte Trittschallminderung ein\",  IF(AND(COUNTIF(Parameter!$L$4:$M$4,G48),I48=Parameter!$C$6), \"Achtung: TL-14000 und TL-16000 gibt es nur mit 32dB. Bitte korrigieren!\", IF(AND(H49=\"F\", ISBLANK(J49)),\"Mass A eingeben in mm\", IF(AND(H49=\"L\", OR(ISBLANK(J49), ISBLANK(K49))),\"Mass A und B eingeben in mm\", IF(AND(OR(H49=\"Z\", H49=\"U\"), OR(ISBLANK(J49), ISBLANK(K49), ISBLANK(L49))),\"Mass A, B und C eingeben in mm\", IF(AND(H49=\"F\", OR(NOT(ISBLANK(K49)),NOT(ISBLANK(L49)))),\"Nur A eingeben bei F Form, bitte Abmessungen B und C löschen\", IF(AND(H49=\"L\", NOT(ISBLANK(L49))),\"Nur A und B eingeben bei L Form, bitte Abmessung C löschen\", IF(OR(AND(OR(Parameter!$D$7>J49, J49>Parameter!$F$7), OR(H49=\"F\", H49=\"U\")), AND(OR(Parameter!$H$7>J49, J49>Parameter!$J$7), OR(H49=\"L\", H49=\"Z\"))),\"Bitte korrigiere die Abmessung A\", IF(AND(OR(Parameter!$D$8>K49, K49>Parameter!$F$8), OR(H49=\"L\", H49=\"Z\", H49=\"U\")),\"Bitte korrigiere die Abmessung B\", IF(AND(OR(Parameter!$D$9>L49, L49>Parameter!$F$9), OR(H49=\"Z\", H49=\"U\")),\"Bitte korrigiere die Abmessung C\", IF(ISBLANK(M49),\"Länge eingeben in mm\", IF(OR(Parameter!$D$10>M49, M49>Parameter!$F$10),\"Bitte korrigiere die Länge\", IF(ISBLANK(N49),\"Menge eingeben\", IF(NOT(ISNUMBER(N49)),\"Bitte korrigiere die Menge\", \"OK\"))))))))))))))))))))))","v":""},0,"",null,null,null,null,null,null,null,null,null,null,"",null,"",null,""]
[null,{"$f":"IF(LEN(D50)=0,IF(NOT(B49=\"OK\"),IF(SUMPRODUCT(--(D49:N49<>\"\"))=0,IF(AND(NOT(SUMPRODUCT(--(E50:N50<>\"\"))=0),D49=\"\"),\"Bitte keine Leerzeilen\",\"\"),IF(NOT(SUMPRODUCT(--(E50:N50<>\"\"))=0),\"Bitte korrigiere zuerst die vorherige Zeile\",\"\")),\"\"),IF(LEN(E50)>Parameter!$C$2,\"Beschreibung zu lang, bitte die Beschreibung kürzen\",IF(NOT(COUNTIF(Parameter!$C$3:$G$3, F50)),\"Beschreibung (optional) eingeben und Antritt/Austritt/Podest/Wand/Leer auswählen\",IF(ISBLANK(G50),\"Lagertyp auswählen\", IF(NOT(COUNTIF(Parameter!$C$4:$M$4, G50)),\"Bitte geben Sie einen korrekten Lagertyp ein \",IF(ISBLANK(H50),\"Form auswählen\", IF(NOT(COUNTIF(Parameter!$C$5:$F$5, H50)),\"Bitte geben Sie eine korrekte Form ein \",IF(ISBLANK(I50),\"Trittschallminderung auswählen\",IF(NOT(COUNTIF(Parameter!$C$6:$D$6, I50)),\"Bitte geben Sie eine korrekte Trittschallminderung ein\",  IF(AND(COUNTIF(Parameter!$L$4:$M$4,G49),I49=Parameter!$C$6), \"Achtung: TL-14000 und TL-16000 gibt es nur mit 32dB. Bitte korrigieren!\", IF(AND(H50=\"F\", ISBLANK(J50)),\"Mass A eingeben in mm\", IF(AND(H50=\"L\", OR(ISBLANK(J50), ISBLANK(K50))),\"Mass A und B eingeben in mm\", IF(AND(OR(H50=\"Z\", H50=\"U\"), OR(ISBLANK(J50), ISBLANK(K50), ISBLANK(L50))),\"Mass A, B und C eingeben in mm\", IF(AND(H50=\"F\", OR(NOT(ISBLANK(K50)),NOT(ISBLANK(L50)))),\"Nur A eingeben bei F Form, bitte Abmessungen B und C löschen\", IF(AND(H50=\"L\", NOT(ISBLANK(L50))),\"Nur A und B eingeben bei L Form, bitte Abmessung C löschen\", IF(OR(AND(OR(Parameter!$D$7>J50, J50>Parameter!$F$7), OR(H50=\"F\", H50=\"U\")), AND(OR(Parameter!$H$7>J50, J50>Parameter!$J$7), OR(H50=\"L\", H50=\"Z\"))),\"Bitte korrigiere die Abmessung A\", IF(AND(OR(Parameter!$D$8>K50, K50>Parameter!$F$8), OR(H50=\"L\", H50=\"Z\", H50=\"U\")),\"Bitte korrigiere die Abmessung B\", IF(AND(OR(Parameter!$D$9>L50, L50>Parameter!$F$9), OR(H50=\"Z\", H50=\"U\")),\"Bitte korrigiere die Abmessung C\", IF(ISBLANK(M50),\"Länge eingeben in mm\", IF(OR(Parameter!$D$10>M50, M50>Parameter!$F$10),\"Bitte korrigiere die Länge\", IF(ISBLANK(N50),\"Menge eingeben\", IF(NOT(ISNUMBER(N50)),\"Bitte korrigiere die Menge\", \"OK\"))))))))))))))))))))))","v":""},0,"",null,null,null,null,null,null,null,null,null,null,"",null,"",null,""]
[null,{"$f":"IF(LEN(D51)=0,IF(NOT(B50=\"OK\"),IF(SUMPRODUCT(--(D50:N50<>\"\"))=0,IF(AND(NOT(SUMPRODUCT(--(E51:N51<>\"\"))=0),D50=\"\"),\"Bitte keine Leerzeilen\",\"\"),IF(NOT(SUMPRODUCT(--(E51:N51<>\"\"))=0),\"Bitte korrigiere zuerst die vorherige Zeile\",\"\")),\"\"),IF(LEN(E51)>Parameter!$C$2,\"Beschreibung zu lang, bitte die Beschreibung kürzen\",IF(NOT(COUNTIF(Parameter!$C$3:$G$3, F51)),\"Beschreibung (optional) eingeben und Antritt/Austritt/Podest/Wand/Leer auswählen\",IF(ISBLANK(G51),\"Lagertyp auswählen\", IF(NOT(COUNTIF(Parameter!$C$4:$M$4, G51)),\"Bitte geben Sie einen korrekten Lagertyp ein \",IF(ISBLANK(H51),\"Form auswählen\", IF(NOT(COUNTIF(Parameter!$C$5:$F$5, H51)),\"Bitte geben Sie eine korrekte Form ein \",IF(ISBLANK(I51),\"Trittschallminderung auswählen\",IF(NOT(COUNTIF(Parameter!$C$6:$D$6, I51)),\"Bitte geben Sie eine korrekte Trittschallminderung ein\",  IF(AND(COUNTIF(Parameter!$L$4:$M$4,G50),I50=Parameter!$C$6), \"Achtung: TL-14000 und TL-16000 gibt es nur mit 32dB. Bitte korrigieren!\", IF(AND(H51=\"F\", ISBLANK(J51)),\"Mass A eingeben in mm\", IF(AND(H51=\"L\", OR(ISBLANK(J51), ISBLANK(K51))),\"Mass A und B eingeben in mm\", IF(AND(OR(H51=\"Z\", H51=\"U\"), OR(ISBLANK(J51), ISBLANK(K51), ISBLANK(L51))),\"Mass A, B und C eingeben in mm\", IF(AND(H51=\"F\", OR(NOT(ISBLANK(K51)),NOT(ISBLANK(L51)))),\"Nur A eingeben bei F Form, bitte Abmessungen B und C löschen\", IF(AND(H51=\"L\", NOT(ISBLANK(L51))),\"Nur A und B eingeben bei L Form, bitte Abmessung C löschen\", IF(OR(AND(OR(Parameter!$D$7>J51, J51>Parameter!$F$7), OR(H51=\"F\", H51=\"U\")), AND(OR(Parameter!$H$7>J51, J51>Parameter!$J$7), OR(H51=\"L\", H51=\"Z\"))),\"Bitte korrigiere die Abmessung A\", IF(AND(OR(Parameter!$D$8>K51, K51>Parameter!$F$8), OR(H51=\"L\", H51=\"Z\", H51=\"U\")),\"Bitte korrigiere die Abmessung B\", IF(AND(OR(Parameter!$D$9>L51, L51>Parameter!$F$9), OR(H51=\"Z\", H51=\"U\")),\"Bitte korrigiere die Abmessung C\", IF(ISBLANK(M51),\"Länge eingeben in mm\", IF(OR(Parameter!$D$10>M51, M51>Parameter!$F$10),\"Bitte korrigiere die Länge\", IF(ISBLANK(N51),\"Menge eingeben\", IF(NOT(ISNUMBER(N51)),\"Bitte korrigiere die Menge\", \"OK\"))))))))))))))))))))))","v":""},0,"",null,null,null,null,null,null,null,null,null,null,"",null,"",null,""]
[null,{"$f":"IF(LEN(D52)=0,IF(NOT(B51=\"OK\"),IF(SUMPRODUCT(--(D51:N51<>\"\"))=0,IF(AND(NOT(SUMPRODUCT(--(E52:N52<>\"\"))=0),D51=\"\"),\"Bitte keine Leerzeilen\",\"\"),IF(NOT(SUMPRODUCT(--(E52:N52<>\"\"))=0),\"Bitte korrigiere zuerst die vorherige Zeile\",\"\")),\"\"),IF(LEN(E52)>Parameter!$C$2,\"Beschreibung zu lang, bitte die Beschreibung kürzen\",IF(NOT(COUNTIF(Parameter!$C$3:$G$3, F52)),\"Beschreibung (optional) eingeben und Antritt/Austritt/Podest/Wand/Leer auswählen\",IF(ISBLANK(G52),\"Lagertyp auswählen\", IF(NOT(COUNTIF(Parameter!$C$4:$M$4, G52)),\"Bitte geben Sie einen korrekten Lagertyp ein \",IF(ISBLANK(H52),\"Form auswählen\", IF(NOT(COUNTIF(Parameter!$C$5:$F$5, H52)),\"Bitte geben Sie eine korrekte Form ein \",IF(ISBLANK(I52),\"Trittschallminderung auswählen\",IF(NOT(COUNTIF(Parameter!$C$6:$D$6, I52)),\"Bitte geben Sie eine korrekte Trittschallminderung ein\",  IF(AND(COUNTIF(Parameter!$L$4:$M$4,G51),I51=Parameter!$C$6), \"Achtung: TL-14000 und TL-16000 gibt es nur mit 32dB. Bitte korrigieren!\", IF(AND(H52=\"F\", ISBLANK(J52)),\"Mass A eingeben in mm\", IF(AND(H52=\"L\", OR(ISBLANK(J52), ISBLANK(K52))),\"Mass A und B eingeben in mm\", IF(AND(OR(H52=\"Z\", H52=\"U\"), OR(ISBLANK(J52), ISBLANK(K52), ISBLANK(L52))),\"Mass A, B und C eingeben in mm\", IF(AND(H52=\"F\", OR(NOT(ISBLANK(K52)),NOT(ISBLANK(L52)))),\"Nur A eingeben bei F Form, bitte Abmessungen B und C löschen\", IF(AND(H52=\"L\", NOT(ISBLANK(L52))),\"Nur A und B eingeben bei L Form, bitte Abmessung C löschen\", IF(OR(AND(OR(Parameter!$D$7>J52, J52>Parameter!$F$7), OR(H52=\"F\", H52=\"U\")), AND(OR(Parameter!$H$7>J52, J52>Parameter!$J$7), OR(H52=\"L\", H52=\"Z\"))),\"Bitte korrigiere die Abmessung A\", IF(AND(OR(Parameter!$D$8>K52, K52>Parameter!$F$8), OR(H52=\"L\", H52=\"Z\", H52=\"U\")),\"Bitte korrigiere die Abmessung B\", IF(AND(OR(Parameter!$D$9>L52, L52>Parameter!$F$9), OR(H52=\"Z\", H52=\"U\")),\"Bitte korrigiere die Abmessung C\", IF(ISBLANK(M52),\"Länge eingeben in mm\", IF(OR(Parameter!$D$10>M52, M52>Parameter!$F$10),\"Bitte korrigiere die Länge\", IF(ISBLANK(N52),\"Menge eingeben\", IF(NOT(ISNUMBER(N52)),\"Bitte korrigiere die Menge\", \"OK\"))))))))))))))))))))))","v":""},0,"",null,null,null,null,null,null,null,null,null,null,"",null,"",null,""]
[null,{"$f":"IF(LEN(D53)=0,IF(NOT(B52=\"OK\"),IF(SUMPRODUCT(--(D52:N52<>\"\"))=0,IF(AND(NOT(SUMPRODUCT(--(E53:N53<>\"\"))=0),D52=\"\"),\"Bitte keine Leerzeilen\",\"\"),IF(NOT(SUMPRODUCT(--(E53:N53<>\"\"))=0),\"Bitte korrigiere zuerst die vorherige Zeile\",\"\")),\"\"),IF(LEN(E53)>Parameter!$C$2,\"Beschreibung zu lang, bitte die Beschreibung kürzen\",IF(NOT(COUNTIF(Parameter!$C$3:$G$3, F53)),\"Beschreibung (optional) eingeben und Antritt/Austritt/Podest/Wand/Leer auswählen\",IF(ISBLANK(G53),\"Lagertyp auswählen\", IF(NOT(COUNTIF(Parameter!$C$4:$M$4, G53)),\"Bitte geben Sie einen korrekten Lagertyp ein \",IF(ISBLANK(H53),\"Form auswählen\", IF(NOT(COUNTIF(Parameter!$C$5:$F$5, H53)),\"Bitte geben Sie eine korrekte Form ein \",IF(ISBLANK(I53),\"Trittschallminderung auswählen\",IF(NOT(COUNTIF(Parameter!$C$6:$D$6, I53)),\"Bitte geben Sie eine korrekte Trittschallminderung ein\",  IF(AND(COUNTIF(Parameter!$L$4:$M$4,G52),I52=Parameter!$C$6), \"Achtung: TL-14000 und TL-16000 gibt es nur mit 32dB. Bitte korrigieren!\", IF(AND(H53=\"F\", ISBLANK(J53)),\"Mass A eingeben in mm\", IF(AND(H53=\"L\", OR(ISBLANK(J53), ISBLANK(K53))),\"Mass A und B eingeben in mm\", IF(AND(OR(H53=\"Z\", H53=\"U\"), OR(ISBLANK(J53), ISBLANK(K53), ISBLANK(L53))),\"Mass A, B und C eingeben in mm\", IF(AND(H53=\"F\", OR(NOT(ISBLANK(K53)),NOT(ISBLANK(L53)))),\"Nur A eingeben bei F Form, bitte Abmessungen B und C löschen\", IF(AND(H53=\"L\", NOT(ISBLANK(L53))),\"Nur A und B eingeben bei L Form, bitte Abmessung C löschen\", IF(OR(AND(OR(Parameter!$D$7>J53, J53>Parameter!$F$7), OR(H53=\"F\", H53=\"U\")), AND(OR(Parameter!$H$7>J53, J53>Parameter!$J$7), OR(H53=\"L\", H53=\"Z\"))),\"Bitte korrigiere die Abmessung A\", IF(AND(OR(Parameter!$D$8>K53, K53>Parameter!$F$8), OR(H53=\"L\", H53=\"Z\", H53=\"U\")),\"Bitte korrigiere die Abmessung B\", IF(AND(OR(Parameter!$D$9>L53, L53>Parameter!$F$9), OR(H53=\"Z\", H53=\"U\")),\"Bitte korrigiere die Abmessung C\", IF(ISBLANK(M53),\"Länge eingeben in mm\", IF(OR(Parameter!$D$10>M53, M53>Parameter!$F$10),\"Bitte korrigiere die Länge\", IF(ISBLANK(N53),\"Menge eingeben\", IF(NOT(ISNUMBER(N53)),\"Bitte korrigiere die Menge\", \"OK\"))))))))))))))))))))))","v":""},0,"",null,null,null,null,null,null,null,null,null,null,"",null,"",null,""]
[null,{"$f":"IF(LEN(D54)=0,IF(NOT(B53=\"OK\"),IF(SUMPRODUCT(--(D53:N53<>\"\"))=0,IF(AND(NOT(SUMPRODUCT(--(E54:N54<>\"\"))=0),D53=\"\"),\"Bitte keine Leerzeilen\",\"\"),IF(NOT(SUMPRODUCT(--(E54:N54<>\"\"))=0),\"Bitte korrigiere zuerst die vorherige Zeile\",\"\")),\"\"),IF(LEN(E54)>Parameter!$C$2,\"Beschreibung zu lang, bitte die Beschreibung kürzen\",IF(NOT(COUNTIF(Parameter!$C$3:$G$3, F54)),\"Beschreibung (optional) eingeben und Antritt/Austritt/Podest/Wand/Leer auswählen\",IF(ISBLANK(G54),\"Lagertyp auswählen\", IF(NOT(COUNTIF(Parameter!$C$4:$M$4, G54)),\"Bitte geben Sie einen korrekten Lagertyp ein \",IF(ISBLANK(H54),\"Form auswählen\", IF(NOT(COUNTIF(Parameter!$C$5:$F$5, H54)),\"Bitte geben Sie eine korrekte Form ein \",IF(ISBLANK(I54),\"Trittschallminderung auswählen\",IF(NOT(COUNTIF(Parameter!$C$6:$D$6, I54)),\"Bitte geben Sie eine korrekte Trittschallminderung ein\",  IF(AND(COUNTIF(Parameter!$L$4:$M$4,G53),I53=Parameter!$C$6), \"Achtung: TL-14000 und TL-16000 gibt es nur mit 32dB. Bitte korrigieren!\", IF(AND(H54=\"F\", ISBLANK(J54)),\"Mass A eingeben in mm\", IF(AND(H54=\"L\", OR(ISBLANK(J54), ISBLANK(K54))),\"Mass A und B eingeben in mm\", IF(AND(OR(H54=\"Z\", H54=\"U\"), OR(ISBLANK(J54), ISBLANK(K54), ISBLANK(L54))),\"Mass A, B und C eingeben in mm\", IF(AND(H54=\"F\", OR(NOT(ISBLANK(K54)),NOT(ISBLANK(L54)))),\"Nur A eingeben bei F Form, bitte Abmessungen B und C löschen\", IF(AND(H54=\"L\", NOT(ISBLANK(L54))),\"Nur A und B eingeben bei L Form, bitte Abmessung C löschen\", IF(OR(AND(OR(Parameter!$D$7>J54, J54>Parameter!$F$7), OR(H54=\"F\", H54=\"U\")), AND(OR(Parameter!$H$7>J54, J54>Parameter!$J$7), OR(H54=\"L\", H54=\"Z\"))),\"Bitte korrigiere die Abmessung A\", IF(AND(OR(Parameter!$D$8>K54, K54>Parameter!$F$8), OR(H54=\"L\", H54=\"Z\", H54=\"U\")),\"Bitte korrigiere die Abmessung B\", IF(AND(OR(Parameter!$D$9>L54, L54>Parameter!$F$9), OR(H54=\"Z\", H54=\"U\")),\"Bitte korrigiere die Abmessung C\", IF(ISBLANK(M54),\"Länge eingeben in mm\", IF(OR(Parameter!$D$10>M54, M54>Parameter!$F$10),\"Bitte korrigiere die Länge\", IF(ISBLANK(N54),\"Menge eingeben\", IF(NOT(ISNUMBER(N54)),\"Bitte korrigiere die Menge\", \"OK\"))))))))))))))))))))))","v":""},0,"",null,null,null,null,null,null,null,null,null,null,"",null,"",null,""]
[null,{"$f":"IF(LEN(D55)=0,IF(NOT(B54=\"OK\"),IF(SUMPRODUCT(--(D54:N54<>\"\"))=0,IF(AND(NOT(SUMPRODUCT(--(E55:N55<>\"\"))=0),D54=\"\"),\"Bitte keine Leerzeilen\",\"\"),IF(NOT(SUMPRODUCT(--(E55:N55<>\"\"))=0),\"Bitte korrigiere zuerst die vorherige Zeile\",\"\")),\"\"),IF(LEN(E55)>Parameter!$C$2,\"Beschreibung zu lang, bitte die Beschreibung kürzen\",IF(NOT(COUNTIF(Parameter!$C$3:$G$3, F55)),\"Beschreibung (optional) eingeben und Antritt/Austritt/Podest/Wand/Leer auswählen\",IF(ISBLANK(G55),\"Lagertyp auswählen\", IF(NOT(COUNTIF(Parameter!$C$4:$M$4, G55)),\"Bitte geben Sie einen korrekten Lagertyp ein \",IF(ISBLANK(H55),\"Form auswählen\", IF(NOT(COUNTIF(Parameter!$C$5:$F$5, H55)),\"Bitte geben Sie eine korrekte Form ein \",IF(ISBLANK(I55),\"Trittschallminderung auswählen\",IF(NOT(COUNTIF(Parameter!$C$6:$D$6, I55)),\"Bitte geben Sie eine korrekte Trittschallminderung ein\",  IF(AND(COUNTIF(Parameter!$L$4:$M$4,G54),I54=Parameter!$C$6), \"Achtung: TL-14000 und TL-16000 gibt es nur mit 32dB. Bitte korrigieren!\", IF(AND(H55=\"F\", ISBLANK(J55)),\"Mass A eingeben in mm\", IF(AND(H55=\"L\", OR(ISBLANK(J55), ISBLANK(K55))),\"Mass A und B eingeben in mm\", IF(AND(OR(H55=\"Z\", H55=\"U\"), OR(ISBLANK(J55), ISBLANK(K55), ISBLANK(L55))),\"Mass A, B und C eingeben in mm\", IF(AND(H55=\"F\", OR(NOT(ISBLANK(K55)),NOT(ISBLANK(L55)))),\"Nur A eingeben bei F Form, bitte Abmessungen B und C löschen\", IF(AND(H55=\"L\", NOT(ISBLANK(L55))),\"Nur A und B eingeben bei L Form, bitte Abmessung C löschen\", IF(OR(AND(OR(Parameter!$D$7>J55, J55>Parameter!$F$7), OR(H55=\"F\", H55=\"U\")), AND(OR(Parameter!$H$7>J55, J55>Parameter!$J$7), OR(H55=\"L\", H55=\"Z\"))),\"Bitte korrigiere die Abmessung A\", IF(AND(OR(Parameter!$D$8>K55, K55>Parameter!$F$8), OR(H55=\"L\", H55=\"Z\", H55=\"U\")),\"Bitte korrigiere die Abmessung B\", IF(AND(OR(Parameter!$D$9>L55, L55>Parameter!$F$9), OR(H55=\"Z\", H55=\"U\")),\"Bitte korrigiere die Abmessung C\", IF(ISBLANK(M55),\"Länge eingeben in mm\", IF(OR(Parameter!$D$10>M55, M55>Parameter!$F$10),\"Bitte korrigiere die Länge\", IF(ISBLANK(N55),\"Menge eingeben\", IF(NOT(ISNUMBER(N55)),\"Bitte korrigiere die Menge\", \"OK\"))))))))))))))))))))))","v":""},0,"",null,null,null,null,null,null,null,null,null,null,"",null,"",null,""]
[null,{"$f":"IF(LEN(D56)=0,IF(NOT(B55=\"OK\"),IF(SUMPRODUCT(--(D55:N55<>\"\"))=0,IF(AND(NOT(SUMPRODUCT(--(E56:N56<>\"\"))=0),D55=\"\"),\"Bitte keine Leerzeilen\",\"\"),IF(NOT(SUMPRODUCT(--(E56:N56<>\"\"))=0),\"Bitte korrigiere zuerst die vorherige Zeile\",\"\")),\"\"),IF(LEN(E56)>Parameter!$C$2,\"Beschreibung zu lang, bitte die Beschreibung kürzen\",IF(NOT(COUNTIF(Parameter!$C$3:$G$3, F56)),\"Beschreibung (optional) eingeben und Antritt/Austritt/Podest/Wand/Leer auswählen\",IF(ISBLANK(G56),\"Lagertyp auswählen\", IF(NOT(COUNTIF(Parameter!$C$4:$M$4, G56)),\"Bitte geben Sie einen korrekten Lagertyp ein \",IF(ISBLANK(H56),\"Form auswählen\", IF(NOT(COUNTIF(Parameter!$C$5:$F$5, H56)),\"Bitte geben Sie eine korrekte Form ein \",IF(ISBLANK(I56),\"Trittschallminderung auswählen\",IF(NOT(COUNTIF(Parameter!$C$6:$D$6, I56)),\"Bitte geben Sie eine korrekte Trittschallminderung ein\",  IF(AND(COUNTIF(Parameter!$L$4:$M$4,G55),I55=Parameter!$C$6), \"Achtung: TL-14000 und TL-16000 gibt es nur mit 32dB. Bitte korrigieren!\", IF(AND(H56=\"F\", ISBLANK(J56)),\"Mass A eingeben in mm\", IF(AND(H56=\"L\", OR(ISBLANK(J56), ISBLANK(K56))),\"Mass A und B eingeben in mm\", IF(AND(OR(H56=\"Z\", H56=\"U\"), OR(ISBLANK(J56), ISBLANK(K56), ISBLANK(L56))),\"Mass A, B und C eingeben in mm\", IF(AND(H56=\"F\", OR(NOT(ISBLANK(K56)),NOT(ISBLANK(L56)))),\"Nur A eingeben bei F Form, bitte Abmessungen B und C löschen\", IF(AND(H56=\"L\", NOT(ISBLANK(L56))),\"Nur A und B eingeben bei L Form, bitte Abmessung C löschen\", IF(OR(AND(OR(Parameter!$D$7>J56, J56>Parameter!$F$7), OR(H56=\"F\", H56=\"U\")), AND(OR(Parameter!$H$7>J56, J56>Parameter!$J$7), OR(H56=\"L\", H56=\"Z\"))),\"Bitte korrigiere die Abmessung A\", IF(AND(OR(Parameter!$D$8>K56, K56>Parameter!$F$8), OR(H56=\"L\", H56=\"Z\", H56=\"U\")),\"Bitte korrigiere die Abmessung B\", IF(AND(OR(Parameter!$D$9>L56, L56>Parameter!$F$9), OR(H56=\"Z\", H56=\"U\")),\"Bitte korrigiere die Abmessung C\", IF(ISBLANK(M56),\"Länge eingeben in mm\", IF(OR(Parameter!$D$10>M56, M56>Parameter!$F$10),\"Bitte korrigiere die Länge\", IF(ISBLANK(N56),\"Menge eingeben\", IF(NOT(ISNUMBER(N56)),\"Bitte korrigiere die Menge\", \"OK\"))))))))))))))))))))))","v":""},0,"",null,null,null,null,null,null,null,null,null,null,"",null,"",null,""]
[null,{"$f":"IF(LEN(D57)=0,IF(NOT(B56=\"OK\"),IF(SUMPRODUCT(--(D56:N56<>\"\"))=0,IF(AND(NOT(SUMPRODUCT(--(E57:N57<>\"\"))=0),D56=\"\"),\"Bitte keine Leerzeilen\",\"\"),IF(NOT(SUMPRODUCT(--(E57:N57<>\"\"))=0),\"Bitte korrigiere zuerst die vorherige Zeile\",\"\")),\"\"),IF(LEN(E57)>Parameter!$C$2,\"Beschreibung zu lang, bitte die Beschreibung kürzen\",IF(NOT(COUNTIF(Parameter!$C$3:$G$3, F57)),\"Beschreibung (optional) eingeben und Antritt/Austritt/Podest/Wand/Leer auswählen\",IF(ISBLANK(G57),\"Lagertyp auswählen\", IF(NOT(COUNTIF(Parameter!$C$4:$M$4, G57)),\"Bitte geben Sie einen korrekten Lagertyp ein \",IF(ISBLANK(H57),\"Form auswählen\", IF(NOT(COUNTIF(Parameter!$C$5:$F$5, H57)),\"Bitte geben Sie eine korrekte Form ein \",IF(ISBLANK(I57),\"Trittschallminderung auswählen\",IF(NOT(COUNTIF(Parameter!$C$6:$D$6, I57)),\"Bitte geben Sie eine korrekte Trittschallminderung ein\",  IF(AND(COUNTIF(Parameter!$L$4:$M$4,G56),I56=Parameter!$C$6), \"Achtung: TL-14000 und TL-16000 gibt es nur mit 32dB. Bitte korrigieren!\", IF(AND(H57=\"F\", ISBLANK(J57)),\"Mass A eingeben in mm\", IF(AND(H57=\"L\", OR(ISBLANK(J57), ISBLANK(K57))),\"Mass A und B eingeben in mm\", IF(AND(OR(H57=\"Z\", H57=\"U\"), OR(ISBLANK(J57), ISBLANK(K57), ISBLANK(L57))),\"Mass A, B und C eingeben in mm\", IF(AND(H57=\"F\", OR(NOT(ISBLANK(K57)),NOT(ISBLANK(L57)))),\"Nur A eingeben bei F Form, bitte Abmessungen B und C löschen\", IF(AND(H57=\"L\", NOT(ISBLANK(L57))),\"Nur A und B eingeben bei L Form, bitte Abmessung C löschen\", IF(OR(AND(OR(Parameter!$D$7>J57, J57>Parameter!$F$7), OR(H57=\"F\", H57=\"U\")), AND(OR(Parameter!$H$7>J57, J57>Parameter!$J$7), OR(H57=\"L\", H57=\"Z\"))),\"Bitte korrigiere die Abmessung A\", IF(AND(OR(Parameter!$D$8>K57, K57>Parameter!$F$8), OR(H57=\"L\", H57=\"Z\", H57=\"U\")),\"Bitte korrigiere die Abmessung B\", IF(AND(OR(Parameter!$D$9>L57, L57>Parameter!$F$9), OR(H57=\"Z\", H57=\"U\")),\"Bitte korrigiere die Abmessung C\", IF(ISBLANK(M57),\"Länge eingeben in mm\", IF(OR(Parameter!$D$10>M57, M57>Parameter!$F$10),\"Bitte korrigiere die Länge\", IF(ISBLANK(N57),\"Menge eingeben\", IF(NOT(ISNUMBER(N57)),\"Bitte korrigiere die Menge\", \"OK\"))))))))))))))))))))))","v":""},0,"",null,null,null,null,null,null,null,null,null,null,"",null,"",null,""]
[null,{"$f":"IF(LEN(D58)=0,IF(NOT(B57=\"OK\"),IF(SUMPRODUCT(--(D57:N57<>\"\"))=0,IF(AND(NOT(SUMPRODUCT(--(E58:N58<>\"\"))=0),D57=\"\"),\"Bitte keine Leerzeilen\",\"\"),IF(NOT(SUMPRODUCT(--(E58:N58<>\"\"))=0),\"Bitte korrigiere zuerst die vorherige Zeile\",\"\")),\"\"),IF(LEN(E58)>Parameter!$C$2,\"Beschreibung zu lang, bitte die Beschreibung kürzen\",IF(NOT(COUNTIF(Parameter!$C$3:$G$3, F58)),\"Beschreibung (optional) eingeben und Antritt/Austritt/Podest/Wand/Leer auswählen\",IF(ISBLANK(G58),\"Lagertyp auswählen\", IF(NOT(COUNTIF(Parameter!$C$4:$M$4, G58)),\"Bitte geben Sie einen korrekten Lagertyp ein \",IF(ISBLANK(H58),\"Form auswählen\", IF(NOT(COUNTIF(Parameter!$C$5:$F$5, H58)),\"Bitte geben Sie eine korrekte Form ein \",IF(ISBLANK(I58),\"Trittschallminderung auswählen\",IF(NOT(COUNTIF(Parameter!$C$6:$D$6, I58)),\"Bitte geben Sie eine korrekte Trittschallminderung ein\",  IF(AND(COUNTIF(Parameter!$L$4:$M$4,G57),I57=Parameter!$C$6), \"Achtung: TL-14000 und TL-16000 gibt es nur mit 32dB. Bitte korrigieren!\", IF(AND(H58=\"F\", ISBLANK(J58)),\"Mass A eingeben in mm\", IF(AND(H58=\"L\", OR(ISBLANK(J58), ISBLANK(K58))),\"Mass A und B eingeben in mm\", IF(AND(OR(H58=\"Z\", H58=\"U\"), OR(ISBLANK(J58), ISBLANK(K58), ISBLANK(L58))),\"Mass A, B und C eingeben in mm\", IF(AND(H58=\"F\", OR(NOT(ISBLANK(K58)),NOT(ISBLANK(L58)))),\"Nur A eingeben bei F Form, bitte Abmessungen B und C löschen\", IF(AND(H58=\"L\", NOT(ISBLANK(L58))),\"Nur A und B eingeben bei L Form, bitte Abmessung C löschen\", IF(OR(AND(OR(Parameter!$D$7>J58, J58>Parameter!$F$7), OR(H58=\"F\", H58=\"U\")), AND(OR(Parameter!$H$7>J58, J58>Parameter!$J$7), OR(H58=\"L\", H58=\"Z\"))),\"Bitte korrigiere die Abmessung A\", IF(AND(OR(Parameter!$D$8>K58, K58>Parameter!$F$8), OR(H58=\"L\", H58=\"Z\", H58=\"U\")),\"Bitte korrigiere die Abmessung B\", IF(AND(OR(Parameter!$D$9>L58, L58>Parameter!$F$9), OR(H58=\"Z\", H58=\"U\")),\"Bitte korrigiere die Abmessung C\", IF(ISBLANK(M58),\"Länge eingeben in mm\", IF(OR(Parameter!$D$10>M58, M58>Parameter!$F$10),\"Bitte korrigiere die Länge\", IF(ISBLANK(N58),\"Menge eingeben\", IF(NOT(ISNUMBER(N58)),\"Bitte korrigiere die Menge\", \"OK\"))))))))))))))))))))))","v":""},0,"",null,null,null,null,null,null,null,null,null,null,"",null,"",null,""]
[null,{"$f":"IF(LEN(D59)=0,IF(NOT(B58=\"OK\"),IF(SUMPRODUCT(--(D58:N58<>\"\"))=0,IF(AND(NOT(SUMPRODUCT(--(E59:N59<>\"\"))=0),D58=\"\"),\"Bitte keine Leerzeilen\",\"\"),IF(NOT(SUMPRODUCT(--(E59:N59<>\"\"))=0),\"Bitte korrigiere zuerst die vorherige Zeile\",\"\")),\"\"),IF(LEN(E59)>Parameter!$C$2,\"Beschreibung zu lang, bitte die Beschreibung kürzen\",IF(NOT(COUNTIF(Parameter!$C$3:$G$3, F59)),\"Beschreibung (optional) eingeben und Antritt/Austritt/Podest/Wand/Leer auswählen\",IF(ISBLANK(G59),\"Lagertyp auswählen\", IF(NOT(COUNTIF(Parameter!$C$4:$M$4, G59)),\"Bitte geben Sie einen korrekten Lagertyp ein \",IF(ISBLANK(H59),\"Form auswählen\", IF(NOT(COUNTIF(Parameter!$C$5:$F$5, H59)),\"Bitte geben Sie eine korrekte Form ein \",IF(ISBLANK(I59),\"Trittschallminderung auswählen\",IF(NOT(COUNTIF(Parameter!$C$6:$D$6, I59)),\"Bitte geben Sie eine korrekte Trittschallminderung ein\",  IF(AND(COUNTIF(Parameter!$L$4:$M$4,G58),I58=Parameter!$C$6), \"Achtung: TL-14000 und TL-16000 gibt es nur mit 32dB. Bitte korrigieren!\", IF(AND(H59=\"F\", ISBLANK(J59)),\"Mass A eingeben in mm\", IF(AND(H59=\"L\", OR(ISBLANK(J59), ISBLANK(K59))),\"Mass A und B eingeben in mm\", IF(AND(OR(H59=\"Z\", H59=\"U\"), OR(ISBLANK(J59), ISBLANK(K59), ISBLANK(L59))),\"Mass A, B und C eingeben in mm\", IF(AND(H59=\"F\", OR(NOT(ISBLANK(K59)),NOT(ISBLANK(L59)))),\"Nur A eingeben bei F Form, bitte Abmessungen B und C löschen\", IF(AND(H59=\"L\", NOT(ISBLANK(L59))),\"Nur A und B eingeben bei L Form, bitte Abmessung C löschen\", IF(OR(AND(OR(Parameter!$D$7>J59, J59>Parameter!$F$7), OR(H59=\"F\", H59=\"U\")), AND(OR(Parameter!$H$7>J59, J59>Parameter!$J$7), OR(H59=\"L\", H59=\"Z\"))),\"Bitte korrigiere die Abmessung A\", IF(AND(OR(Parameter!$D$8>K59, K59>Parameter!$F$8), OR(H59=\"L\", H59=\"Z\", H59=\"U\")),\"Bitte korrigiere die Abmessung B\", IF(AND(OR(Parameter!$D$9>L59, L59>Parameter!$F$9), OR(H59=\"Z\", H59=\"U\")),\"Bitte korrigiere die Abmessung C\", IF(ISBLANK(M59),\"Länge eingeben in mm\", IF(OR(Parameter!$D$10>M59, M59>Parameter!$F$10),\"Bitte korrigiere die Länge\", IF(ISBLANK(N59),\"Menge eingeben\", IF(NOT(ISNUMBER(N59)),\"Bitte korrigiere die Menge\", \"OK\"))))))))))))))))))))))","v":""},0,"",null,null,null,null,null,null,null,null,null,null,"",null,"",null,""]
[null,{"$f":"IF(LEN(D60)=0,IF(NOT(B59=\"OK\"),IF(SUMPRODUCT(--(D59:N59<>\"\"))=0,IF(AND(NOT(SUMPRODUCT(--(E60:N60<>\"\"))=0),D59=\"\"),\"Bitte keine Leerzeilen\",\"\"),IF(NOT(SUMPRODUCT(--(E60:N60<>\"\"))=0),\"Bitte korrigiere zuerst die vorherige Zeile\",\"\")),\"\"),IF(LEN(E60)>Parameter!$C$2,\"Beschreibung zu lang, bitte die Beschreibung kürzen\",IF(NOT(COUNTIF(Parameter!$C$3:$G$3, F60)),\"Beschreibung (optional) eingeben und Antritt/Austritt/Podest/Wand/Leer auswählen\",IF(ISBLANK(G60),\"Lagertyp auswählen\", IF(NOT(COUNTIF(Parameter!$C$4:$M$4, G60)),\"Bitte geben Sie einen korrekten Lagertyp ein \",IF(ISBLANK(H60),\"Form auswählen\", IF(NOT(COUNTIF(Parameter!$C$5:$F$5, H60)),\"Bitte geben Sie eine korrekte Form ein \",IF(ISBLANK(I60),\"Trittschallminderung auswählen\",IF(NOT(COUNTIF(Parameter!$C$6:$D$6, I60)),\"Bitte geben Sie eine korrekte Trittschallminderung ein\",  IF(AND(COUNTIF(Parameter!$L$4:$M$4,G59),I59=Parameter!$C$6), \"Achtung: TL-14000 und TL-16000 gibt es nur mit 32dB. Bitte korrigieren!\", IF(AND(H60=\"F\", ISBLANK(J60)),\"Mass A eingeben in mm\", IF(AND(H60=\"L\", OR(ISBLANK(J60), ISBLANK(K60))),\"Mass A und B eingeben in mm\", IF(AND(OR(H60=\"Z\", H60=\"U\"), OR(ISBLANK(J60), ISBLANK(K60), ISBLANK(L60))),\"Mass A, B und C eingeben in mm\", IF(AND(H60=\"F\", OR(NOT(ISBLANK(K60)),NOT(ISBLANK(L60)))),\"Nur A eingeben bei F Form, bitte Abmessungen B und C löschen\", IF(AND(H60=\"L\", NOT(ISBLANK(L60))),\"Nur A und B eingeben bei L Form, bitte Abmessung C löschen\", IF(OR(AND(OR(Parameter!$D$7>J60, J60>Parameter!$F$7), OR(H60=\"F\", H60=\"U\")), AND(OR(Parameter!$H$7>J60, J60>Parameter!$J$7), OR(H60=\"L\", H60=\"Z\"))),\"Bitte korrigiere die Abmessung A\", IF(AND(OR(Parameter!$D$8>K60, K60>Parameter!$F$8), OR(H60=\"L\", H60=\"Z\", H60=\"U\")),\"Bitte korrigiere die Abmessung B\", IF(AND(OR(Parameter!$D$9>L60, L60>Parameter!$F$9), OR(H60=\"Z\", H60=\"U\")),\"Bitte korrigiere die Abmessung C\", IF(ISBLANK(M60),\"Länge eingeben in mm\", IF(OR(Parameter!$D$10>M60, M60>Parameter!$F$10),\"Bitte korrigiere die Länge\", IF(ISBLANK(N60),\"Menge eingeben\", IF(NOT(ISNUMBER(N60)),\"Bitte korrigiere die Menge\", \"OK\"))))))))))))))))))))))","v":""},0,"",null,null,null,null,null,null,null,null,null,null,"",null,"",null,""]
[null,{"$f":"IF(LEN(D61)=0,IF(NOT(B60=\"OK\"),IF(SUMPRODUCT(--(D60:N60<>\"\"))=0,IF(AND(NOT(SUMPRODUCT(--(E61:N61<>\"\"))=0),D60=\"\"),\"Bitte keine Leerzeilen\",\"\"),IF(NOT(SUMPRODUCT(--(E61:N61<>\"\"))=0),\"Bitte korrigiere zuerst die vorherige Zeile\",\"\")),\"\"),IF(LEN(E61)>Parameter!$C$2,\"Beschreibung zu lang, bitte die Beschreibung kürzen\",IF(NOT(COUNTIF(Parameter!$C$3:$G$3, F61)),\"Beschreibung (optional) eingeben und Antritt/Austritt/Podest/Wand/Leer auswählen\",IF(ISBLANK(G61),\"Lagertyp auswählen\", IF(NOT(COUNTIF(Parameter!$C$4:$M$4, G61)),\"Bitte geben Sie einen korrekten Lagertyp ein \",IF(ISBLANK(H61),\"Form auswählen\", IF(NOT(COUNTIF(Parameter!$C$5:$F$5, H61)),\"Bitte geben Sie eine korrekte Form ein \",IF(ISBLANK(I61),\"Trittschallminderung auswählen\",IF(NOT(COUNTIF(Parameter!$C$6:$D$6, I61)),\"Bitte geben Sie eine korrekte Trittschallminderung ein\",  IF(AND(COUNTIF(Parameter!$L$4:$M$4,G60),I60=Parameter!$C$6), \"Achtung: TL-14000 und TL-16000 gibt es nur mit 32dB. Bitte korrigieren!\", IF(AND(H61=\"F\", ISBLANK(J61)),\"Mass A eingeben in mm\", IF(AND(H61=\"L\", OR(ISBLANK(J61), ISBLANK(K61))),\"Mass A und B eingeben in mm\", IF(AND(OR(H61=\"Z\", H61=\"U\"), OR(ISBLANK(J61), ISBLANK(K61), ISBLANK(L61))),\"Mass A, B und C eingeben in mm\", IF(AND(H61=\"F\", OR(NOT(ISBLANK(K61)),NOT(ISBLANK(L61)))),\"Nur A eingeben bei F Form, bitte Abmessungen B und C löschen\", IF(AND(H61=\"L\", NOT(ISBLANK(L61))),\"Nur A und B eingeben bei L Form, bitte Abmessung C löschen\", IF(OR(AND(OR(Parameter!$D$7>J61, J61>Parameter!$F$7), OR(H61=\"F\", H61=\"U\")), AND(OR(Parameter!$H$7>J61, J61>Parameter!$J$7), OR(H61=\"L\", H61=\"Z\"))),\"Bitte korrigiere die Abmessung A\", IF(AND(OR(Parameter!$D$8>K61, K61>Parameter!$F$8), OR(H61=\"L\", H61=\"Z\", H61=\"U\")),\"Bitte korrigiere die Abmessung B\", IF(AND(OR(Parameter!$D$9>L61, L61>Parameter!$F$9), OR(H61=\"Z\", H61=\"U\")),\"Bitte korrigiere die Abmessung C\", IF(ISBLANK(M61),\"Länge eingeben in mm\", IF(OR(Parameter!$D$10>M61, M61>Parameter!$F$10),\"Bitte korrigiere die Länge\", IF(ISBLANK(N61),\"Menge eingeben\", IF(NOT(ISNUMBER(N61)),\"Bitte korrigiere die Menge\", \"OK\"))))))))))))))))))))))","v":""},0,"",null,null,null,null,null,null,null,null,null,null,"",null,"",null,""]
[null,{"$f":"IF(LEN(D62)=0,IF(NOT(B61=\"OK\"),IF(SUMPRODUCT(--(D61:N61<>\"\"))=0,IF(AND(NOT(SUMPRODUCT(--(E62:N62<>\"\"))=0),D61=\"\"),\"Bitte keine Leerzeilen\",\"\"),IF(NOT(SUMPRODUCT(--(E62:N62<>\"\"))=0),\"Bitte korrigiere zuerst die vorherige Zeile\",\"\")),\"\"),IF(LEN(E62)>Parameter!$C$2,\"Beschreibung zu lang, bitte die Beschreibung kürzen\",IF(NOT(COUNTIF(Parameter!$C$3:$G$3, F62)),\"Beschreibung (optional) eingeben und Antritt/Austritt/Podest/Wand/Leer auswählen\",IF(ISBLANK(G62),\"Lagertyp auswählen\", IF(NOT(COUNTIF(Parameter!$C$4:$M$4, G62)),\"Bitte geben Sie einen korrekten Lagertyp ein \",IF(ISBLANK(H62),\"Form auswählen\", IF(NOT(COUNTIF(Parameter!$C$5:$F$5, H62)),\"Bitte geben Sie eine korrekte Form ein \",IF(ISBLANK(I62),\"Trittschallminderung auswählen\",IF(NOT(COUNTIF(Parameter!$C$6:$D$6, I62)),\"Bitte geben Sie eine korrekte Trittschallminderung ein\",  IF(AND(COUNTIF(Parameter!$L$4:$M$4,G61),I61=Parameter!$C$6), \"Achtung: TL-14000 und TL-16000 gibt es nur mit 32dB. Bitte korrigieren!\", IF(AND(H62=\"F\", ISBLANK(J62)),\"Mass A eingeben in mm\", IF(AND(H62=\"L\", OR(ISBLANK(J62), ISBLANK(K62))),\"Mass A und B eingeben in mm\", IF(AND(OR(H62=\"Z\", H62=\"U\"), OR(ISBLANK(J62), ISBLANK(K62), ISBLANK(L62))),\"Mass A, B und C eingeben in mm\", IF(AND(H62=\"F\", OR(NOT(ISBLANK(K62)),NOT(ISBLANK(L62)))),\"Nur A eingeben bei F Form, bitte Abmessungen B und C löschen\", IF(AND(H62=\"L\", NOT(ISBLANK(L62))),\"Nur A und B eingeben bei L Form, bitte Abmessung C löschen\", IF(OR(AND(OR(Parameter!$D$7>J62, J62>Parameter!$F$7), OR(H62=\"F\", H62=\"U\")), AND(OR(Parameter!$H$7>J62, J62>Parameter!$J$7), OR(H62=\"L\", H62=\"Z\"))),\"Bitte korrigiere die Abmessung A\", IF(AND(OR(Parameter!$D$8>K62, K62>Parameter!$F$8), OR(H62=\"L\", H62=\"Z\", H62=\"U\")),\"Bitte korrigiere die Abmessung B\", IF(AND(OR(Parameter!$D$9>L62, L62>Parameter!$F$9), OR(H62=\"Z\", H62=\"U\")),\"Bitte korrigiere die Abmessung C\", IF(ISBLANK(M62),\"Länge eingeben in mm\", IF(OR(Parameter!$D$10>M62, M62>Parameter!$F$10),\"Bitte korrigiere die Länge\", IF(ISBLANK(N62),\"Menge eingeben\", IF(NOT(ISNUMBER(N62)),\"Bitte korrigiere die Menge\", \"OK\"))))))))))))))))))))))","v":""},0,"",null,null,null,null,null,null,null,null,null,null,{"$f":"IF(NOT(D62=\"\"), IF(J62 > 600, \"Ja\", \"Nein\"),\"\")","v":""},null,"",null,""]
[null,{"$f":"IF(LEN(D63)=0,IF(NOT(B62=\"OK\"),IF(SUMPRODUCT(--(D62:N62<>\"\"))=0,IF(AND(NOT(SUMPRODUCT(--(E63:N63<>\"\"))=0),D62=\"\"),\"Bitte keine Leerzeilen\",\"\"),IF(NOT(SUMPRODUCT(--(E63:N63<>\"\"))=0),\"Bitte korrigiere zuerst die vorherige Zeile\",\"\")),\"\"),IF(LEN(E63)>Parameter!$C$2,\"Beschreibung zu lang, bitte die Beschreibung kürzen\",IF(NOT(COUNTIF(Parameter!$C$3:$G$3, F63)),\"Beschreibung (optional) eingeben und Antritt/Austritt/Podest/Wand/Leer auswählen\",IF(ISBLANK(G63),\"Lagertyp auswählen\", IF(NOT(COUNTIF(Parameter!$C$4:$M$4, G63)),\"Bitte geben Sie einen korrekten Lagertyp ein \",IF(ISBLANK(H63),\"Form auswählen\", IF(NOT(COUNTIF(Parameter!$C$5:$F$5, H63)),\"Bitte geben Sie eine korrekte Form ein \",IF(ISBLANK(I63),\"Trittschallminderung auswählen\",IF(NOT(COUNTIF(Parameter!$C$6:$D$6, I63)),\"Bitte geben Sie eine korrekte Trittschallminderung ein\",  IF(AND(COUNTIF(Parameter!$L$4:$M$4,G62),I62=Parameter!$C$6), \"Achtung: TL-14000 und TL-16000 gibt es nur mit 32dB. Bitte korrigieren!\", IF(AND(H63=\"F\", ISBLANK(J63)),\"Mass A eingeben in mm\", IF(AND(H63=\"L\", OR(ISBLANK(J63), ISBLANK(K63))),\"Mass A und B eingeben in mm\", IF(AND(OR(H63=\"Z\", H63=\"U\"), OR(ISBLANK(J63), ISBLANK(K63), ISBLANK(L63))),\"Mass A, B und C eingeben in mm\", IF(AND(H63=\"F\", OR(NOT(ISBLANK(K63)),NOT(ISBLANK(L63)))),\"Nur A eingeben bei F Form, bitte Abmessungen B und C löschen\", IF(AND(H63=\"L\", NOT(ISBLANK(L63))),\"Nur A und B eingeben bei L Form, bitte Abmessung C löschen\", IF(OR(AND(OR(Parameter!$D$7>J63, J63>Parameter!$F$7), OR(H63=\"F\", H63=\"U\")), AND(OR(Parameter!$H$7>J63, J63>Parameter!$J$7), OR(H63=\"L\", H63=\"Z\"))),\"Bitte korrigiere die Abmessung A\", IF(AND(OR(Parameter!$D$8>K63, K63>Parameter!$F$8), OR(H63=\"L\", H63=\"Z\", H63=\"U\")),\"Bitte korrigiere die Abmessung B\", IF(AND(OR(Parameter!$D$9>L63, L63>Parameter!$F$9), OR(H63=\"Z\", H63=\"U\")),\"Bitte korrigiere die Abmessung C\", IF(ISBLANK(M63),\"Länge eingeben in mm\", IF(OR(Parameter!$D$10>M63, M63>Parameter!$F$10),\"Bitte korrigiere die Länge\", IF(ISBLANK(N63),\"Menge eingeben\", IF(NOT(ISNUMBER(N63)),\"Bitte korrigiere die Menge\", \"OK\"))))))))))))))))))))))","v":""},0,"",null,null,null,null,null,null,null,null,null,null,"",null,"",null,""]
[null,{"$f":"IF(LEN(D64)=0,IF(NOT(B63=\"OK\"),IF(SUMPRODUCT(--(D63:N63<>\"\"))=0,IF(AND(NOT(SUMPRODUCT(--(E64:N64<>\"\"))=0),D63=\"\"),\"Bitte keine Leerzeilen\",\"\"),IF(NOT(SUMPRODUCT(--(E64:N64<>\"\"))=0),\"Bitte korrigiere zuerst die vorherige Zeile\",\"\")),\"\"),IF(LEN(E64)>Parameter!$C$2,\"Beschreibung zu lang, bitte die Beschreibung kürzen\",IF(NOT(COUNTIF(Parameter!$C$3:$G$3, F64)),\"Beschreibung (optional) eingeben und Antritt/Austritt/Podest/Wand/Leer auswählen\",IF(ISBLANK(G64),\"Lagertyp auswählen\", IF(NOT(COUNTIF(Parameter!$C$4:$M$4, G64)),\"Bitte geben Sie einen korrekten Lagertyp ein \",IF(ISBLANK(H64),\"Form auswählen\", IF(NOT(COUNTIF(Parameter!$C$5:$F$5, H64)),\"Bitte geben Sie eine korrekte Form ein \",IF(ISBLANK(I64),\"Trittschallminderung auswählen\",IF(NOT(COUNTIF(Parameter!$C$6:$D$6, I64)),\"Bitte geben Sie eine korrekte Trittschallminderung ein\",  IF(AND(COUNTIF(Parameter!$L$4:$M$4,G63),I63=Parameter!$C$6), \"Achtung: TL-14000 und TL-16000 gibt es nur mit 32dB. Bitte korrigieren!\", IF(AND(H64=\"F\", ISBLANK(J64)),\"Mass A eingeben in mm\", IF(AND(H64=\"L\", OR(ISBLANK(J64), ISBLANK(K64))),\"Mass A und B eingeben in mm\", IF(AND(OR(H64=\"Z\", H64=\"U\"), OR(ISBLANK(J64), ISBLANK(K64), ISBLANK(L64))),\"Mass A, B und C eingeben in mm\", IF(AND(H64=\"F\", OR(NOT(ISBLANK(K64)),NOT(ISBLANK(L64)))),\"Nur A eingeben bei F Form, bitte Abmessungen B und C löschen\", IF(AND(H64=\"L\", NOT(ISBLANK(L64))),\"Nur A und B eingeben bei L Form, bitte Abmessung C löschen\", IF(OR(AND(OR(Parameter!$D$7>J64, J64>Parameter!$F$7), OR(H64=\"F\", H64=\"U\")), AND(OR(Parameter!$H$7>J64, J64>Parameter!$J$7), OR(H64=\"L\", H64=\"Z\"))),\"Bitte korrigiere die Abmessung A\", IF(AND(OR(Parameter!$D$8>K64, K64>Parameter!$F$8), OR(H64=\"L\", H64=\"Z\", H64=\"U\")),\"Bitte korrigiere die Abmessung B\", IF(AND(OR(Parameter!$D$9>L64, L64>Parameter!$F$9), OR(H64=\"Z\", H64=\"U\")),\"Bitte korrigiere die Abmessung C\", IF(ISBLANK(M64),\"Länge eingeben in mm\", IF(OR(Parameter!$D$10>M64, M64>Parameter!$F$10),\"Bitte korrigiere die Länge\", IF(ISBLANK(N64),\"Menge eingeben\", IF(NOT(ISNUMBER(N64)),\"Bitte korrigiere die Menge\", \"OK\"))))))))))))))))))))))","v":""},0,"",null,null,null,null,null,null,null,null,null,null,"",null,"",null,""]
[null,{"$f":"IF(LEN(D65)=0,IF(NOT(B64=\"OK\"),IF(SUMPRODUCT(--(D64:N64<>\"\"))=0,IF(AND(NOT(SUMPRODUCT(--(E65:N65<>\"\"))=0),D64=\"\"),\"Bitte keine Leerzeilen\",\"\"),IF(NOT(SUMPRODUCT(--(E65:N65<>\"\"))=0),\"Bitte korrigiere zuerst die vorherige Zeile\",\"\")),\"\"),IF(LEN(E65)>Parameter!$C$2,\"Beschreibung zu lang, bitte die Beschreibung kürzen\",IF(NOT(COUNTIF(Parameter!$C$3:$G$3, F65)),\"Beschreibung (optional) eingeben und Antritt/Austritt/Podest/Wand/Leer auswählen\",IF(ISBLANK(G65),\"Lagertyp auswählen\", IF(NOT(COUNTIF(Parameter!$C$4:$M$4, G65)),\"Bitte geben Sie einen korrekten Lagertyp ein \",IF(ISBLANK(H65),\"Form auswählen\", IF(NOT(COUNTIF(Parameter!$C$5:$F$5, H65)),\"Bitte geben Sie eine korrekte Form ein \",IF(ISBLANK(I65),\"Trittschallminderung auswählen\",IF(NOT(COUNTIF(Parameter!$C$6:$D$6, I65)),\"Bitte geben Sie eine korrekte Trittschallminderung ein\",  IF(AND(COUNTIF(Parameter!$L$4:$M$4,G64),I64=Parameter!$C$6), \"Achtung: TL-14000 und TL-16000 gibt es nur mit 32dB. Bitte korrigieren!\", IF(AND(H65=\"F\", ISBLANK(J65)),\"Mass A eingeben in mm\", IF(AND(H65=\"L\", OR(ISBLANK(J65), ISBLANK(K65))),\"Mass A und B eingeben in mm\", IF(AND(OR(H65=\"Z\", H65=\"U\"), OR(ISBLANK(J65), ISBLANK(K65), ISBLANK(L65))),\"Mass A, B und C eingeben in mm\", IF(AND(H65=\"F\", OR(NOT(ISBLANK(K65)),NOT(ISBLANK(L65)))),\"Nur A eingeben bei F Form, bitte Abmessungen B und C löschen\", IF(AND(H65=\"L\", NOT(ISBLANK(L65))),\"Nur A und B eingeben bei L Form, bitte Abmessung C löschen\", IF(OR(AND(OR(Parameter!$D$7>J65, J65>Parameter!$F$7), OR(H65=\"F\", H65=\"U\")), AND(OR(Parameter!$H$7>J65, J65>Parameter!$J$7), OR(H65=\"L\", H65=\"Z\"))),\"Bitte korrigiere die Abmessung A\", IF(AND(OR(Parameter!$D$8>K65, K65>Parameter!$F$8), OR(H65=\"L\", H65=\"Z\", H65=\"U\")),\"Bitte korrigiere die Abmessung B\", IF(AND(OR(Parameter!$D$9>L65, L65>Parameter!$F$9), OR(H65=\"Z\", H65=\"U\")),\"Bitte korrigiere die Abmessung C\", IF(ISBLANK(M65),\"Länge eingeben in mm\", IF(OR(Parameter!$D$10>M65, M65>Parameter!$F$10),\"Bitte korrigiere die Länge\", IF(ISBLANK(N65),\"Menge eingeben\", IF(NOT(ISNUMBER(N65)),\"Bitte korrigiere die Menge\", \"OK\"))))))))))))))))))))))","v":""},0,"",null,null,null,null,null,null,null,null,null,null,"",null,"",null,""]
[null,{"$f":"IF(LEN(D66)=0,IF(NOT(B65=\"OK\"),IF(SUMPRODUCT(--(D65:N65<>\"\"))=0,IF(AND(NOT(SUMPRODUCT(--(E66:N66<>\"\"))=0),D65=\"\"),\"Bitte keine Leerzeilen\",\"\"),IF(NOT(SUMPRODUCT(--(E66:N66<>\"\"))=0),\"Bitte korrigiere zuerst die vorherige Zeile\",\"\")),\"\"),IF(LEN(E66)>Parameter!$C$2,\"Beschreibung zu lang, bitte die Beschreibung kürzen\",IF(NOT(COUNTIF(Parameter!$C$3:$G$3, F66)),\"Beschreibung (optional) eingeben und Antritt/Austritt/Podest/Wand/Leer auswählen\",IF(ISBLANK(G66),\"Lagertyp auswählen\", IF(NOT(COUNTIF(Parameter!$C$4:$M$4, G66)),\"Bitte geben Sie einen korrekten Lagertyp ein \",IF(ISBLANK(H66),\"Form auswählen\", IF(NOT(COUNTIF(Parameter!$C$5:$F$5, H66)),\"Bitte geben Sie eine korrekte Form ein \",IF(ISBLANK(I66),\"Trittschallminderung auswählen\",IF(NOT(COUNTIF(Parameter!$C$6:$D$6, I66)),\"Bitte geben Sie eine korrekte Trittschallminderung ein\",  IF(AND(COUNTIF(Parameter!$L$4:$M$4,G65),I65=Parameter!$C$6), \"Achtung: TL-14000 und TL-16000 gibt es nur mit 32dB. Bitte korrigieren!\", IF(AND(H66=\"F\", ISBLANK(J66)),\"Mass A eingeben in mm\", IF(AND(H66=\"L\", OR(ISBLANK(J66), ISBLANK(K66))),\"Mass A und B eingeben in mm\", IF(AND(OR(H66=\"Z\", H66=\"U\"), OR(ISBLANK(J66), ISBLANK(K66), ISBLANK(L66))),\"Mass A, B und C eingeben in mm\", IF(AND(H66=\"F\", OR(NOT(ISBLANK(K66)),NOT(ISBLANK(L66)))),\"Nur A eingeben bei F Form, bitte Abmessungen B und C löschen\", IF(AND(H66=\"L\", NOT(ISBLANK(L66))),\"Nur A und B eingeben bei L Form, bitte Abmessung C löschen\", IF(OR(AND(OR(Parameter!$D$7>J66, J66>Parameter!$F$7), OR(H66=\"F\", H66=\"U\")), AND(OR(Parameter!$H$7>J66, J66>Parameter!$J$7), OR(H66=\"L\", H66=\"Z\"))),\"Bitte korrigiere die Abmessung A\", IF(AND(OR(Parameter!$D$8>K66, K66>Parameter!$F$8), OR(H66=\"L\", H66=\"Z\", H66=\"U\")),\"Bitte korrigiere die Abmessung B\", IF(AND(OR(Parameter!$D$9>L66, L66>Parameter!$F$9), OR(H66=\"Z\", H66=\"U\")),\"Bitte korrigiere die Abmessung C\", IF(ISBLANK(M66),\"Länge eingeben in mm\", IF(OR(Parameter!$D$10>M66, M66>Parameter!$F$10),\"Bitte korrigiere die Länge\", IF(ISBLANK(N66),\"Menge eingeben\", IF(NOT(ISNUMBER(N66)),\"Bitte korrigiere die Menge\", \"OK\"))))))))))))))))))))))","v":""},0,"",null,null,null,null,null,null,null,null,null,null,"",null,"",null,""]
[null,{"$f":"IF(LEN(D67)=0,IF(NOT(B66=\"OK\"),IF(SUMPRODUCT(--(D66:N66<>\"\"))=0,IF(AND(NOT(SUMPRODUCT(--(E67:N67<>\"\"))=0),D66=\"\"),\"Bitte keine Leerzeilen\",\"\"),IF(NOT(SUMPRODUCT(--(E67:N67<>\"\"))=0),\"Bitte korrigiere zuerst die vorherige Zeile\",\"\")),\"\"),IF(LEN(E67)>Parameter!$C$2,\"Beschreibung zu lang, bitte die Beschreibung kürzen\",IF(NOT(COUNTIF(Parameter!$C$3:$G$3, F67)),\"Beschreibung (optional) eingeben und Antritt/Austritt/Podest/Wand/Leer auswählen\",IF(ISBLANK(G67),\"Lagertyp auswählen\", IF(NOT(COUNTIF(Parameter!$C$4:$M$4, G67)),\"Bitte geben Sie einen korrekten Lagertyp ein \",IF(ISBLANK(H67),\"Form auswählen\", IF(NOT(COUNTIF(Parameter!$C$5:$F$5, H67)),\"Bitte geben Sie eine korrekte Form ein \",IF(ISBLANK(I67),\"Trittschallminderung auswählen\",IF(NOT(COUNTIF(Parameter!$C$6:$D$6, I67)),\"Bitte geben Sie eine korrekte Trittschallminderung ein\",  IF(AND(COUNTIF(Parameter!$L$4:$M$4,G66),I66=Parameter!$C$6), \"Achtung: TL-14000 und TL-16000 gibt es nur mit 32dB. Bitte korrigieren!\", IF(AND(H67=\"F\", ISBLANK(J67)),\"Mass A eingeben in mm\", IF(AND(H67=\"L\", OR(ISBLANK(J67), ISBLANK(K67))),\"Mass A und B eingeben in mm\", IF(AND(OR(H67=\"Z\", H67=\"U\"), OR(ISBLANK(J67), ISBLANK(K67), ISBLANK(L67))),\"Mass A, B und C eingeben in mm\", IF(AND(H67=\"F\", OR(NOT(ISBLANK(K67)),NOT(ISBLANK(L67)))),\"Nur A eingeben bei F Form, bitte Abmessungen B und C löschen\", IF(AND(H67=\"L\", NOT(ISBLANK(L67))),\"Nur A und B eingeben bei L Form, bitte Abmessung C löschen\", IF(OR(AND(OR(Parameter!$D$7>J67, J67>Parameter!$F$7), OR(H67=\"F\", H67=\"U\")), AND(OR(Parameter!$H$7>J67, J67>Parameter!$J$7), OR(H67=\"L\", H67=\"Z\"))),\"Bitte korrigiere die Abmessung A\", IF(AND(OR(Parameter!$D$8>K67, K67>Parameter!$F$8), OR(H67=\"L\", H67=\"Z\", H67=\"U\")),\"Bitte korrigiere die Abmessung B\", IF(AND(OR(Parameter!$D$9>L67, L67>Parameter!$F$9), OR(H67=\"Z\", H67=\"U\")),\"Bitte korrigiere die Abmessung C\", IF(ISBLANK(M67),\"Länge eingeben in mm\", IF(OR(Parameter!$D$10>M67, M67>Parameter!$F$10),\"Bitte korrigiere die Länge\", IF(ISBLANK(N67),\"Menge eingeben\", IF(NOT(ISNUMBER(N67)),\"Bitte korrigiere die Menge\", \"OK\"))))))))))))))))))))))","v":""},0,"",null,null,null,null,null,null,null,null,null,null,"",null,"",null,""]
[null,{"$f":"IF(B67=\"OK\",\"Falls Sie weitere Treppenlagern bestellen wollen, erstelle ein zweites Excel und sende diese mit.\",\"\")","v":""},null,null,null,null,null,null,null,null,"Total Treppenlager",null,null,{"$f":"SUM(N33:N67)","v":0}]
[]
[]
[null,null,null,"Zusatzprodukte"]
["↓ Zusatzprodukte ↓"]
["00)  Kein Zusatzprodukt","00)  Kein Zusatzprodukt",null,"Kein Zusatzprodukt"]
["00)  Kein Zusatzprodukt","00)  Kein Zusatzprodukt"]
["00)  Kein Zusatzprodukt","00)  Kein Zusatzprodukt"]
["01)  Zusatzprodukte ","01)  Zusatzprodukte ",null,"Frei wählbare Zusatzprodukte "]
["01)  Zusatzprodukte ","01)  Zusatzprodukte ",null,"Position",null,"Bezeichnung",null,null,null,"Bemerkungen",null,null,null,null,null,null,"Menge"]
["01)  Zusatzprodukte ","01)  Zusatzprodukte ",null,null,null,null,null,null,null," ",null,null,null,null,null,null,"-"]
["01)  Zusatzprodukte ","01)  Zusatzprodukte ",null,null,null,null,null,null,null,null,null,null,null,null,null,null,"-"]
["01)  Zusatzprodukte ","01)  Zusatzprodukte ",null,null,null,null,null,null,null,null,null,null,null,null,null,null,"-"]
["01)  Zusatzprodukte ","01)  Zusatzprodukte ",null,null,null,null,null,null,null,null,null,null,null,null,null,null,"-"]
["01)  Zusatzprodukte ","01)  Zusatzprodukte ",null,null,null,null,null,null,null,null,null,null,null,null,null,null,"-"]
["01)  Zusatzprodukte ","01)  Zusatzprodukte ",null,null,null,null,null,null,null,null,null,null,null,null,null,null,"-"]
["01)  Zusatzprodukte ","01)  Zusatzprodukte "]
["02)  ISODORN ","02)  ISODORN ",null,"ISODORN"]
["02)  ISODORN ","02)  ISODORN ",null,null,null,null,null,null,null,null,null,null,null,"Werk","Baustelle",null,"Menge"]
["02)  ISODORN ","02)  ISODORN ",null,null,null,"ISODORN TYP A",null,null," ",null,null,null,null,"r","r",null,"-"]
["02)  ISODORN ","02)  ISODORN ",null,null,null,"ISODORN TYP B",null,null,null,null,null,null,null,"r","r",null,"-"]
["02)  ISODORN ","02)  ISODORN ",null,null,null,"Stahleinbau-Hülse zu ISODORN-A / -B ",null,null,null,null,null,null,null,"r","r",null,"-"]
["02)  ISODORN ","02)  ISODORN ",null,null,null,"Bemerkungen: "]
["02)  ISODORN ","02)  ISODORN "]
["03)  ISOTRESI","03)  ISOTRESI",null,"ISOTRESI "]
["03)  ISOTRESI","03)  ISOTRESI",null,null,null,null,null,null,null,null,null,null,null,"Werk","Baustelle",null,"Menge"]
["03)  ISOTRESI","03)  ISOTRESI",null,null,null,"ISOTRESI Sicherungswinkel  inkl. Bolzenanker",null,null,null,null,null,null,null,"r","r",null,"-"]
["03)  ISOTRESI","03)  ISOTRESI",null,null,null,"Bemerkungen: "]
["03)  ISOTRESI","03)  ISOTRESI"]
["04)  ISOLA-35-45  -  BE","04)  ISOLA-35-45  -  BE",null,"Podestlager-System ISOLA-35-45-BE",null,null,null,null,null,null,null,null,null,null,"Bestellmenge"]
["04)  ISOLA-35-45  -  BE","04)  ISOLA-35-45  -  BE",null,null,null,null,null,null,null,null,null,null,"Werk","Baustelle","Einzelteile",null,"Komplett"]
["04)  ISOLA-35-45  -  BE","04)  ISOLA-35-45  -  BE",null,null,null,"ISOLA-35-45-BE",null,null,null,"Wandabstand:","……","mm",null,null,null,null,"-"]
["04)  ISOLA-35-45  -  BE","04)  ISOLA-35-45  -  BE",null,null,null,"  ○ Schallschutzgehäuse ISOLA 35dB ",null,null,null,null,null,null,"r","r","-"]
["04)  ISOLA-35-45  -  BE","04)  ISOLA-35-45  -  BE",null,null,null,"  ○ Querkraftdorn 80/40 ",null,"r","330-X","r","330-X-EP",null,"r","r","-"]
["04)  ISOLA-35-45  -  BE","04)  ISOLA-35-45  -  BE",null,null,null,null,null,"r","330-S","r","500-X-EP "]
["04)  ISOLA-35-45  -  BE","04)  ISOLA-35-45  -  BE",null,null,null,"  ○ Elementeinbauhülse ELBOX-60 ",null,null,null,null,null,null,"r","r","-"]
["04)  ISOLA-35-45  -  BE","04)  ISOLA-35-45  -  BE",null,null,null,"  ○ Elementeinbauhülse ELBOX-160 ",null,null,null,null,null,null,"r","r","-"]
["04)  ISOLA-35-45  -  BE","04)  ISOLA-35-45  -  BE",null,null,null,"  ○ Armierungsbügel zu ELBOX ",null,null,null,null,null,null,"r","r","-"]
["04)  ISOLA-35-45  -  BE","04)  ISOLA-35-45  -  BE",null,null,null,"Bemerkungen: "]
["04)  ISOLA-35-45  -  BE","04)  ISOLA-35-45  -  BE"]
["05)  ISOLA  Zubehör  -  BE","05)  ISOLA  Zubehör  -  BE",null,"Zubehör zu ISOLA-35-45-BE"]
["05)  ISOLA  Zubehör  -  BE","05)  ISOLA  Zubehör  -  BE",null,null,null,"Zubehör ",null,null,null,null,null,null,null,"Werk","Baustelle",null,"Menge"]
["05)  ISOLA  Zubehör  -  BE","05)  ISOLA  Zubehör  -  BE",null,null,null," • Doppelarmierungsbügel zu ELBOX ",null,null,null,null,null,null,null,"r","r",null,"-"]
["05)  ISOLA  Zubehör  -  BE","05)  ISOLA  Zubehör  -  BE",null,null,null," • Armierungsbügel zu Schallschutzgehäuse ISOLA  ",null,null,null,null,null,null,null,"r","r",null,"-"]
["05)  ISOLA  Zubehör  -  BE","05)  ISOLA  Zubehör  -  BE",null,null,null," • Doppelarmierungsbügel zu Schallschutzgehäuse ISOLA   ",null,null,null,null,null,null,null,"r","r",null,"-"]
["05)  ISOLA  Zubehör  -  BE","05)  ISOLA  Zubehör  -  BE",null,null,null,"Bemerkungen: "]
["05)  ISOLA  Zubehör  -  BE","05)  ISOLA  Zubehör  -  BE"]
["05)  ISOLA  Zubehör  -  BE","05)  ISOLA  Zubehör  -  BE"]
["06)  ISOLA-35-45  -  OB","06)  ISOLA-35-45  -  OB",null,"Podestlager-System ISOLA-35-45-OB",null,null,null,null,null,null,null,null,null,null,"Bestellmenge"]
["06)  ISOLA-35-45  -  OB","06)  ISOLA-35-45  -  OB",null,null,null,null,null,null,null,null,null,null,null,null,"Einzelteile",null,"Komplett"]
["06)  ISOLA-35-45  -  OB","06)  ISOLA-35-45  -  OB",null,null,null,"ISOLA-35-45-OB",null,null,null,null,"Wandabstand:","……","mm",null,null,null,"-"]
["06)  ISOLA-35-45  -  OB","06)  ISOLA-35-45  -  OB",null,null,null,"  ○ Schallschutzgehäuse ISOLA 35dB ",null,null,null,null,null,null,null,null,"-"]
["06)  ISOLA-35-45  -  OB","06)  ISOLA-35-45  -  OB",null,null,null,"  ○ Querkraftdorn 80/40 ",null,"r","330-X","r","330-X-EP",null,null,null,"-"]
["06)  ISOLA-35-45  -  OB","06)  ISOLA-35-45  -  OB",null,null,null,null,null,"r","330-S","r","500-X-EP "]
["06)  ISOLA-35-45  -  OB","06)  ISOLA-35-45  -  OB",null,null,null,"  ○ Armierungsbügel zu Querkraftdorn ",null,null,null,null,null,null,null,null,"-"]
["06)  ISOLA-35-45  -  OB","06)  ISOLA-35-45  -  OB",null,null,null,"Bemerkungen: "]
["06)  ISOLA-35-45  -  OB","06)  ISOLA-35-45  -  OB"]
["07)  ISOLA  Zubehör  -  OB","07)  ISOLA  Zubehör  -  OB",null,"Zubehör zu ISOLA-35-45-OB"]
["07)  ISOLA  Zubehör  -  OB","07)  ISOLA  Zubehör  -  OB",null,null,null,"Zubehör ",null,null,null,null,null,null,null,null,null,null,"Menge"]
["07)  ISOLA  Zubehör  -  OB","07)  ISOLA  Zubehör  -  OB",null,null,null," • Doppelarmierungsbügel zu Querkraftdorn 80/40",null,null,null,null,null,null,null,null,null,null,"-"]
["07)  ISOLA  Zubehör  -  OB","07)  ISOLA  Zubehör  -  OB",null,null,null," • Armierungsbügel zu Schallschutzgehäuse ISOLA  ",null,null,null,null,null,null,null,null,null,null,"-"]
["07)  ISOLA  Zubehör  -  OB","07)  ISOLA  Zubehör  -  OB",null,null,null," • Doppelarmierungsbügel zu Schallschutzgehäuse ISOLA   ",null,null,null,null,null,null,null,null,null,null,"-"]
["07)  ISOLA  Zubehör  -  OB","07)  ISOLA  Zubehör  -  OB",null,null,null,"Bemerkungen: "]
["07)  ISOLA  Zubehör  -  OB","07)  ISOLA  Zubehör  -  OB"]
["07)  ISOLA  Zubehör  -  OB","07)  ISOLA  Zubehör  -  OB"]
["08)  ISOMODUL-28-45  -  BE","08)  ISOMODUL-28-45  -  BE",null,"Podestlager-System ISOMODUL-28-45-BE",null,null,null,null,null,null,null,null,null,null,"Bestellmenge"]
["08)  ISOMODUL-28-45  -  BE","08)  ISOMODUL-28-45  -  BE",null,null,null,null,null,null,null,null,null,null,"Werk","Baustelle","Einzelteile",null,"Komplett"]
["08)  ISOMODUL-28-45  -  BE","08)  ISOMODUL-28-45  -  BE",null,null,null,"ISOMODUL-28-45-BE",null,null,null,"Wandabstand:","……","mm",null,null,null,null,"-"]
["08)  ISOMODUL-28-45  -  BE","08)  ISOMODUL-28-45  -  BE",null,null,null,"  ○ Schallschutzkappe ISOMODUL 28dB",null,null,null,null,null,null,"r","r","-"]
["08)  ISOMODUL-28-45  -  BE","08)  ISOMODUL-28-45  -  BE",null,null,null,"  ○ Querkraftdorn 80/40 ",null,"r","330-X","r","330-X-EP",null,"r","r","-"]
["08)  ISOMODUL-28-45  -  BE","08)  ISOMODUL-28-45  -  BE",null,null,null,null,null,"r","330-S","r","500-X-EP "]
["08)  ISOMODUL-28-45  -  BE","08)  ISOMODUL-28-45  -  BE",null,null,null,"  ○ Elementeinbauhülse ELBOX-60 ",null,null,null,"(Dorn 330) ",null,null,"r","r","-"]
["08)  ISOMODUL-28-45  -  BE","08)  ISOMODUL-28-45  -  BE",null,null,null,"  ○ Elementeinbauhülse ELBOX-160 ",null,null,null,"(Dorn 500) ",null,null,"r","r","-"]
["08)  ISOMODUL-28-45  -  BE","08)  ISOMODUL-28-45  -  BE",null,null,null,"  ○ Armierungsbügel zu ELBOX ",null,null,null,null,null,null,"r","r","-"]
["08)  ISOMODUL-28-45  -  BE","08)  ISOMODUL-28-45  -  BE",null,null,null,"Bemerkungen: "]
["08)  ISOMODUL-28-45  -  BE","08)  ISOMODUL-28-45  -  BE"]
["09)  ISOMODUL  Zubehör  -  BE ","09)  ISOMODUL  Zubehör  -  BE ",null,"Zubehör zu ISOMODUL-28-45-BE"]
["09)  ISOMODUL  Zubehör  -  BE ","09)  ISOMODUL  Zubehör  -  BE ",null,null,null,"Zubehör ",null,null,null,null,null,null,null,"Werk","Baustelle",null,"Menge"]
["09)  ISOMODUL  Zubehör  -  BE ","09)  ISOMODUL  Zubehör  -  BE ",null,null,null," • Einbaugehäuse ISOMODUL ",null,null,null,null,null,null,null,"r","r",null,"-"]
["09)  ISOMODUL  Zubehör  -  BE ","09)  ISOMODUL  Zubehör  -  BE ",null,null,null," • Doppelarmierungsbügel zu ELBOX ",null,null,null,null,null,null,null,"r","r",null,"-"]
["09)  ISOMODUL  Zubehör  -  BE ","09)  ISOMODUL  Zubehör  -  BE ",null,null,null," • Armierungsbügel zum Einbaugehäuse ISOMODUL  ",null,null,null,null,null,null,null,"r","r",null,"-"]
["09)  ISOMODUL  Zubehör  -  BE ","09)  ISOMODUL  Zubehör  -  BE ",null,null,null," • Doppelarmierungsbügel zum Einbaugehäuse ISOMODUL",null,null,null,null,null,null,null,"r","r",null,"-"]
["09)  ISOMODUL  Zubehör  -  BE ","09)  ISOMODUL  Zubehör  -  BE ",null,null,null,"Bemerkungen: "]
["09)  ISOMODUL  Zubehör  -  BE ","09)  ISOMODUL  Zubehör  -  BE "]
["09)  ISOMODUL  Zubehör  -  BE ","09)  ISOMODUL  Zubehör  -  BE "]
["10)  ISOMODUL-28-45  -  OB","10)  ISOMODUL-28-45  -  OB",null,"Podestlager-System ISOMODUL-28-45-OB",null,null,null,null,null,null,null,null,null,null,"Bestellmenge"]
["10)  ISOMODUL-28-45  -  OB","10)  ISOMODUL-28-45  -  OB",null,null,null,"ISOMODUL-28-45-OB",null,null,null,null,"Wandabstand:","……","mm",null,"Einzelteile",null,"Komplett"]
["10)  ISOMODUL-28-45  -  OB","10)  ISOMODUL-28-45  -  OB",null,null,null," ○ Schallschutzkappe ISOMODUL 28dB",null,null,null,null,null,null,null,null,"-",null,"-"]
["10)  ISOMODUL-28-45  -  OB","10)  ISOMODUL-28-45  -  OB",null,null,null," ○ Einbaugehäuse ISOMODUL  ",null,null,null,null,null,null,null,null,"-"]
["10)  ISOMODUL-28-45  -  OB","10)  ISOMODUL-28-45  -  OB",null,null,null," ○ Querkraftdorn 80/40 ",null,"r","330-X","r","330-X-EP",null,null,null,"-"]
["10)  ISOMODUL-28-45  -  OB","10)  ISOMODUL-28-45  -  OB",null,null,null,null,null,"r","330-S","r","500-X-EP "]
["10)  ISOMODUL-28-45  -  OB","10)  ISOMODUL-28-45  -  OB",null,null,null," ○ Armierungsbügel zu Querkraftdorn ",null,null,null,null,null,null,null,null,"-"]
["10)  ISOMODUL-28-45  -  OB","10)  ISOMODUL-28-45  -  OB",null,null,null,"Bemerkungen: "]
["10)  ISOMODUL-28-45  -  OB","10)  ISOMODUL-28-45  -  OB"]
["11)  ISOMODUL  Zubehör  -  OB","11)  ISOMODUL  Zubehör  -  OB",null,"Zubehör zu ISOMODUL-28-45-OB "]
["11)  ISOMODUL  Zubehör  -  OB","11)  ISOMODUL  Zubehör  -  OB",null,null,null,"Zubehör ",null,null,null,null,null,null,null,null,null,null,"Menge"]
["11)  ISOMODUL  Zubehör  -  OB","11)  ISOMODUL  Zubehör  -  OB",null,null,null," • Doppelarmierungsbügel zu Querkraftdorn 80/40",null,null,null,null,null,null,null,null,null,null,"-"]
["11)  ISOMODUL  Zubehör  -  OB","11)  ISOMODUL  Zubehör  -  OB",null,null,null," • Armierungsbügel zum Einbaugehäuse ISOMODUL  ",null,null,null,null,null,null,null,null,null,null,"-"]
["11)  ISOMODUL  Zubehör  -  OB","11)  ISOMODUL  Zubehör  -  OB",null,null,null," • Doppelarmierungsbügel zu Einbaugehäuse ISOMODUL",null,null,null,null,null,null,null,null,null,null,"-"]
["11)  ISOMODUL  Zubehör  -  OB","11)  ISOMODUL  Zubehör  -  OB",null,null,null,"Bemerkungen: "]
["11)  ISOMODUL  Zubehör  -  OB","11)  ISOMODUL  Zubehör  -  OB"]
["11)  ISOMODUL  Zubehör  -  OB","11)  ISOMODUL  Zubehör  -  OB"]
["12)  ISOSCALA-28-30","12)  ISOSCALA-28-30",null,"Podestlager-System ISOSCALA-28-30",null,null,null,null,null,null,null,null,null,null,"Bestellmenge"]
["12)  ISOSCALA-28-30","12)  ISOSCALA-28-30",null,null,null,null,null,null,null,null,null,null,"Werk","Baustelle","Einzelteile",null,"Menge"]
["12)  ISOSCALA-28-30","12)  ISOSCALA-28-30",null,null,null,"ISOSCALA-28-30",null,null,null,"Wandabstand:","……","mm",null,null,null,null,"-"]
["12)  ISOSCALA-28-30","12)  ISOSCALA-28-30",null,null,null,"  ○ Schallschutzgehäuse ISOSCALA-28-30 ",null,null,null,null,null,null,"r","r","-"]
["12)  ISOSCALA-28-30","12)  ISOSCALA-28-30",null,null,null,"  ○ Querkraftdorn Ø25",null,null,null,null,null,null,"r","r","-"]
["12)  ISOSCALA-28-30","12)  ISOSCALA-28-30",null,null,null,"  ○ Armierungshülse zu Querkraftdorn Ø25 ",null,null,null,null,null,null,"r","r","-"]
["12)  ISOSCALA-28-30","12)  ISOSCALA-28-30",null,null,null,"Bemerkungen: "]
["12)  ISOSCALA-28-30","12)  ISOSCALA-28-30"]
["13)  ISOSCALA-28-47 ","13)  ISOSCALA-28-47 ",null,"Podestlager-System ISOSCALA-28-47 ",null,null,null,null,null,null,null,null,null,null,"Bestellmenge"]
["13)  ISOSCALA-28-47 ","13)  ISOSCALA-28-47 ",null,null,null,null,null,null,null,null,null,null,"Werk","Baustelle","Einzelteile",null,"Menge"]
["13)  ISOSCALA-28-47 ","13)  ISOSCALA-28-47 ",null,null,null,"ISOSCALA-28-47",null,null,null,"Wandabstand:","……","mm",null,null,null,null,"-"]
["13)  ISOSCALA-28-47 ","13)  ISOSCALA-28-47 ",null,null,null,"  ○ Schallschutzgehäuse ISOSCALA-28-47",null,null,null,null,null,null,"r","r","-"]
["13)  ISOSCALA-28-47 ","13)  ISOSCALA-28-47 ",null,null,null,"  ○ Querkraftdorn Ø36",null,null,null,null,null,null,"r","r","-"]
["13)  ISOSCALA-28-47 ","13)  ISOSCALA-28-47 ",null,null,null,"  ○ Armierungshülse zu Querkraftdorn Ø36",null,null,null,null,null,null,"r","r","-"]
["13)  ISOSCALA-28-47 ","13)  ISOSCALA-28-47 ",null,null,null,"Bemerkungen: "]
["13)  ISOSCALA-28-47 ","13)  ISOSCALA-28-47 "]
["14)  ISOSCALA-28-60 ","14)  ISOSCALA-28-60 ",null,"Podestlager-System ISOSCALA-28-60 ",null,null,null,null,null,null,null,null,null,null,"Bestellmenge"]
["14)  ISOSCALA-28-60 ","14)  ISOSCALA-28-60 ",null,null,null,null,null,null,null,null,null,null,"Werk","Baustelle","Einzelteile",null,"Menge"]
["14)  ISOSCALA-28-60 ","14)  ISOSCALA-28-60 ",null,null,null,"ISOSCALA-28-60",null,null,null,"Wandabstand:","……","mm",null,null,null,null,"-"]
["14)  ISOSCALA-28-60 ","14)  ISOSCALA-28-60 ",null,null,null,"  ○ Schallschutzgehäuse ISOSCALA-28-60",null,null,null,null,null,null,"r","r","-"]
["14)  ISOSCALA-28-60 ","14)  ISOSCALA-28-60 ",null,null,null,"  ○ Querkraftdorn Ø36",null,null,null,null,null,null,"r","r","-"]
["14)  ISOSCALA-28-60 ","14)  ISOSCALA-28-60 ",null,null,null,"  ○ Armierungshülse zu Querkraftdorn Ø36",null,null,null,null,null,null,"r","r","-"]
["14)  ISOSCALA-28-60 ","14)  ISOSCALA-28-60 ",null,null,null,"Bemerkungen: "]
["14)  ISOSCALA-28-60 ","14)  ISOSCALA-28-60 "]
["15)  ISOTRON-28-50 ","15)  ISOTRON-28-50 ",null," Podestlager-System ISOTRON-28-50 ",null,null,null,null,null,null,null,null,null,null,"Bestellmenge"]
["15)  ISOTRON-28-50 ","15)  ISOTRON-28-50 ",null,null,null,null,null,null,null,null,null,null,"Werk","Baustelle","Einzelteile",null,"Menge"]
["15)  ISOTRON-28-50 ","15)  ISOTRON-28-50 ",null,null,null,"SOTRON-28-50",null,null,null,null,null,null,null,null,null,null,"-"]
["15)  ISOTRON-28-50 ","15)  ISOTRON-28-50 ",null,null,null,"  ○ Schallschutzgehäuse  ISOTRON 28dB",null,null,null,null,null,null,"r","r","-"]
["15)  ISOTRON-28-50 ","15)  ISOTRON-28-50 ",null,null,null,"  ○ Armierungselement ",null,null,null,null,null,null,"r","r","-"]
["15)  ISOTRON-28-50 ","15)  ISOTRON-28-50 ",null,null,null,"Bemerkungen: "]
["15)  ISOTRON-28-50 ","15)  ISOTRON-28-50 "]
["16)  ISOPE mit Klett.","16)  ISOPE mit Klett.",null,"Schallweiche Trennfugen ISOPE mit Klett."]
["16)  ISOPE mit Klett.","16)  ISOPE mit Klett.",null,null,null,"Randstellstreifen ISOPE mit Klettverschluss, à1m¹ ",null,null,null,null,null,null,null,"Werk","Baustelle",null,"Menge"]
["16)  ISOPE mit Klett.","16)  ISOPE mit Klett.",null,null,null,"ISOPE ","Dicke","-",null,"Breite","-",null,null,"r","r",null,"-"]
["16)  ISOPE mit Klett.","16)  ISOPE mit Klett.",null,null,null,"Optional: ","für Dicken 10mm + 20mm ",null,null,"r","Antrazit ",null,null,null,null,"(auf Wunsch bitte ankreuzen)"]
["16)  ISOPE mit Klett.","16)  ISOPE mit Klett.",null,null,null,"Bemerkungen: "]
["16)  ISOPE mit Klett.","16)  ISOPE mit Klett."]
["17)  ISOPE ohne Klett.","17)  ISOPE ohne Klett.",null,"Schallweiche Trennfugen ISOPE ohne Klett."]
["17)  ISOPE ohne Klett.","17)  ISOPE ohne Klett.",null,null,null,"Randstellstreifen ISOPE ohne Klettverschluss, à1m¹ ",null,null,null,null,null,null,null,"Werk","Baustelle",null,"Menge"]
["17)  ISOPE ohne Klett.","17)  ISOPE ohne Klett.",null,null,null,"ISOPE ","Dicke","-",null,"Breite","-",null,null,"r","r",null,"-"]
["17)  ISOPE ohne Klett.","17)  ISOPE ohne Klett.",null,null,null,"Optional: ","für Dicken 10mm + 20mm ",null,null,"r","Antrazit ",null,null,null,null,"(auf Wunsch bitte ankreuzen)"]
["17)  ISOPE ohne Klett.","17)  ISOPE ohne Klett.",null,null,null,"Bemerkungen: "]
["17)  ISOPE ohne Klett.","17)  ISOPE ohne Klett."]
["18)  ISOSTRANG Rundprofil ","18)  ISOSTRANG Rundprofil ",null,"Schallweiche Trennfugen Rundprofil ISOSTRANG"]
["18)  ISOSTRANG Rundprofil ","18)  ISOSTRANG Rundprofil ",null,null,null,null,null,null,null,null,null,null,null,"Werk","Baustelle",null,"Menge"]
["18)  ISOSTRANG Rundprofil ","18)  ISOSTRANG Rundprofil ",null,null,null,"ISOSTRANG  Rundprofil, Rollenlänge 100 m ",null,null,null,null,"Ø",13,null,"r","r",null,"-"]
["18)  ISOSTRANG Rundprofil ","18)  ISOSTRANG Rundprofil ",null,null,null,"ISOSTRANG  Rundprofil, Rollenlänge 50 m ",null,null,null,null,"Ø",20,null,"r","r",null,"-"]
["18)  ISOSTRANG Rundprofil ","18)  ISOSTRANG Rundprofil ",null,null,null,"ISOSTRANG  Rundprofil, Rollenlänge 25 m ",null,null,null,null,"Ø",30,null,"r","r",null,"-"]
["18)  ISOSTRANG Rundprofil ","18)  ISOSTRANG Rundprofil ",null,null,null,"Bemerkungen: "]
["18)  ISOSTRANG Rundprofil ","18)  ISOSTRANG Rundprofil "]
["19)  ISOSHIFT Schiftplatten ","19)  ISOSHIFT Schiftplatten ",null," ISOSHIFT Schiftplatten "]
["19)  ISOSHIFT Schiftplatten ","19)  ISOSHIFT Schiftplatten ",null,null,null,"Schiftplatten ISOSHIFT, Länge 1000mm, Breite 80mm ",null,null,null,null,null,null,null,"Werk","Baustelle",null,"Menge"]
["19)  ISOSHIFT Schiftplatten ","19)  ISOSHIFT Schiftplatten ",null,null,null,"ISOSHIFT  ",null,null,null,"Dicke",2,null,null,"r","r",null,"-"]
["19)  ISOSHIFT Schiftplatten ","19)  ISOSHIFT Schiftplatten ",null,null,null,"ISOSHIFT  ",null,null,null,"Dicke",5,null,null,"r","r",null,"-"]
["19)  ISOSHIFT Schiftplatten ","19)  ISOSHIFT Schiftplatten ",null,null,null,"ISOSHIFT  ",null,null,null,"Dicke",10,null,null,"r","r",null,"-"]
["19)  ISOSHIFT Schiftplatten ","19)  ISOSHIFT Schiftplatten ",null,null,null,"Bemerkungen: "]
["19)  ISOSHIFT Schiftplatten ","19)  ISOSHIFT Schiftplatten "]
["20)  ELKRAG ohne Brandschutz eckig","20)  ELKRAG ohne Brandschutz eckig",null,"Seitentrennung ELKRAG ohne Brandschutz für ISOLA + ISOMODUL Podestlager"]
["20)  ELKRAG ohne Brandschutz eckig","20)  ELKRAG ohne Brandschutz eckig",null,null,null,"ELKRAG ohne Brandschutz für ISOLA + ISOMODUL Podestlager ",null,null,null,null,null,null,null,"Werk","Baustelle",null,"Menge"]
["20)  ELKRAG ohne Brandschutz eckig","20)  ELKRAG ohne Brandschutz eckig",null,null,null,"ELKRAG-E ",null,null,null,"Dicke","…….",null,null,"r","r",null,"-"]
["20)  ELKRAG ohne Brandschutz eckig","20)  ELKRAG ohne Brandschutz eckig",null,null,null,"Optional: ","für Dicken 10mm + 20mm ",null,null,"r","Antrazit ",null,null,null,null,"(auf Wunsch bitte ankreuzen)"]
["20)  ELKRAG ohne Brandschutz eckig","20)  ELKRAG ohne Brandschutz eckig",null,null,null,"Bemerkungen: "]
["20)  ELKRAG ohne Brandschutz eckig","20)  ELKRAG ohne Brandschutz eckig"]
["21)  ELKRAG mit Brandschutz eckig","21)  ELKRAG mit Brandschutz eckig",null,"Seitentrennung ELKRAG mit Brandschutz für ISOLA + ISOMODUL Podestlager "]
["21)  ELKRAG mit Brandschutz eckig","21)  ELKRAG mit Brandschutz eckig",null,null,null,"ELKRAG mit Brandschutz für ISOLA + ISOMODUL Podestlager ",null,null,null,null,null,null,null,"Werk","Baustelle",null,"Menge"]
["21)  ELKRAG mit Brandschutz eckig","21)  ELKRAG mit Brandschutz eckig",null,null,null,"ELKRAG-E-R",null,null,null,"Dicke","…….",null,null,"r","r",null,"-"]
["21)  ELKRAG mit Brandschutz eckig","21)  ELKRAG mit Brandschutz eckig",null,null,null,"Optional: ","für Dicken 10mm + 20mm ",null,null,"r","Antrazit ",null,null,null,null,"(auf Wunsch bitte ankreuzen)"]
["21)  ELKRAG mit Brandschutz eckig","21)  ELKRAG mit Brandschutz eckig",null,null,null,"Bemerkungen: "]
["21)  ELKRAG mit Brandschutz eckig","21)  ELKRAG mit Brandschutz eckig"]
["22)  ELKRAG ohne Brandschutz Loch Ø 36","22)  ELKRAG ohne Brandschutz Loch Ø 36",null," Seitentrennung ELKRAG ohne Brandschutz für ISOSCALA-28-47 /-60 Podestlager "]
["22)  ELKRAG ohne Brandschutz Loch Ø 36","22)  ELKRAG ohne Brandschutz Loch Ø 36",null,null,null,"ELKRAG ohne Brandschutz für ISOSCALA-28-30 Podestlager ",null,null,null,null,null,null,null,"Werk","Baustelle",null,"Menge"]
["22)  ELKRAG ohne Brandschutz Loch Ø 36","22)  ELKRAG ohne Brandschutz Loch Ø 36",null,null,null,"ELKRAG-R-36",null,null,null,"Dicke","…….",null,null,"r","r",null,"-"]
["22)  ELKRAG ohne Brandschutz Loch Ø 36","22)  ELKRAG ohne Brandschutz Loch Ø 36",null,null,null,"Optional: ","für Dicken 10mm + 20mm ",null,null,"r","Antrazit ",null,null,null,null,"(auf Wunsch bitte ankreuzen)"]
["22)  ELKRAG ohne Brandschutz Loch Ø 36","22)  ELKRAG ohne Brandschutz Loch Ø 36",null,null,null,"Bemerkungen: "]
["22)  ELKRAG ohne Brandschutz Loch Ø 36","22)  ELKRAG ohne Brandschutz Loch Ø 36"]
["23)  ELKRAG mit Brandschutz Loch Ø 36","23)  ELKRAG mit Brandschutz Loch Ø 36",null," Seitentrennung ELKRAG mit Brandschutz für ISOSCALA-28-47 /-60 Podestlager "]
["23)  ELKRAG mit Brandschutz Loch Ø 36","23)  ELKRAG mit Brandschutz Loch Ø 36",null,null,null,"ELKRAG mit Brandschutz für ISOSCALA-28-47 /-60 Podestlager",null,null,null,null,null,null,null,"Werk","Baustelle",null,"Menge"]
["23)  ELKRAG mit Brandschutz Loch Ø 36","23)  ELKRAG mit Brandschutz Loch Ø 36",null,null,null,"ELKRAG-R-36",null,null,null,"Dicke","…….",null,null,"r","r",null,"-"]
["23)  ELKRAG mit Brandschutz Loch Ø 36","23)  ELKRAG mit Brandschutz Loch Ø 36",null,null,null,"Optional: ","für Dicken 10mm + 20mm ",null,null,"r","Antrazit ",null,null,null,null,"(auf Wunsch bitte ankreuzen)"]
["23)  ELKRAG mit Brandschutz Loch Ø 36","23)  ELKRAG mit Brandschutz Loch Ø 36",null,null,null,"Bemerkungen: "]
["23)  ELKRAG mit Brandschutz Loch Ø 36","23)  ELKRAG mit Brandschutz Loch Ø 36"]
["24)  ELKRAG ohne Brandschutz Loch Ø 25","24)  ELKRAG ohne Brandschutz Loch Ø 25",null,"Seitentrennung ELKRAG ohne Brandschutz für ISOSCALA-28-30 Podestlager "]
["24)  ELKRAG ohne Brandschutz Loch Ø 25","24)  ELKRAG ohne Brandschutz Loch Ø 25",null,null,null,"ELKRAG ohne Brandschutz für ISOSCALA-28-30 Podestlager ",null,null,null,null,null,null,null,"Werk","Baustelle",null,"Menge"]
["24)  ELKRAG ohne Brandschutz Loch Ø 25","24)  ELKRAG ohne Brandschutz Loch Ø 25",null,null,null,"ELKRAG-R-25",null,null,null,"Dicke","…….",null,null,"r","r",null,"-"]
["24)  ELKRAG ohne Brandschutz Loch Ø 25","24)  ELKRAG ohne Brandschutz Loch Ø 25",null,null,null,"Optional: ","für Dicken 10mm + 20mm ",null,null,"r","Antrazit ",null,null,null,null,"(auf Wunsch bitte ankreuzen)"]
["24)  ELKRAG ohne Brandschutz Loch Ø 25","24)  ELKRAG ohne Brandschutz Loch Ø 25",null,null,null,"Bemerkungen: "]
["24)  ELKRAG ohne Brandschutz Loch Ø 25","24)  ELKRAG ohne Brandschutz Loch Ø 25"]
["25)  ELKRAG mit Brandschutz Loch Ø 25","25)  ELKRAG mit Brandschutz Loch Ø 25",null,"Seitentrennung ELKRAG mit Brandschutz für ISOSCALA-28-30 Podestlager"]
["25)  ELKRAG mit Brandschutz Loch Ø 25","25)  ELKRAG mit Brandschutz Loch Ø 25",null,null,null,"ELKRAG mit Brandschutz für ISOSCALA-28-30 Podestlager ",null,null,null,null,null,null,null,"Werk","Baustelle",null,"Menge"]
["25)  ELKRAG mit Brandschutz Loch Ø 25","25)  ELKRAG mit Brandschutz Loch Ø 25",null,null,null,"ELKRAG-R-25",null,null,null,"Dicke","…….",null,null,"r","r",null,"-"]
["25)  ELKRAG mit Brandschutz Loch Ø 25","25)  ELKRAG mit Brandschutz Loch Ø 25",null,null,null,"Optional: ","für Dicken 10mm + 20mm ",null,null,"r","Antrazit ",null,null,null,null,"(auf Wunsch bitte ankreuzen)"]
["25)  ELKRAG mit Brandschutz Loch Ø 25","25)  ELKRAG mit Brandschutz Loch Ø 25",null,null,null,"Bemerkungen: "]
["25)  ELKRAG mit Brandschutz Loch Ø 25","25)  ELKRAG mit Brandschutz Loch Ø 25"]
["26)  ISOTREPP 36 dB",null,null,"ISOTREPP"]
["26)  ISOTREPP 36 dB",null,null,null,"F-Form",null,"L-Form",null,null,null,"Z-Form",null,null,null,"U-Form"]
["26)  ISOTREPP 36 dB"]
["26)  ISOTREPP 36 dB"]
["26)  ISOTREPP 36 dB"]
["26)  ISOTREPP 36 dB"]
["26)  ISOTREPP 36 dB"]
["26)  ISOTREPP 36 dB"]
["26)  ISOTREPP 36 dB"]
["26)  ISOTREPP 36 dB",null,"Beschreibungslänge"]
["26)  ISOTREPP 36 dB",null,null,"#",{"$f":"\"Beschreibung (Freitext)                                       (max. \"&Parameter!$C$2&\" Zeichen)\"","v":"Beschreibung (Freitext)                                       (max. 25 Zeichen)"}," \nAntritt \nAustritt\nPodest \nWand","Lagertyp                "," Form (F/L/Z/U)","Trittschallminderung ΔL*W  (36 dB)","Abmessungen mm",null,null,null," Bestell-Menge \n(Stk.)","Falls A > 600mm                         4-Punkt-Lager                        ",null,"Pläne mitsenden",null,"Wegfall Anschlagspunkte"]
["26)  ISOTREPP 36 dB"]
["26)  ISOTREPP 36 dB"]
["26)  ISOTREPP 36 dB"]
["26)  ISOTREPP 36 dB",null,null,null,null,null,null,null,null,"A","B","C","Länge"]
["26)  ISOTREPP 36 dB"]
["26)  ISOTREPP 36 dB",null,null,null,null,null,null,null,null,null,"Mass b","Mass c","Mass l"]
["26)  ISOTREPP 36 dB",{"$f":"IF(LEN(D280)=0,\"\", IF(LEN(E280)>Parameter!$C$2,\"Beschreibung zu lang, bitte die Beschreibung kürzen\",IF(NOT(COUNTIF(Parameter!$C$3:$G$3, F280)),\"Beschreibung (optional) eingeben und Antritt/Austritt/Podest/Wand/Leer auswählen\",IF(ISBLANK(G280),\"Lagertyp auswählen\", IF(NOT(COUNTIF(Parameter!$C$4:$L$4, G280)),\"Bitte geben Sie einen korrekten Lagertyp ein \",IF(ISBLANK(H280),\"Form auswählen\", IF(NOT(COUNTIF(Parameter!$C$5:$F$5, H280)),\"Bitte geben Sie eine korrekte Form ein \",IF(ISBLANK(I280),\"Trittschallminderung auswählen\",IF(NOT(COUNTIF(Parameter!$E$6, I280)),\"Bitte geben Sie eine korrekte Trittschallminderung ein\", IF(AND(H280=\"F\", ISBLANK(J280)),\"Mass A eingeben in mm\", IF(AND(H280=\"L\", OR(ISBLANK(J280), ISBLANK(K280))),\"Mass A und B eingeben in mm\", IF(AND(OR(H280=\"Z\", H280=\"U\"), OR(ISBLANK(J280), ISBLANK(K280), ISBLANK(L280))),\"Mass A, B und C eingeben in mm\", IF(AND(H280=\"F\", OR(NOT(ISBLANK(K280)),NOT(ISBLANK(L280)))),\"Nur A eingeben bei F Form, bitte Abmessungen B und C löschen\", IF(AND(H280=\"L\", NOT(ISBLANK(L280))),\"Nur A und B eingeben bei L Form, bitte Abmessung C löschen\", IF(OR(AND(OR(Parameter!$D$7>J280, J280>Parameter!$F$7), OR(H280=\"F\", H280=\"U\")), AND(OR(Parameter!$H$7>J280, J280>Parameter!$J$7), OR(H280=\"L\", H280=\"Z\"))),\"Bitte korrigiere die Abmessung A\", IF(AND(OR(Parameter!$D$8>K280, K280>Parameter!$F$8), OR(H280=\"L\", H280=\"Z\", H280=\"U\")),\"Bitte korrigiere die Abmessung B\", IF(AND(OR(Parameter!$D$9>L280, L280>Parameter!$F$9), OR(H280=\"Z\", H280=\"U\")),\"Bitte korrigiere die Abmessung C\", IF(ISBLANK(M280),\"Länge eingeben in mm\", IF(OR(Parameter!$D$10>M280, M280>Parameter!$F$10),\"Bitte korrigiere die Länge\", IF(ISBLANK(N280),\"Menge eingeben\", IF(NOT(ISNUMBER(N280)),\"Bitte korrigiere die Menge\", \"OK\")))))))))))))))))))))","v":"Beschreibung (optional) eingeben und Antritt/Austritt/Podest/Wand/Leer auswählen"},{"$f":"LEN(E280)","v":0},1,null,null,null,null,null,null,null,null,null,null,{"$f":"IF(NOT(D280=\"\"), IF(J280 > 600, \"Ja\", \"Nein\"),\"\")","v":"Nein"},null,{"$f":"IF(NOT(D280=\"\"), IF(O280=\"Ja\", \"X\", \"\"), \"\")","v":""},null,{"$f":"IF(NOT(D280=\"\"), IF(AND(K280<53,NOT(ISBLANK(K280)), OR(H280=\"L\", H280=\"Z\")), \"X\", \"\"), \"\")","v":""}]
["26)  ISOTREPP 36 dB",{"$f":"IF(LEN(D281)=0,IF(NOT(B280=\"OK\"),IF(SUMPRODUCT(--(D280:N280<>\"\"))=0,IF(AND(NOT(SUMPRODUCT(--(E281:N281<>\"\"))=0),D280=\"\"),\"Bitte keine Leerzeilen\",\"\"),IF(NOT(SUMPRODUCT(--(E281:N281<>\"\"))=0),\"Bitte korrigiere zuerst die vorherige Zeile\",\"\")),\"\"),IF(LEN(E281)>Parameter!$C$2,\"Beschreibung zu lang, bitte die Beschreibung kürzen\",IF(NOT(COUNTIF(Parameter!$C$3:$G$3,F281)),\"Beschreibung (optional) eingeben und Antritt/Austritt/Podest/Wand/Leer auswählen\",IF(ISBLANK(G281),\"Lagertyp auswählen\",IF(NOT(COUNTIF(Parameter!$C$4:$L$4,G281)),\"Bitte geben Sie einen korrekten Lagertyp ein \",IF(ISBLANK(H281),\"Form auswählen\",IF(NOT(COUNTIF(Parameter!$C$5:$F$5,H281)),\"Bitte geben Sie eine korrekte Form ein \",IF(ISBLANK(I281),\"Trittschallminderung auswählen\",IF(NOT(COUNTIF(Parameter!$E$6,I281)),\"Bitte geben Sie eine korrekte Trittschallminderung ein\",IF(AND(H281=\"F\",ISBLANK(J281)),\"Mass A eingeben in mm\",IF(AND(H281=\"L\",OR(ISBLANK(J281),ISBLANK(K281))),\"Mass A und B eingeben in mm\",IF(AND(OR(H281=\"Z\",H281=\"U\"),OR(ISBLANK(J281),ISBLANK(K281),ISBLANK(L281))),\"Mass A, B und C eingeben in mm\",IF(AND(H281=\"F\",OR(NOT(ISBLANK(K281)),NOT(ISBLANK(L281)))),\"Nur A eingeben bei F Form, bitte Abmessungen B und C löschen\",IF(AND(H281=\"L\",NOT(ISBLANK(L281))),\"Nur A und B eingeben bei L Form, bitte Abmessung C löschen\",IF(OR(AND(OR(Parameter!$D$7>J281,J281>Parameter!$F$7),OR(H281=\"F\",H281=\"U\")),AND(OR(Parameter!$H$7>J281,J281>Parameter!$J$7),OR(H281=\"L\",H281=\"Z\"))),\"Bitte korrigiere die Abmessung A\",IF(AND(OR(Parameter!$D$8>K281,K281>Parameter!$F$8),OR(H281=\"L\",H281=\"Z\",H281=\"U\")),\"Bitte korrigiere die Abmessung B\",IF(AND(OR(Parameter!$D$9>L281,L281>Parameter!$F$9),OR(H281=\"Z\",H281=\"U\")),\"Bitte korrigiere die Abmessung C\",IF(ISBLANK(M281),\"Länge eingeben in mm\",IF(OR(Parameter!$D$10>M281,M281>Parameter!$F$10),\"Bitte korrigiere die Länge\",IF(ISBLANK(N281),\"Menge eingeben\",IF(NOT(ISNUMBER(N281)),\"Bitte korrigiere die Menge\",\"OK\")))))))))))))))))))))","v":""},{"$f":"LEN(E281)","v":0},{"$f":"IF(OR(ISBLANK(N280), NOT(B280=\"OK\")),\"\",D280+1)","v":""},null,null,null,null,null,null,null,null,null,null,"",null,"",null,{"$f":"IF(NOT(D281=\"\"), IF(AND(K281<53,NOT(ISBLANK(K281)), OR(H281=\"L\", H281=\"Z\")), \"X\", \"\"), \"\")","v":""}]
["26)  ISOTREPP 36 dB",{"$f":"IF(LEN(D282)=0,IF(NOT(B281=\"OK\"),IF(SUMPRODUCT(--(D281:N281<>\"\"))=0,IF(AND(NOT(SUMPRODUCT(--(E282:N282<>\"\"))=0),D281=\"\"),\"Bitte keine Leerzeilen\",\"\"),IF(NOT(SUMPRODUCT(--(E282:N282<>\"\"))=0),\"Bitte korrigiere zuerst die vorherige Zeile\",\"\")),\"\"),IF(LEN(E282)>Parameter!$C$2,\"Beschreibung zu lang, bitte die Beschreibung kürzen\",IF(NOT(COUNTIF(Parameter!$C$3:$G$3,F282)),\"Beschreibung (optional) eingeben und Antritt/Austritt/Podest/Wand/Leer auswählen\",IF(ISBLANK(G282),\"Lagertyp auswählen\",IF(NOT(COUNTIF(Parameter!$C$4:$L$4,G282)),\"Bitte geben Sie einen korrekten Lagertyp ein \",IF(ISBLANK(H282),\"Form auswählen\",IF(NOT(COUNTIF(Parameter!$C$5:$F$5,H282)),\"Bitte geben Sie eine korrekte Form ein \",IF(ISBLANK(I282),\"Trittschallminderung auswählen\",IF(NOT(COUNTIF(Parameter!$E$6,I282)),\"Bitte geben Sie eine korrekte Trittschallminderung ein\",IF(AND(H282=\"F\",ISBLANK(J282)),\"Mass A eingeben in mm\",IF(AND(H282=\"L\",OR(ISBLANK(J282),ISBLANK(K282))),\"Mass A und B eingeben in mm\",IF(AND(OR(H282=\"Z\",H282=\"U\"),OR(ISBLANK(J282),ISBLANK(K282),ISBLANK(L282))),\"Mass A, B und C eingeben in mm\",IF(AND(H282=\"F\",OR(NOT(ISBLANK(K282)),NOT(ISBLANK(L282)))),\"Nur A eingeben bei F Form, bitte Abmessungen B und C löschen\",IF(AND(H282=\"L\",NOT(ISBLANK(L282))),\"Nur A und B eingeben bei L Form, bitte Abmessung C löschen\",IF(OR(AND(OR(Parameter!$D$7>J282,J282>Parameter!$F$7),OR(H282=\"F\",H282=\"U\")),AND(OR(Parameter!$H$7>J282,J282>Parameter!$J$7),OR(H282=\"L\",H282=\"Z\"))),\"Bitte korrigiere die Abmessung A\",IF(AND(OR(Parameter!$D$8>K282,K282>Parameter!$F$8),OR(H282=\"L\",H282=\"Z\",H282=\"U\")),\"Bitte korrigiere die Abmessung B\",IF(AND(OR(Parameter!$D$9>L282,L282>Parameter!$F$9),OR(H282=\"Z\",H282=\"U\")),\"Bitte korrigiere die Abmessung C\",IF(ISBLANK(M282),\"Länge eingeben in mm\",IF(OR(Parameter!$D$10>M282,M282>Parameter!$F$10),\"Bitte korrigiere die Länge\",IF(ISBLANK(N282),\"Menge eingeben\",IF(NOT(ISNUMBER(N282)),\"Bitte korrigiere die Menge\",\"OK\")))))))))))))))))))))","v":""},{"$f":"LEN(E282)","v":0},{"$f":"IF(OR(ISBLANK(N281), NOT(B281=\"OK\")),\"\",D281+1)","v":""},null,null,null,null,null,null,null,null,null,null,"",null,"",null,""]
["26)  ISOTREPP 36 dB",{"$f":"IF(LEN(D283)=0,IF(NOT(B282=\"OK\"),IF(SUMPRODUCT(--(D282:N282<>\"\"))=0,IF(AND(NOT(SUMPRODUCT(--(E283:N283<>\"\"))=0),D282=\"\"),\"Bitte keine Leerzeilen\",\"\"),IF(NOT(SUMPRODUCT(--(E283:N283<>\"\"))=0),\"Bitte korrigiere zuerst die vorherige Zeile\",\"\")),\"\"),IF(LEN(E283)>Parameter!$C$2,\"Beschreibung zu lang, bitte die Beschreibung kürzen\",IF(NOT(COUNTIF(Parameter!$C$3:$G$3,F283)),\"Beschreibung (optional) eingeben und Antritt/Austritt/Podest/Wand/Leer auswählen\",IF(ISBLANK(G283),\"Lagertyp auswählen\",IF(NOT(COUNTIF(Parameter!$C$4:$L$4,G283)),\"Bitte geben Sie einen korrekten Lagertyp ein \",IF(ISBLANK(H283),\"Form auswählen\",IF(NOT(COUNTIF(Parameter!$C$5:$F$5,H283)),\"Bitte geben Sie eine korrekte Form ein \",IF(ISBLANK(I283),\"Trittschallminderung auswählen\",IF(NOT(COUNTIF(Parameter!$E$6,I283)),\"Bitte geben Sie eine korrekte Trittschallminderung ein\",IF(AND(H283=\"F\",ISBLANK(J283)),\"Mass A eingeben in mm\",IF(AND(H283=\"L\",OR(ISBLANK(J283),ISBLANK(K283))),\"Mass A und B eingeben in mm\",IF(AND(OR(H283=\"Z\",H283=\"U\"),OR(ISBLANK(J283),ISBLANK(K283),ISBLANK(L283))),\"Mass A, B und C eingeben in mm\",IF(AND(H283=\"F\",OR(NOT(ISBLANK(K283)),NOT(ISBLANK(L283)))),\"Nur A eingeben bei F Form, bitte Abmessungen B und C löschen\",IF(AND(H283=\"L\",NOT(ISBLANK(L283))),\"Nur A und B eingeben bei L Form, bitte Abmessung C löschen\",IF(OR(AND(OR(Parameter!$D$7>J283,J283>Parameter!$F$7),OR(H283=\"F\",H283=\"U\")),AND(OR(Parameter!$H$7>J283,J283>Parameter!$J$7),OR(H283=\"L\",H283=\"Z\"))),\"Bitte korrigiere die Abmessung A\",IF(AND(OR(Parameter!$D$8>K283,K283>Parameter!$F$8),OR(H283=\"L\",H283=\"Z\",H283=\"U\")),\"Bitte korrigiere die Abmessung B\",IF(AND(OR(Parameter!$D$9>L283,L283>Parameter!$F$9),OR(H283=\"Z\",H283=\"U\")),\"Bitte korrigiere die Abmessung C\",IF(ISBLANK(M283),\"Länge eingeben in mm\",IF(OR(Parameter!$D$10>M283,M283>Parameter!$F$10),\"Bitte korrigiere die Länge\",IF(ISBLANK(N283),\"Menge eingeben\",IF(NOT(ISNUMBER(N283)),\"Bitte korrigiere die Menge\",\"OK\")))))))))))))))))))))","v":""},{"$f":"LEN(E283)","v":0},"",null,null,null,null,null,null,null,null,null,null,"",null,"",null,""]
["26)  ISOTREPP 36 dB",{"$f":"IF(LEN(D284)=0,IF(NOT(B283=\"OK\"),IF(SUMPRODUCT(--(D283:N283<>\"\"))=0,IF(AND(NOT(SUMPRODUCT(--(E284:N284<>\"\"))=0),D283=\"\"),\"Bitte keine Leerzeilen\",\"\"),IF(NOT(SUMPRODUCT(--(E284:N284<>\"\"))=0),\"Bitte korrigiere zuerst die vorherige Zeile\",\"\")),\"\"),IF(LEN(E284)>Parameter!$C$2,\"Beschreibung zu lang, bitte die Beschreibung kürzen\",IF(NOT(COUNTIF(Parameter!$C$3:$G$3,F284)),\"Beschreibung (optional) eingeben und Antritt/Austritt/Podest/Wand/Leer auswählen\",IF(ISBLANK(G284),\"Lagertyp auswählen\",IF(NOT(COUNTIF(Parameter!$C$4:$L$4,G284)),\"Bitte geben Sie einen korrekten Lagertyp ein \",IF(ISBLANK(H284),\"Form auswählen\",IF(NOT(COUNTIF(Parameter!$C$5:$F$5,H284)),\"Bitte geben Sie eine korrekte Form ein \",IF(ISBLANK(I284),\"Trittschallminderung auswählen\",IF(NOT(COUNTIF(Parameter!$E$6,I284)),\"Bitte geben Sie eine korrekte Trittschallminderung ein\",IF(AND(H284=\"F\",ISBLANK(J284)),\"Mass A eingeben in mm\",IF(AND(H284=\"L\",OR(ISBLANK(J284),ISBLANK(K284))),\"Mass A und B eingeben in mm\",IF(AND(OR(H284=\"Z\",H284=\"U\"),OR(ISBLANK(J284),ISBLANK(K284),ISBLANK(L284))),\"Mass A, B und C eingeben in mm\",IF(AND(H284=\"F\",OR(NOT(ISBLANK(K284)),NOT(ISBLANK(L284)))),\"Nur A eingeben bei F Form, bitte Abmessungen B und C löschen\",IF(AND(H284=\"L\",NOT(ISBLANK(L284))),\"Nur A und B eingeben bei L Form, bitte Abmessung C löschen\",IF(OR(AND(OR(Parameter!$D$7>J284,J284>Parameter!$F$7),OR(H284=\"F\",H284=\"U\")),AND(OR(Parameter!$H$7>J284,J284>Parameter!$J$7),OR(H284=\"L\",H284=\"Z\"))),\"Bitte korrigiere die Abmessung A\",IF(AND(OR(Parameter!$D$8>K284,K284>Parameter!$F$8),OR(H284=\"L\",H284=\"Z\",H284=\"U\")),\"Bitte korrigiere die Abmessung B\",IF(AND(OR(Parameter!$D$9>L284,L284>Parameter!$F$9),OR(H284=\"Z\",H284=\"U\")),\"Bitte korrigiere die Abmessung C\",IF(ISBLANK(M284),\"Länge eingeben in mm\",IF(OR(Parameter!$D$10>M284,M284>Parameter!$F$10),\"Bitte korrigiere die Länge\",IF(ISBLANK(N284),\"Menge eingeben\",IF(NOT(ISNUMBER(N284)),\"Bitte korrigiere die Menge\",\"OK\")))))))))))))))))))))","v":""},0,"",null,null,null,null,null,null,null,null,null,null,"",null,"",null,""]
["26)  ISOTREPP 36 dB",{"$f":"IF(LEN(D285)=0,IF(NOT(B284=\"OK\"),IF(SUMPRODUCT(--(D284:N284<>\"\"))=0,IF(AND(NOT(SUMPRODUCT(--(E285:N285<>\"\"))=0),D284=\"\"),\"Bitte keine Leerzeilen\",\"\"),IF(NOT(SUMPRODUCT(--(E285:N285<>\"\"))=0),\"Bitte korrigiere zuerst die vorherige Zeile\",\"\")),\"\"),IF(LEN(E285)>Parameter!$C$2,\"Beschreibung zu lang, bitte die Beschreibung kürzen\",IF(NOT(COUNTIF(Parameter!$C$3:$G$3,F285)),\"Beschreibung (optional) eingeben und Antritt/Austritt/Podest/Wand/Leer auswählen\",IF(ISBLANK(G285),\"Lagertyp auswählen\",IF(NOT(COUNTIF(Parameter!$C$4:$L$4,G285)),\"Bitte geben Sie einen korrekten Lagertyp ein \",IF(ISBLANK(H285),\"Form auswählen\",IF(NOT(COUNTIF(Parameter!$C$5:$F$5,H285)),\"Bitte geben Sie eine korrekte Form ein \",IF(ISBLANK(I285),\"Trittschallminderung auswählen\",IF(NOT(COUNTIF(Parameter!$E$6,I285)),\"Bitte geben Sie eine korrekte Trittschallminderung ein\",IF(AND(H285=\"F\",ISBLANK(J285)),\"Mass A eingeben in mm\",IF(AND(H285=\"L\",OR(ISBLANK(J285),ISBLANK(K285))),\"Mass A und B eingeben in mm\",IF(AND(OR(H285=\"Z\",H285=\"U\"),OR(ISBLANK(J285),ISBLANK(K285),ISBLANK(L285))),\"Mass A, B und C eingeben in mm\",IF(AND(H285=\"F\",OR(NOT(ISBLANK(K285)),NOT(ISBLANK(L285)))),\"Nur A eingeben bei F Form, bitte Abmessungen B und C löschen\",IF(AND(H285=\"L\",NOT(ISBLANK(L285))),\"Nur A und B eingeben bei L Form, bitte Abmessung C löschen\",IF(OR(AND(OR(Parameter!$D$7>J285,J285>Parameter!$F$7),OR(H285=\"F\",H285=\"U\")),AND(OR(Parameter!$H$7>J285,J285>Parameter!$J$7),OR(H285=\"L\",H285=\"Z\"))),\"Bitte korrigiere die Abmessung A\",IF(AND(OR(Parameter!$D$8>K285,K285>Parameter!$F$8),OR(H285=\"L\",H285=\"Z\",H285=\"U\")),\"Bitte korrigiere die Abmessung B\",IF(AND(OR(Parameter!$D$9>L285,L285>Parameter!$F$9),OR(H285=\"Z\",H285=\"U\")),\"Bitte korrigiere die Abmessung C\",IF(ISBLANK(M285),\"Länge eingeben in mm\",IF(OR(Parameter!$D$10>M285,M285>Parameter!$F$10),\"Bitte korrigiere die Länge\",IF(ISBLANK(N285),\"Menge eingeben\",IF(NOT(ISNUMBER(N285)),\"Bitte korrigiere die Menge\",\"OK\")))))))))))))))))))))","v":""},0,"",null,null,null,null,null,null,null,null,null,null,"",null,"",null,""]
["26)  ISOTREPP 36 dB",{"$f":"IF(LEN(D286)=0,IF(NOT(B285=\"OK\"),IF(SUMPRODUCT(--(D285:N285<>\"\"))=0,IF(AND(NOT(SUMPRODUCT(--(E286:N286<>\"\"))=0),D285=\"\"),\"Bitte keine Leerzeilen\",\"\"),IF(NOT(SUMPRODUCT(--(E286:N286<>\"\"))=0),\"Bitte korrigiere zuerst die vorherige Zeile\",\"\")),\"\"),IF(LEN(E286)>Parameter!$C$2,\"Beschreibung zu lang, bitte die Beschreibung kürzen\",IF(NOT(COUNTIF(Parameter!$C$3:$G$3,F286)),\"Beschreibung (optional) eingeben und Antritt/Austritt/Podest/Wand/Leer auswählen\",IF(ISBLANK(G286),\"Lagertyp auswählen\",IF(NOT(COUNTIF(Parameter!$C$4:$L$4,G286)),\"Bitte geben Sie einen korrekten Lagertyp ein \",IF(ISBLANK(H286),\"Form auswählen\",IF(NOT(COUNTIF(Parameter!$C$5:$F$5,H286)),\"Bitte geben Sie eine korrekte Form ein \",IF(ISBLANK(I286),\"Trittschallminderung auswählen\",IF(NOT(COUNTIF(Parameter!$E$6,I286)),\"Bitte geben Sie eine korrekte Trittschallminderung ein\",IF(AND(H286=\"F\",ISBLANK(J286)),\"Mass A eingeben in mm\",IF(AND(H286=\"L\",OR(ISBLANK(J286),ISBLANK(K286))),\"Mass A und B eingeben in mm\",IF(AND(OR(H286=\"Z\",H286=\"U\"),OR(ISBLANK(J286),ISBLANK(K286),ISBLANK(L286))),\"Mass A, B und C eingeben in mm\",IF(AND(H286=\"F\",OR(NOT(ISBLANK(K286)),NOT(ISBLANK(L286)))),\"Nur A eingeben bei F Form, bitte Abmessungen B und C löschen\",IF(AND(H286=\"L\",NOT(ISBLANK(L286))),\"Nur A und B eingeben bei L Form, bitte Abmessung C löschen\",IF(OR(AND(OR(Parameter!$D$7>J286,J286>Parameter!$F$7),OR(H286=\"F\",H286=\"U\")),AND(OR(Parameter!$H$7>J286,J286>Parameter!$J$7),OR(H286=\"L\",H286=\"Z\"))),\"Bitte korrigiere die Abmessung A\",IF(AND(OR(Parameter!$D$8>K286,K286>Parameter!$F$8),OR(H286=\"L\",H286=\"Z\",H286=\"U\")),\"Bitte korrigiere die Abmessung B\",IF(AND(OR(Parameter!$D$9>L286,L286>Parameter!$F$9),OR(H286=\"Z\",H286=\"U\")),\"Bitte korrigiere die Abmessung C\",IF(ISBLANK(M286),\"Länge eingeben in mm\",IF(OR(Parameter!$D$10>M286,M286>Parameter!$F$10),\"Bitte korrigiere die Länge\",IF(ISBLANK(N286),\"Menge eingeben\",IF(NOT(ISNUMBER(N286)),\"Bitte korrigiere die Menge\",\"OK\")))))))))))))))))))))","v":""},0,"",null,null,null,null,null,null,null,null,null,null,"",null,"",null,""]
["26)  ISOTREPP 36 dB",{"$f":"IF(LEN(D287)=0,IF(NOT(B286=\"OK\"),IF(SUMPRODUCT(--(D286:N286<>\"\"))=0,IF(AND(NOT(SUMPRODUCT(--(E287:N287<>\"\"))=0),D286=\"\"),\"Bitte keine Leerzeilen\",\"\"),IF(NOT(SUMPRODUCT(--(E287:N287<>\"\"))=0),\"Bitte korrigiere zuerst die vorherige Zeile\",\"\")),\"\"),IF(LEN(E287)>Parameter!$C$2,\"Beschreibung zu lang, bitte die Beschreibung kürzen\",IF(NOT(COUNTIF(Parameter!$C$3:$G$3,F287)),\"Beschreibung (optional) eingeben und Antritt/Austritt/Podest/Wand/Leer auswählen\",IF(ISBLANK(G287),\"Lagertyp auswählen\",IF(NOT(COUNTIF(Parameter!$C$4:$L$4,G287)),\"Bitte geben Sie einen korrekten Lagertyp ein \",IF(ISBLANK(H287),\"Form auswählen\",IF(NOT(COUNTIF(Parameter!$C$5:$F$5,H287)),\"Bitte geben Sie eine korrekte Form ein \",IF(ISBLANK(I287),\"Trittschallminderung auswählen\",IF(NOT(COUNTIF(Parameter!$E$6,I287)),\"Bitte geben Sie eine korrekte Trittschallminderung ein\",IF(AND(H287=\"F\",ISBLANK(J287)),\"Mass A eingeben in mm\",IF(AND(H287=\"L\",OR(ISBLANK(J287),ISBLANK(K287))),\"Mass A und B eingeben in mm\",IF(AND(OR(H287=\"Z\",H287=\"U\"),OR(ISBLANK(J287),ISBLANK(K287),ISBLANK(L287))),\"Mass A, B und C eingeben in mm\",IF(AND(H287=\"F\",OR(NOT(ISBLANK(K287)),NOT(ISBLANK(L287)))),\"Nur A eingeben bei F Form, bitte Abmessungen B und C löschen\",IF(AND(H287=\"L\",NOT(ISBLANK(L287))),\"Nur A und B eingeben bei L Form, bitte Abmessung C löschen\",IF(OR(AND(OR(Parameter!$D$7>J287,J287>Parameter!$F$7),OR(H287=\"F\",H287=\"U\")),AND(OR(Parameter!$H$7>J287,J287>Parameter!$J$7),OR(H287=\"L\",H287=\"Z\"))),\"Bitte korrigiere die Abmessung A\",IF(AND(OR(Parameter!$D$8>K287,K287>Parameter!$F$8),OR(H287=\"L\",H287=\"Z\",H287=\"U\")),\"Bitte korrigiere die Abmessung B\",IF(AND(OR(Parameter!$D$9>L287,L287>Parameter!$F$9),OR(H287=\"Z\",H287=\"U\")),\"Bitte korrigiere die Abmessung C\",IF(ISBLANK(M287),\"Länge eingeben in mm\",IF(OR(Parameter!$D$10>M287,M287>Parameter!$F$10),\"Bitte korrigiere die Länge\",IF(ISBLANK(N287),\"Menge eingeben\",IF(NOT(ISNUMBER(N287)),\"Bitte korrigiere die Menge\",\"OK\")))))))))))))))))))))","v":""},0,"",null,null,null,null,null,null,null,null,null,null,"",null,"",null,""]
["26)  ISOTREPP 36 dB",{"$f":"IF(LEN(D288)=0,IF(NOT(B287=\"OK\"),IF(SUMPRODUCT(--(D287:N287<>\"\"))=0,IF(AND(NOT(SUMPRODUCT(--(E288:N288<>\"\"))=0),D287=\"\"),\"Bitte keine Leerzeilen\",\"\"),IF(NOT(SUMPRODUCT(--(E288:N288<>\"\"))=0),\"Bitte korrigiere zuerst die vorherige Zeile\",\"\")),\"\"),IF(LEN(E288)>Parameter!$C$2,\"Beschreibung zu lang, bitte die Beschreibung kürzen\",IF(NOT(COUNTIF(Parameter!$C$3:$G$3,F288)),\"Beschreibung (optional) eingeben und Antritt/Austritt/Podest/Wand/Leer auswählen\",IF(ISBLANK(G288),\"Lagertyp auswählen\",IF(NOT(COUNTIF(Parameter!$C$4:$L$4,G288)),\"Bitte geben Sie einen korrekten Lagertyp ein \",IF(ISBLANK(H288),\"Form auswählen\",IF(NOT(COUNTIF(Parameter!$C$5:$F$5,H288)),\"Bitte geben Sie eine korrekte Form ein \",IF(ISBLANK(I288),\"Trittschallminderung auswählen\",IF(NOT(COUNTIF(Parameter!$E$6,I288)),\"Bitte geben Sie eine korrekte Trittschallminderung ein\",IF(AND(H288=\"F\",ISBLANK(J288)),\"Mass A eingeben in mm\",IF(AND(H288=\"L\",OR(ISBLANK(J288),ISBLANK(K288))),\"Mass A und B eingeben in mm\",IF(AND(OR(H288=\"Z\",H288=\"U\"),OR(ISBLANK(J288),ISBLANK(K288),ISBLANK(L288))),\"Mass A, B und C eingeben in mm\",IF(AND(H288=\"F\",OR(NOT(ISBLANK(K288)),NOT(ISBLANK(L288)))),\"Nur A eingeben bei F Form, bitte Abmessungen B und C löschen\",IF(AND(H288=\"L\",NOT(ISBLANK(L288))),\"Nur A und B eingeben bei L Form, bitte Abmessung C löschen\",IF(OR(AND(OR(Parameter!$D$7>J288,J288>Parameter!$F$7),OR(H288=\"F\",H288=\"U\")),AND(OR(Parameter!$H$7>J288,J288>Parameter!$J$7),OR(H288=\"L\",H288=\"Z\"))),\"Bitte korrigiere die Abmessung A\",IF(AND(OR(Parameter!$D$8>K288,K288>Parameter!$F$8),OR(H288=\"L\",H288=\"Z\",H288=\"U\")),\"Bitte korrigiere die Abmessung B\",IF(AND(OR(Parameter!$D$9>L288,L288>Parameter!$F$9),OR(H288=\"Z\",H288=\"U\")),\"Bitte korrigiere die Abmessung C\",IF(ISBLANK(M288),\"Länge eingeben in mm\",IF(OR(Parameter!$D$10>M288,M288>Parameter!$F$10),\"Bitte korrigiere die Länge\",IF(ISBLANK(N288),\"Menge eingeben\",IF(NOT(ISNUMBER(N288)),\"Bitte korrigiere die Menge\",\"OK\")))))))))))))))))))))","v":""},0,"",null,null,null,null,null,null,null,null,null,null,"",null,"",null,""]
["26)  ISOTREPP 36 dB",{"$f":"IF(LEN(D289)=0,IF(NOT(B288=\"OK\"),IF(SUMPRODUCT(--(D288:N288<>\"\"))=0,IF(AND(NOT(SUMPRODUCT(--(E289:N289<>\"\"))=0),D288=\"\"),\"Bitte keine Leerzeilen\",\"\"),IF(NOT(SUMPRODUCT(--(E289:N289<>\"\"))=0),\"Bitte korrigiere zuerst die vorherige Zeile\",\"\")),\"\"),IF(LEN(E289)>Parameter!$C$2,\"Beschreibung zu lang, bitte die Beschreibung kürzen\",IF(NOT(COUNTIF(Parameter!$C$3:$G$3,F289)),\"Beschreibung (optional) eingeben und Antritt/Austritt/Podest/Wand/Leer auswählen\",IF(ISBLANK(G289),\"Lagertyp auswählen\",IF(NOT(COUNTIF(Parameter!$C$4:$L$4,G289)),\"Bitte geben Sie einen korrekten Lagertyp ein \",IF(ISBLANK(H289),\"Form auswählen\",IF(NOT(COUNTIF(Parameter!$C$5:$F$5,H289)),\"Bitte geben Sie eine korrekte Form ein \",IF(ISBLANK(I289),\"Trittschallminderung auswählen\",IF(NOT(COUNTIF(Parameter!$E$6,I289)),\"Bitte geben Sie eine korrekte Trittschallminderung ein\",IF(AND(H289=\"F\",ISBLANK(J289)),\"Mass A eingeben in mm\",IF(AND(H289=\"L\",OR(ISBLANK(J289),ISBLANK(K289))),\"Mass A und B eingeben in mm\",IF(AND(OR(H289=\"Z\",H289=\"U\"),OR(ISBLANK(J289),ISBLANK(K289),ISBLANK(L289))),\"Mass A, B und C eingeben in mm\",IF(AND(H289=\"F\",OR(NOT(ISBLANK(K289)),NOT(ISBLANK(L289)))),\"Nur A eingeben bei F Form, bitte Abmessungen B und C löschen\",IF(AND(H289=\"L\",NOT(ISBLANK(L289))),\"Nur A und B eingeben bei L Form, bitte Abmessung C löschen\",IF(OR(AND(OR(Parameter!$D$7>J289,J289>Parameter!$F$7),OR(H289=\"F\",H289=\"U\")),AND(OR(Parameter!$H$7>J289,J289>Parameter!$J$7),OR(H289=\"L\",H289=\"Z\"))),\"Bitte korrigiere die Abmessung A\",IF(AND(OR(Parameter!$D$8>K289,K289>Parameter!$F$8),OR(H289=\"L\",H289=\"Z\",H289=\"U\")),\"Bitte korrigiere die Abmessung B\",IF(AND(OR(Parameter!$D$9>L289,L289>Parameter!$F$9),OR(H289=\"Z\",H289=\"U\")),\"Bitte korrigiere die Abmessung C\",IF(ISBLANK(M289),\"Länge eingeben in mm\",IF(OR(Parameter!$D$10>M289,M289>Parameter!$F$10),\"Bitte korrigiere die Länge\",IF(ISBLANK(N289),\"Menge eingeben\",IF(NOT(ISNUMBER(N289)),\"Bitte korrigiere die Menge\",\"OK\")))))))))))))))))))))","v":""},{"$f":"LEN(E289)","v":0},"",null,null,null,null,null,null,null,null,null,null,"",null,"",null,""]
["26)  ISOTREPP 36 dB",{"$f":"IF(LEN(D290)=0,IF(NOT(B289=\"OK\"),IF(SUMPRODUCT(--(D289:N289<>\"\"))=0,IF(AND(NOT(SUMPRODUCT(--(E290:N290<>\"\"))=0),D289=\"\"),\"Bitte keine Leerzeilen\",\"\"),IF(NOT(SUMPRODUCT(--(E290:N290<>\"\"))=0),\"Bitte korrigiere zuerst die vorherige Zeile\",\"\")),\"\"),IF(LEN(E290)>Parameter!$C$2,\"Beschreibung zu lang, bitte die Beschreibung kürzen\",IF(NOT(COUNTIF(Parameter!$C$3:$G$3,F290)),\"Beschreibung (optional) eingeben und Antritt/Austritt/Podest/Wand/Leer auswählen\",IF(ISBLANK(G290),\"Lagertyp auswählen\",IF(NOT(COUNTIF(Parameter!$C$4:$L$4,G290)),\"Bitte geben Sie einen korrekten Lagertyp ein \",IF(ISBLANK(H290),\"Form auswählen\",IF(NOT(COUNTIF(Parameter!$C$5:$F$5,H290)),\"Bitte geben Sie eine korrekte Form ein \",IF(ISBLANK(I290),\"Trittschallminderung auswählen\",IF(NOT(COUNTIF(Parameter!$E$6,I290)),\"Bitte geben Sie eine korrekte Trittschallminderung ein\",IF(AND(H290=\"F\",ISBLANK(J290)),\"Mass A eingeben in mm\",IF(AND(H290=\"L\",OR(ISBLANK(J290),ISBLANK(K290))),\"Mass A und B eingeben in mm\",IF(AND(OR(H290=\"Z\",H290=\"U\"),OR(ISBLANK(J290),ISBLANK(K290),ISBLANK(L290))),\"Mass A, B und C eingeben in mm\",IF(AND(H290=\"F\",OR(NOT(ISBLANK(K290)),NOT(ISBLANK(L290)))),\"Nur A eingeben bei F Form, bitte Abmessungen B und C löschen\",IF(AND(H290=\"L\",NOT(ISBLANK(L290))),\"Nur A und B eingeben bei L Form, bitte Abmessung C löschen\",IF(OR(AND(OR(Parameter!$D$7>J290,J290>Parameter!$F$7),OR(H290=\"F\",H290=\"U\")),AND(OR(Parameter!$H$7>J290,J290>Parameter!$J$7),OR(H290=\"L\",H290=\"Z\"))),\"Bitte korrigiere die Abmessung A\",IF(AND(OR(Parameter!$D$8>K290,K290>Parameter!$F$8),OR(H290=\"L\",H290=\"Z\",H290=\"U\")),\"Bitte korrigiere die Abmessung B\",IF(AND(OR(Parameter!$D$9>L290,L290>Parameter!$F$9),OR(H290=\"Z\",H290=\"U\")),\"Bitte korrigiere die Abmessung C\",IF(ISBLANK(M290),\"Länge eingeben in mm\",IF(OR(Parameter!$D$10>M290,M290>Parameter!$F$10),\"Bitte korrigiere die Länge\",IF(ISBLANK(N290),\"Menge eingeben\",IF(NOT(ISNUMBER(N290)),\"Bitte korrigiere die Menge\",\"OK\")))))))))))))))))))))","v":""},{"$f":"LEN(E290)","v":0},"",null,null,null,null,null,null,null,null,null,null,"",null,"",null,""]
["26)  ISOTREPP 36 dB",{"$f":"IF(LEN(D291)=0,IF(NOT(B290=\"OK\"),IF(SUMPRODUCT(--(D290:N290<>\"\"))=0,IF(AND(NOT(SUMPRODUCT(--(E291:N291<>\"\"))=0),D290=\"\"),\"Bitte keine Leerzeilen\",\"\"),IF(NOT(SUMPRODUCT(--(E291:N291<>\"\"))=0),\"Bitte korrigiere zuerst die vorherige Zeile\",\"\")),\"\"),IF(LEN(E291)>Parameter!$C$2,\"Beschreibung zu lang, bitte die Beschreibung kürzen\",IF(NOT(COUNTIF(Parameter!$C$3:$G$3,F291)),\"Beschreibung (optional) eingeben und Antritt/Austritt/Podest/Wand/Leer auswählen\",IF(ISBLANK(G291),\"Lagertyp auswählen\",IF(NOT(COUNTIF(Parameter!$C$4:$L$4,G291)),\"Bitte geben Sie einen korrekten Lagertyp ein \",IF(ISBLANK(H291),\"Form auswählen\",IF(NOT(COUNTIF(Parameter!$C$5:$F$5,H291)),\"Bitte geben Sie eine korrekte Form ein \",IF(ISBLANK(I291),\"Trittschallminderung auswählen\",IF(NOT(COUNTIF(Parameter!$E$6,I291)),\"Bitte geben Sie eine korrekte Trittschallminderung ein\",IF(AND(H291=\"F\",ISBLANK(J291)),\"Mass A eingeben in mm\",IF(AND(H291=\"L\",OR(ISBLANK(J291),ISBLANK(K291))),\"Mass A und B eingeben in mm\",IF(AND(OR(H291=\"Z\",H291=\"U\"),OR(ISBLANK(J291),ISBLANK(K291),ISBLANK(L291))),\"Mass A, B und C eingeben in mm\",IF(AND(H291=\"F\",OR(NOT(ISBLANK(K291)),NOT(ISBLANK(L291)))),\"Nur A eingeben bei F Form, bitte Abmessungen B und C löschen\",IF(AND(H291=\"L\",NOT(ISBLANK(L291))),\"Nur A und B eingeben bei L Form, bitte Abmessung C löschen\",IF(OR(AND(OR(Parameter!$D$7>J291,J291>Parameter!$F$7),OR(H291=\"F\",H291=\"U\")),AND(OR(Parameter!$H$7>J291,J291>Parameter!$J$7),OR(H291=\"L\",H291=\"Z\"))),\"Bitte korrigiere die Abmessung A\",IF(AND(OR(Parameter!$D$8>K291,K291>Parameter!$F$8),OR(H291=\"L\",H291=\"Z\",H291=\"U\")),\"Bitte korrigiere die Abmessung B\",IF(AND(OR(Parameter!$D$9>L291,L291>Parameter!$F$9),OR(H291=\"Z\",H291=\"U\")),\"Bitte korrigiere die Abmessung C\",IF(ISBLANK(M291),\"Länge eingeben in mm\",IF(OR(Parameter!$D$10>M291,M291>Parameter!$F$10),\"Bitte korrigiere die Länge\",IF(ISBLANK(N291),\"Menge eingeben\",IF(NOT(ISNUMBER(N291)),\"Bitte korrigiere die Menge\",\"OK\")))))))))))))))))))))","v":""},{"$f":"LEN(E291)","v":0},"",null,null,null,null,null,null,null,null,null,null,"",null,"",null,""]
["26)  ISOTREPP 36 dB",{"$f":"IF(LEN(D292)=0,IF(NOT(B291=\"OK\"),IF(SUMPRODUCT(--(D291:N291<>\"\"))=0,IF(AND(NOT(SUMPRODUCT(--(E292:N292<>\"\"))=0),D291=\"\"),\"Bitte keine Leerzeilen\",\"\"),IF(NOT(SUMPRODUCT(--(E292:N292<>\"\"))=0),\"Bitte korrigiere zuerst die vorherige Zeile\",\"\")),\"\"),IF(LEN(E292)>Parameter!$C$2,\"Beschreibung zu lang, bitte die Beschreibung kürzen\",IF(NOT(COUNTIF(Parameter!$C$3:$G$3,F292)),\"Beschreibung (optional) eingeben und Antritt/Austritt/Podest/Wand/Leer auswählen\",IF(ISBLANK(G292),\"Lagertyp auswählen\",IF(NOT(COUNTIF(Parameter!$C$4:$L$4,G292)),\"Bitte geben Sie einen korrekten Lagertyp ein \",IF(ISBLANK(H292),\"Form auswählen\",IF(NOT(COUNTIF(Parameter!$C$5:$F$5,H292)),\"Bitte geben Sie eine korrekte Form ein \",IF(ISBLANK(I292),\"Trittschallminderung auswählen\",IF(NOT(COUNTIF(Parameter!$E$6,I292)),\"Bitte geben Sie eine korrekte Trittschallminderung ein\",IF(AND(H292=\"F\",ISBLANK(J292)),\"Mass A eingeben in mm\",IF(AND(H292=\"L\",OR(ISBLANK(J292),ISBLANK(K292))),\"Mass A und B eingeben in mm\",IF(AND(OR(H292=\"Z\",H292=\"U\"),OR(ISBLANK(J292),ISBLANK(K292),ISBLANK(L292))),\"Mass A, B und C eingeben in mm\",IF(AND(H292=\"F\",OR(NOT(ISBLANK(K292)),NOT(ISBLANK(L292)))),\"Nur A eingeben bei F Form, bitte Abmessungen B und C löschen\",IF(AND(H292=\"L\",NOT(ISBLANK(L292))),\"Nur A und B eingeben bei L Form, bitte Abmessung C löschen\",IF(OR(AND(OR(Parameter!$D$7>J292,J292>Parameter!$F$7),OR(H292=\"F\",H292=\"U\")),AND(OR(Parameter!$H$7>J292,J292>Parameter!$J$7),OR(H292=\"L\",H292=\"Z\"))),\"Bitte korrigiere die Abmessung A\",IF(AND(OR(Parameter!$D$8>K292,K292>Parameter!$F$8),OR(H292=\"L\",H292=\"Z\",H292=\"U\")),\"Bitte korrigiere die Abmessung B\",IF(AND(OR(Parameter!$D$9>L292,L292>Parameter!$F$9),OR(H292=\"Z\",H292=\"U\")),\"Bitte korrigiere die Abmessung C\",IF(ISBLANK(M292),\"Länge eingeben in mm\",IF(OR(Parameter!$D$10>M292,M292>Parameter!$F$10),\"Bitte korrigiere die Länge\",IF(ISBLANK(N292),\"Menge eingeben\",IF(NOT(ISNUMBER(N292)),\"Bitte korrigiere die Menge\",\"OK\")))))))))))))))))))))","v":""},{"$f":"LEN(E292)","v":0},"",null,null,null,null,null,null,null,null,null,null,"",null,"",null,""]
["26)  ISOTREPP 36 dB",{"$f":"IF(LEN(D293)=0,IF(NOT(B292=\"OK\"),IF(SUMPRODUCT(--(D292:N292<>\"\"))=0,IF(AND(NOT(SUMPRODUCT(--(E293:N293<>\"\"))=0),D292=\"\"),\"Bitte keine Leerzeilen\",\"\"),IF(NOT(SUMPRODUCT(--(E293:N293<>\"\"))=0),\"Bitte korrigiere zuerst die vorherige Zeile\",\"\")),\"\"),IF(LEN(E293)>Parameter!$C$2,\"Beschreibung zu lang, bitte die Beschreibung kürzen\",IF(NOT(COUNTIF(Parameter!$C$3:$G$3,F293)),\"Beschreibung (optional) eingeben und Antritt/Austritt/Podest/Wand/Leer auswählen\",IF(ISBLANK(G293),\"Lagertyp auswählen\",IF(NOT(COUNTIF(Parameter!$C$4:$L$4,G293)),\"Bitte geben Sie einen korrekten Lagertyp ein \",IF(ISBLANK(H293),\"Form auswählen\",IF(NOT(COUNTIF(Parameter!$C$5:$F$5,H293)),\"Bitte geben Sie eine korrekte Form ein \",IF(ISBLANK(I293),\"Trittschallminderung auswählen\",IF(NOT(COUNTIF(Parameter!$E$6,I293)),\"Bitte geben Sie eine korrekte Trittschallminderung ein\",IF(AND(H293=\"F\",ISBLANK(J293)),\"Mass A eingeben in mm\",IF(AND(H293=\"L\",OR(ISBLANK(J293),ISBLANK(K293))),\"Mass A und B eingeben in mm\",IF(AND(OR(H293=\"Z\",H293=\"U\"),OR(ISBLANK(J293),ISBLANK(K293),ISBLANK(L293))),\"Mass A, B und C eingeben in mm\",IF(AND(H293=\"F\",OR(NOT(ISBLANK(K293)),NOT(ISBLANK(L293)))),\"Nur A eingeben bei F Form, bitte Abmessungen B und C löschen\",IF(AND(H293=\"L\",NOT(ISBLANK(L293))),\"Nur A und B eingeben bei L Form, bitte Abmessung C löschen\",IF(OR(AND(OR(Parameter!$D$7>J293,J293>Parameter!$F$7),OR(H293=\"F\",H293=\"U\")),AND(OR(Parameter!$H$7>J293,J293>Parameter!$J$7),OR(H293=\"L\",H293=\"Z\"))),\"Bitte korrigiere die Abmessung A\",IF(AND(OR(Parameter!$D$8>K293,K293>Parameter!$F$8),OR(H293=\"L\",H293=\"Z\",H293=\"U\")),\"Bitte korrigiere die Abmessung B\",IF(AND(OR(Parameter!$D$9>L293,L293>Parameter!$F$9),OR(H293=\"Z\",H293=\"U\")),\"Bitte korrigiere die Abmessung C\",IF(ISBLANK(M293),\"Länge eingeben in mm\",IF(OR(Parameter!$D$10>M293,M293>Parameter!$F$10),\"Bitte korrigiere die Länge\",IF(ISBLANK(N293),\"Menge eingeben\",IF(NOT(ISNUMBER(N293)),\"Bitte korrigiere die Menge\",\"OK\")))))))))))))))))))))","v":""},{"$f":"LEN(E293)","v":0},"",null,null,null,null,null,null,null,null,null,null,"",null,"",null,""]
["26)  ISOTREPP 36 dB",{"$f":"IF(LEN(D294)=0,IF(NOT(B293=\"OK\"),IF(SUMPRODUCT(--(D293:N293<>\"\"))=0,IF(AND(NOT(SUMPRODUCT(--(E294:N294<>\"\"))=0),D293=\"\"),\"Bitte keine Leerzeilen\",\"\"),IF(NOT(SUMPRODUCT(--(E294:N294<>\"\"))=0),\"Bitte korrigiere zuerst die vorherige Zeile\",\"\")),\"\"),IF(LEN(E294)>Parameter!$C$2,\"Beschreibung zu lang, bitte die Beschreibung kürzen\",IF(NOT(COUNTIF(Parameter!$C$3:$G$3,F294)),\"Beschreibung (optional) eingeben und Antritt/Austritt/Podest/Wand/Leer auswählen\",IF(ISBLANK(G294),\"Lagertyp auswählen\",IF(NOT(COUNTIF(Parameter!$C$4:$L$4,G294)),\"Bitte geben Sie einen korrekten Lagertyp ein \",IF(ISBLANK(H294),\"Form auswählen\",IF(NOT(COUNTIF(Parameter!$C$5:$F$5,H294)),\"Bitte geben Sie eine korrekte Form ein \",IF(ISBLANK(I294),\"Trittschallminderung auswählen\",IF(NOT(COUNTIF(Parameter!$E$6,I294)),\"Bitte geben Sie eine korrekte Trittschallminderung ein\",IF(AND(H294=\"F\",ISBLANK(J294)),\"Mass A eingeben in mm\",IF(AND(H294=\"L\",OR(ISBLANK(J294),ISBLANK(K294))),\"Mass A und B eingeben in mm\",IF(AND(OR(H294=\"Z\",H294=\"U\"),OR(ISBLANK(J294),ISBLANK(K294),ISBLANK(L294))),\"Mass A, B und C eingeben in mm\",IF(AND(H294=\"F\",OR(NOT(ISBLANK(K294)),NOT(ISBLANK(L294)))),\"Nur A eingeben bei F Form, bitte Abmessungen B und C löschen\",IF(AND(H294=\"L\",NOT(ISBLANK(L294))),\"Nur A und B eingeben bei L Form, bitte Abmessung C löschen\",IF(OR(AND(OR(Parameter!$D$7>J294,J294>Parameter!$F$7),OR(H294=\"F\",H294=\"U\")),AND(OR(Parameter!$H$7>J294,J294>Parameter!$J$7),OR(H294=\"L\",H294=\"Z\"))),\"Bitte korrigiere die Abmessung A\",IF(AND(OR(Parameter!$D$8>K294,K294>Parameter!$F$8),OR(H294=\"L\",H294=\"Z\",H294=\"U\")),\"Bitte korrigiere die Abmessung B\",IF(AND(OR(Parameter!$D$9>L294,L294>Parameter!$F$9),OR(H294=\"Z\",H294=\"U\")),\"Bitte korrigiere die Abmessung C\",IF(ISBLANK(M294),\"Länge eingeben in mm\",IF(OR(Parameter!$D$10>M294,M294>Parameter!$F$10),\"Bitte korrigiere die Länge\",IF(ISBLANK(N294),\"Menge eingeben\",IF(NOT(ISNUMBER(N294)),\"Bitte korrigiere die Menge\",\"OK\")))))))))))))))))))))","v":""},{"$f":"LEN(E294)","v":0},"",null,null,null,null,null,null,null,null,null,null,"",null,"",null,""]
["26)  ISOTREPP 36 dB",{"$f":"IF(LEN(D295)=0,IF(NOT(B294=\"OK\"),IF(SUMPRODUCT(--(D294:N294<>\"\"))=0,IF(AND(NOT(SUMPRODUCT(--(E295:N295<>\"\"))=0),D294=\"\"),\"Bitte keine Leerzeilen\",\"\"),IF(NOT(SUMPRODUCT(--(E295:N295<>\"\"))=0),\"Bitte korrigiere zuerst die vorherige Zeile\",\"\")),\"\"),IF(LEN(E295)>Parameter!$C$2,\"Beschreibung zu lang, bitte die Beschreibung kürzen\",IF(NOT(COUNTIF(Parameter!$C$3:$G$3,F295)),\"Beschreibung (optional) eingeben und Antritt/Austritt/Podest/Wand/Leer auswählen\",IF(ISBLANK(G295),\"Lagertyp auswählen\",IF(NOT(COUNTIF(Parameter!$C$4:$L$4,G295)),\"Bitte geben Sie einen korrekten Lagertyp ein \",IF(ISBLANK(H295),\"Form auswählen\",IF(NOT(COUNTIF(Parameter!$C$5:$F$5,H295)),\"Bitte geben Sie eine korrekte Form ein \",IF(ISBLANK(I295),\"Trittschallminderung auswählen\",IF(NOT(COUNTIF(Parameter!$E$6,I295)),\"Bitte geben Sie eine korrekte Trittschallminderung ein\",IF(AND(H295=\"F\",ISBLANK(J295)),\"Mass A eingeben in mm\",IF(AND(H295=\"L\",OR(ISBLANK(J295),ISBLANK(K295))),\"Mass A und B eingeben in mm\",IF(AND(OR(H295=\"Z\",H295=\"U\"),OR(ISBLANK(J295),ISBLANK(K295),ISBLANK(L295))),\"Mass A, B und C eingeben in mm\",IF(AND(H295=\"F\",OR(NOT(ISBLANK(K295)),NOT(ISBLANK(L295)))),\"Nur A eingeben bei F Form, bitte Abmessungen B und C löschen\",IF(AND(H295=\"L\",NOT(ISBLANK(L295))),\"Nur A und B eingeben bei L Form, bitte Abmessung C löschen\",IF(OR(AND(OR(Parameter!$D$7>J295,J295>Parameter!$F$7),OR(H295=\"F\",H295=\"U\")),AND(OR(Parameter!$H$7>J295,J295>Parameter!$J$7),OR(H295=\"L\",H295=\"Z\"))),\"Bitte korrigiere die Abmessung A\",IF(AND(OR(Parameter!$D$8>K295,K295>Parameter!$F$8),OR(H295=\"L\",H295=\"Z\",H295=\"U\")),\"Bitte korrigiere die Abmessung B\",IF(AND(OR(Parameter!$D$9>L295,L295>Parameter!$F$9),OR(H295=\"Z\",H295=\"U\")),\"Bitte korrigiere die Abmessung C\",IF(ISBLANK(M295),\"Länge eingeben in mm\",IF(OR(Parameter!$D$10>M295,M295>Parameter!$F$10),\"Bitte korrigiere die Länge\",IF(ISBLANK(N295),\"Menge eingeben\",IF(NOT(ISNUMBER(N295)),\"Bitte korrigiere die Menge\",\"OK\")))))))))))))))))))))","v":""},0,"",null,null,null,null,null,null,null,null,null,null,"",null,"",null,""]
["26)  ISOTREPP 36 dB",{"$f":"IF(LEN(D296)=0,IF(NOT(B295=\"OK\"),IF(SUMPRODUCT(--(D295:N295<>\"\"))=0,IF(AND(NOT(SUMPRODUCT(--(E296:N296<>\"\"))=0),D295=\"\"),\"Bitte keine Leerzeilen\",\"\"),IF(NOT(SUMPRODUCT(--(E296:N296<>\"\"))=0),\"Bitte korrigiere zuerst die vorherige Zeile\",\"\")),\"\"),IF(LEN(E296)>Parameter!$C$2,\"Beschreibung zu lang, bitte die Beschreibung kürzen\",IF(NOT(COUNTIF(Parameter!$C$3:$G$3,F296)),\"Beschreibung (optional) eingeben und Antritt/Austritt/Podest/Wand/Leer auswählen\",IF(ISBLANK(G296),\"Lagertyp auswählen\",IF(NOT(COUNTIF(Parameter!$C$4:$L$4,G296)),\"Bitte geben Sie einen korrekten Lagertyp ein \",IF(ISBLANK(H296),\"Form auswählen\",IF(NOT(COUNTIF(Parameter!$C$5:$F$5,H296)),\"Bitte geben Sie eine korrekte Form ein \",IF(ISBLANK(I296),\"Trittschallminderung auswählen\",IF(NOT(COUNTIF(Parameter!$E$6,I296)),\"Bitte geben Sie eine korrekte Trittschallminderung ein\",IF(AND(H296=\"F\",ISBLANK(J296)),\"Mass A eingeben in mm\",IF(AND(H296=\"L\",OR(ISBLANK(J296),ISBLANK(K296))),\"Mass A und B eingeben in mm\",IF(AND(OR(H296=\"Z\",H296=\"U\"),OR(ISBLANK(J296),ISBLANK(K296),ISBLANK(L296))),\"Mass A, B und C eingeben in mm\",IF(AND(H296=\"F\",OR(NOT(ISBLANK(K296)),NOT(ISBLANK(L296)))),\"Nur A eingeben bei F Form, bitte Abmessungen B und C löschen\",IF(AND(H296=\"L\",NOT(ISBLANK(L296))),\"Nur A und B eingeben bei L Form, bitte Abmessung C löschen\",IF(OR(AND(OR(Parameter!$D$7>J296,J296>Parameter!$F$7),OR(H296=\"F\",H296=\"U\")),AND(OR(Parameter!$H$7>J296,J296>Parameter!$J$7),OR(H296=\"L\",H296=\"Z\"))),\"Bitte korrigiere die Abmessung A\",IF(AND(OR(Parameter!$D$8>K296,K296>Parameter!$F$8),OR(H296=\"L\",H296=\"Z\",H296=\"U\")),\"Bitte korrigiere die Abmessung B\",IF(AND(OR(Parameter!$D$9>L296,L296>Parameter!$F$9),OR(H296=\"Z\",H296=\"U\")),\"Bitte korrigiere die Abmessung C\",IF(ISBLANK(M296),\"Länge eingeben in mm\",IF(OR(Parameter!$D$10>M296,M296>Parameter!$F$10),\"Bitte korrigiere die Länge\",IF(ISBLANK(N296),\"Menge eingeben\",IF(NOT(ISNUMBER(N296)),\"Bitte korrigiere die Menge\",\"OK\")))))))))))))))))))))","v":""},0,"",null,null,null,null,null,null,null,null,null,null,"",null,"",null,""]
["26)  ISOTREPP 36 dB",{"$f":"IF(LEN(D297)=0,IF(NOT(B296=\"OK\"),IF(SUMPRODUCT(--(D296:N296<>\"\"))=0,IF(AND(NOT(SUMPRODUCT(--(E297:N297<>\"\"))=0),D296=\"\"),\"Bitte keine Leerzeilen\",\"\"),IF(NOT(SUMPRODUCT(--(E297:N297<>\"\"))=0),\"Bitte korrigiere zuerst die vorherige Zeile\",\"\")),\"\"),IF(LEN(E297)>Parameter!$C$2,\"Beschreibung zu lang, bitte die Beschreibung kürzen\",IF(NOT(COUNTIF(Parameter!$C$3:$G$3,F297)),\"Beschreibung (optional) eingeben und Antritt/Austritt/Podest/Wand/Leer auswählen\",IF(ISBLANK(G297),\"Lagertyp auswählen\",IF(NOT(COUNTIF(Parameter!$C$4:$L$4,G297)),\"Bitte geben Sie einen korrekten Lagertyp ein \",IF(ISBLANK(H297),\"Form auswählen\",IF(NOT(COUNTIF(Parameter!$C$5:$F$5,H297)),\"Bitte geben Sie eine korrekte Form ein \",IF(ISBLANK(I297),\"Trittschallminderung auswählen\",IF(NOT(COUNTIF(Parameter!$E$6,I297)),\"Bitte geben Sie eine korrekte Trittschallminderung ein\",IF(AND(H297=\"F\",ISBLANK(J297)),\"Mass A eingeben in mm\",IF(AND(H297=\"L\",OR(ISBLANK(J297),ISBLANK(K297))),\"Mass A und B eingeben in mm\",IF(AND(OR(H297=\"Z\",H297=\"U\"),OR(ISBLANK(J297),ISBLANK(K297),ISBLANK(L297))),\"Mass A, B und C eingeben in mm\",IF(AND(H297=\"F\",OR(NOT(ISBLANK(K297)),NOT(ISBLANK(L297)))),\"Nur A eingeben bei F Form, bitte Abmessungen B und C löschen\",IF(AND(H297=\"L\",NOT(ISBLANK(L297))),\"Nur A und B eingeben bei L Form, bitte Abmessung C löschen\",IF(OR(AND(OR(Parameter!$D$7>J297,J297>Parameter!$F$7),OR(H297=\"F\",H297=\"U\")),AND(OR(Parameter!$H$7>J297,J297>Parameter!$J$7),OR(H297=\"L\",H297=\"Z\"))),\"Bitte korrigiere die Abmessung A\",IF(AND(OR(Parameter!$D$8>K297,K297>Parameter!$F$8),OR(H297=\"L\",H297=\"Z\",H297=\"U\")),\"Bitte korrigiere die Abmessung B\",IF(AND(OR(Parameter!$D$9>L297,L297>Parameter!$F$9),OR(H297=\"Z\",H297=\"U\")),\"Bitte korrigiere die Abmessung C\",IF(ISBLANK(M297),\"Länge eingeben in mm\",IF(OR(Parameter!$D$10>M297,M297>Parameter!$F$10),\"Bitte korrigiere die Länge\",IF(ISBLANK(N297),\"Menge eingeben\",IF(NOT(ISNUMBER(N297)),\"Bitte korrigiere die Menge\",\"OK\")))))))))))))))))))))","v":""},0,"",null,null,null,null,null,null,null,null,null,null,"",null,"",null,""]
["26)  ISOTREPP 36 dB",{"$f":"IF(LEN(D298)=0,IF(NOT(B297=\"OK\"),IF(SUMPRODUCT(--(D297:N297<>\"\"))=0,IF(AND(NOT(SUMPRODUCT(--(E298:N298<>\"\"))=0),D297=\"\"),\"Bitte keine Leerzeilen\",\"\"),IF(NOT(SUMPRODUCT(--(E298:N298<>\"\"))=0),\"Bitte korrigiere zuerst die vorherige Zeile\",\"\")),\"\"),IF(LEN(E298)>Parameter!$C$2,\"Beschreibung zu lang, bitte die Beschreibung kürzen\",IF(NOT(COUNTIF(Parameter!$C$3:$G$3,F298)),\"Beschreibung (optional) eingeben und Antritt/Austritt/Podest/Wand/Leer auswählen\",IF(ISBLANK(G298),\"Lagertyp auswählen\",IF(NOT(COUNTIF(Parameter!$C$4:$L$4,G298)),\"Bitte geben Sie einen korrekten Lagertyp ein \",IF(ISBLANK(H298),\"Form auswählen\",IF(NOT(COUNTIF(Parameter!$C$5:$F$5,H298)),\"Bitte geben Sie eine korrekte Form ein \",IF(ISBLANK(I298),\"Trittschallminderung auswählen\",IF(NOT(COUNTIF(Parameter!$E$6,I298)),\"Bitte geben Sie eine korrekte Trittschallminderung ein\",IF(AND(H298=\"F\",ISBLANK(J298)),\"Mass A eingeben in mm\",IF(AND(H298=\"L\",OR(ISBLANK(J298),ISBLANK(K298))),\"Mass A und B eingeben in mm\",IF(AND(OR(H298=\"Z\",H298=\"U\"),OR(ISBLANK(J298),ISBLANK(K298),ISBLANK(L298))),\"Mass A, B und C eingeben in mm\",IF(AND(H298=\"F\",OR(NOT(ISBLANK(K298)),NOT(ISBLANK(L298)))),\"Nur A eingeben bei F Form, bitte Abmessungen B und C löschen\",IF(AND(H298=\"L\",NOT(ISBLANK(L298))),\"Nur A und B eingeben bei L Form, bitte Abmessung C löschen\",IF(OR(AND(OR(Parameter!$D$7>J298,J298>Parameter!$F$7),OR(H298=\"F\",H298=\"U\")),AND(OR(Parameter!$H$7>J298,J298>Parameter!$J$7),OR(H298=\"L\",H298=\"Z\"))),\"Bitte korrigiere die Abmessung A\",IF(AND(OR(Parameter!$D$8>K298,K298>Parameter!$F$8),OR(H298=\"L\",H298=\"Z\",H298=\"U\")),\"Bitte korrigiere die Abmessung B\",IF(AND(OR(Parameter!$D$9>L298,L298>Parameter!$F$9),OR(H298=\"Z\",H298=\"U\")),\"Bitte korrigiere die Abmessung C\",IF(ISBLANK(M298),\"Länge eingeben in mm\",IF(OR(Parameter!$D$10>M298,M298>Parameter!$F$10),\"Bitte korrigiere die Länge\",IF(ISBLANK(N298),\"Menge eingeben\",IF(NOT(ISNUMBER(N298)),\"Bitte korrigiere die Menge\",\"OK\")))))))))))))))))))))","v":""},0,"",null,null,null,null,null,null,null,null,null,null,"",null,"",null,""]
["26)  ISOTREPP 36 dB",{"$f":"IF(LEN(D299)=0,IF(NOT(B298=\"OK\"),IF(SUMPRODUCT(--(D298:N298<>\"\"))=0,IF(AND(NOT(SUMPRODUCT(--(E299:N299<>\"\"))=0),D298=\"\"),\"Bitte keine Leerzeilen\",\"\"),IF(NOT(SUMPRODUCT(--(E299:N299<>\"\"))=0),\"Bitte korrigiere zuerst die vorherige Zeile\",\"\")),\"\"),IF(LEN(E299)>Parameter!$C$2,\"Beschreibung zu lang, bitte die Beschreibung kürzen\",IF(NOT(COUNTIF(Parameter!$C$3:$G$3,F299)),\"Beschreibung (optional) eingeben und Antritt/Austritt/Podest/Wand/Leer auswählen\",IF(ISBLANK(G299),\"Lagertyp auswählen\",IF(NOT(COUNTIF(Parameter!$C$4:$L$4,G299)),\"Bitte geben Sie einen korrekten Lagertyp ein \",IF(ISBLANK(H299),\"Form auswählen\",IF(NOT(COUNTIF(Parameter!$C$5:$F$5,H299)),\"Bitte geben Sie eine korrekte Form ein \",IF(ISBLANK(I299),\"Trittschallminderung auswählen\",IF(NOT(COUNTIF(Parameter!$E$6,I299)),\"Bitte geben Sie eine korrekte Trittschallminderung ein\",IF(AND(H299=\"F\",ISBLANK(J299)),\"Mass A eingeben in mm\",IF(AND(H299=\"L\",OR(ISBLANK(J299),ISBLANK(K299))),\"Mass A und B eingeben in mm\",IF(AND(OR(H299=\"Z\",H299=\"U\"),OR(ISBLANK(J299),ISBLANK(K299),ISBLANK(L299))),\"Mass A, B und C eingeben in mm\",IF(AND(H299=\"F\",OR(NOT(ISBLANK(K299)),NOT(ISBLANK(L299)))),\"Nur A eingeben bei F Form, bitte Abmessungen B und C löschen\",IF(AND(H299=\"L\",NOT(ISBLANK(L299))),\"Nur A und B eingeben bei L Form, bitte Abmessung C löschen\",IF(OR(AND(OR(Parameter!$D$7>J299,J299>Parameter!$F$7),OR(H299=\"F\",H299=\"U\")),AND(OR(Parameter!$H$7>J299,J299>Parameter!$J$7),OR(H299=\"L\",H299=\"Z\"))),\"Bitte korrigiere die Abmessung A\",IF(AND(OR(Parameter!$D$8>K299,K299>Parameter!$F$8),OR(H299=\"L\",H299=\"Z\",H299=\"U\")),\"Bitte korrigiere die Abmessung B\",IF(AND(OR(Parameter!$D$9>L299,L299>Parameter!$F$9),OR(H299=\"Z\",H299=\"U\")),\"Bitte korrigiere die Abmessung C\",IF(ISBLANK(M299),\"Länge eingeben in mm\",IF(OR(Parameter!$D$10>M299,M299>Parameter!$F$10),\"Bitte korrigiere die Länge\",IF(ISBLANK(N299),\"Menge eingeben\",IF(NOT(ISNUMBER(N299)),\"Bitte korrigiere die Menge\",\"OK\")))))))))))))))))))))","v":""},0,"",null,null,null,null,null,null,null,null,null,null,"",null,"",null,""]
["26)  ISOTREPP 36 dB",{"$f":"IF(LEN(D300)=0,IF(NOT(B299=\"OK\"),IF(SUMPRODUCT(--(D299:N299<>\"\"))=0,IF(AND(NOT(SUMPRODUCT(--(E300:N300<>\"\"))=0),D299=\"\"),\"Bitte keine Leerzeilen\",\"\"),IF(NOT(SUMPRODUCT(--(E300:N300<>\"\"))=0),\"Bitte korrigiere zuerst die vorherige Zeile\",\"\")),\"\"),IF(LEN(E300)>Parameter!$C$2,\"Beschreibung zu lang, bitte die Beschreibung kürzen\",IF(NOT(COUNTIF(Parameter!$C$3:$G$3,F300)),\"Beschreibung (optional) eingeben und Antritt/Austritt/Podest/Wand/Leer auswählen\",IF(ISBLANK(G300),\"Lagertyp auswählen\",IF(NOT(COUNTIF(Parameter!$C$4:$L$4,G300)),\"Bitte geben Sie einen korrekten Lagertyp ein \",IF(ISBLANK(H300),\"Form auswählen\",IF(NOT(COUNTIF(Parameter!$C$5:$F$5,H300)),\"Bitte geben Sie eine korrekte Form ein \",IF(ISBLANK(I300),\"Trittschallminderung auswählen\",IF(NOT(COUNTIF(Parameter!$E$6,I300)),\"Bitte geben Sie eine korrekte Trittschallminderung ein\",IF(AND(H300=\"F\",ISBLANK(J300)),\"Mass A eingeben in mm\",IF(AND(H300=\"L\",OR(ISBLANK(J300),ISBLANK(K300))),\"Mass A und B eingeben in mm\",IF(AND(OR(H300=\"Z\",H300=\"U\"),OR(ISBLANK(J300),ISBLANK(K300),ISBLANK(L300))),\"Mass A, B und C eingeben in mm\",IF(AND(H300=\"F\",OR(NOT(ISBLANK(K300)),NOT(ISBLANK(L300)))),\"Nur A eingeben bei F Form, bitte Abmessungen B und C löschen\",IF(AND(H300=\"L\",NOT(ISBLANK(L300))),\"Nur A und B eingeben bei L Form, bitte Abmessung C löschen\",IF(OR(AND(OR(Parameter!$D$7>J300,J300>Parameter!$F$7),OR(H300=\"F\",H300=\"U\")),AND(OR(Parameter!$H$7>J300,J300>Parameter!$J$7),OR(H300=\"L\",H300=\"Z\"))),\"Bitte korrigiere die Abmessung A\",IF(AND(OR(Parameter!$D$8>K300,K300>Parameter!$F$8),OR(H300=\"L\",H300=\"Z\",H300=\"U\")),\"Bitte korrigiere die Abmessung B\",IF(AND(OR(Parameter!$D$9>L300,L300>Parameter!$F$9),OR(H300=\"Z\",H300=\"U\")),\"Bitte korrigiere die Abmessung C\",IF(ISBLANK(M300),\"Länge eingeben in mm\",IF(OR(Parameter!$D$10>M300,M300>Parameter!$F$10),\"Bitte korrigiere die Länge\",IF(ISBLANK(N300),\"Menge eingeben\",IF(NOT(ISNUMBER(N300)),\"Bitte korrigiere die Menge\",\"OK\")))))))))))))))))))))","v":""},0,"",null,null,null,null,null,null,null,null,null,null,"",null,"",null,""]
["26)  ISOTREPP 36 dB",{"$f":"IF(LEN(D301)=0,IF(NOT(B300=\"OK\"),IF(SUMPRODUCT(--(D300:N300<>\"\"))=0,IF(AND(NOT(SUMPRODUCT(--(E301:N301<>\"\"))=0),D300=\"\"),\"Bitte keine Leerzeilen\",\"\"),IF(NOT(SUMPRODUCT(--(E301:N301<>\"\"))=0),\"Bitte korrigiere zuerst die vorherige Zeile\",\"\")),\"\"),IF(LEN(E301)>Parameter!$C$2,\"Beschreibung zu lang, bitte die Beschreibung kürzen\",IF(NOT(COUNTIF(Parameter!$C$3:$G$3,F301)),\"Beschreibung (optional) eingeben und Antritt/Austritt/Podest/Wand/Leer auswählen\",IF(ISBLANK(G301),\"Lagertyp auswählen\",IF(NOT(COUNTIF(Parameter!$C$4:$L$4,G301)),\"Bitte geben Sie einen korrekten Lagertyp ein \",IF(ISBLANK(H301),\"Form auswählen\",IF(NOT(COUNTIF(Parameter!$C$5:$F$5,H301)),\"Bitte geben Sie eine korrekte Form ein \",IF(ISBLANK(I301),\"Trittschallminderung auswählen\",IF(NOT(COUNTIF(Parameter!$E$6,I301)),\"Bitte geben Sie eine korrekte Trittschallminderung ein\",IF(AND(H301=\"F\",ISBLANK(J301)),\"Mass A eingeben in mm\",IF(AND(H301=\"L\",OR(ISBLANK(J301),ISBLANK(K301))),\"Mass A und B eingeben in mm\",IF(AND(OR(H301=\"Z\",H301=\"U\"),OR(ISBLANK(J301),ISBLANK(K301),ISBLANK(L301))),\"Mass A, B und C eingeben in mm\",IF(AND(H301=\"F\",OR(NOT(ISBLANK(K301)),NOT(ISBLANK(L301)))),\"Nur A eingeben bei F Form, bitte Abmessungen B und C löschen\",IF(AND(H301=\"L\",NOT(ISBLANK(L301))),\"Nur A und B eingeben bei L Form, bitte Abmessung C löschen\",IF(OR(AND(OR(Parameter!$D$7>J301,J301>Parameter!$F$7),OR(H301=\"F\",H301=\"U\")),AND(OR(Parameter!$H$7>J301,J301>Parameter!$J$7),OR(H301=\"L\",H301=\"Z\"))),\"Bitte korrigiere die Abmessung A\",IF(AND(OR(Parameter!$D$8>K301,K301>Parameter!$F$8),OR(H301=\"L\",H301=\"Z\",H301=\"U\")),\"Bitte korrigiere die Abmessung B\",IF(AND(OR(Parameter!$D$9>L301,L301>Parameter!$F$9),OR(H301=\"Z\",H301=\"U\")),\"Bitte korrigiere die Abmessung C\",IF(ISBLANK(M301),\"Länge eingeben in mm\",IF(OR(Parameter!$D$10>M301,M301>Parameter!$F$10),\"Bitte korrigiere die Länge\",IF(ISBLANK(N301),\"Menge eingeben\",IF(NOT(ISNUMBER(N301)),\"Bitte korrigiere die Menge\",\"OK\")))))))))))))))))))))","v":""},0,"",null,null,null,null,null,null,null,null,null,null,"",null,"",null,""]
["26)  ISOTREPP 36 dB",{"$f":"IF(LEN(D302)=0,IF(NOT(B301=\"OK\"),IF(SUMPRODUCT(--(D301:N301<>\"\"))=0,IF(AND(NOT(SUMPRODUCT(--(E302:N302<>\"\"))=0),D301=\"\"),\"Bitte keine Leerzeilen\",\"\"),IF(NOT(SUMPRODUCT(--(E302:N302<>\"\"))=0),\"Bitte korrigiere zuerst die vorherige Zeile\",\"\")),\"\"),IF(LEN(E302)>Parameter!$C$2,\"Beschreibung zu lang, bitte die Beschreibung kürzen\",IF(NOT(COUNTIF(Parameter!$C$3:$G$3,F302)),\"Beschreibung (optional) eingeben und Antritt/Austritt/Podest/Wand/Leer auswählen\",IF(ISBLANK(G302),\"Lagertyp auswählen\",IF(NOT(COUNTIF(Parameter!$C$4:$L$4,G302)),\"Bitte geben Sie einen korrekten Lagertyp ein \",IF(ISBLANK(H302),\"Form auswählen\",IF(NOT(COUNTIF(Parameter!$C$5:$F$5,H302)),\"Bitte geben Sie eine korrekte Form ein \",IF(ISBLANK(I302),\"Trittschallminderung auswählen\",IF(NOT(COUNTIF(Parameter!$E$6,I302)),\"Bitte geben Sie eine korrekte Trittschallminderung ein\",IF(AND(H302=\"F\",ISBLANK(J302)),\"Mass A eingeben in mm\",IF(AND(H302=\"L\",OR(ISBLANK(J302),ISBLANK(K302))),\"Mass A und B eingeben in mm\",IF(AND(OR(H302=\"Z\",H302=\"U\"),OR(ISBLANK(J302),ISBLANK(K302),ISBLANK(L302))),\"Mass A, B und C eingeben in mm\",IF(AND(H302=\"F\",OR(NOT(ISBLANK(K302)),NOT(ISBLANK(L302)))),\"Nur A eingeben bei F Form, bitte Abmessungen B und C löschen\",IF(AND(H302=\"L\",NOT(ISBLANK(L302))),\"Nur A und B eingeben bei L Form, bitte Abmessung C löschen\",IF(OR(AND(OR(Parameter!$D$7>J302,J302>Parameter!$F$7),OR(H302=\"F\",H302=\"U\")),AND(OR(Parameter!$H$7>J302,J302>Parameter!$J$7),OR(H302=\"L\",H302=\"Z\"))),\"Bitte korrigiere die Abmessung A\",IF(AND(OR(Parameter!$D$8>K302,K302>Parameter!$F$8),OR(H302=\"L\",H302=\"Z\",H302=\"U\")),\"Bitte korrigiere die Abmessung B\",IF(AND(OR(Parameter!$D$9>L302,L302>Parameter!$F$9),OR(H302=\"Z\",H302=\"U\")),\"Bitte korrigiere die Abmessung C\",IF(ISBLANK(M302),\"Länge eingeben in mm\",IF(OR(Parameter!$D$10>M302,M302>Parameter!$F$10),\"Bitte korrigiere die Länge\",IF(ISBLANK(N302),\"Menge eingeben\",IF(NOT(ISNUMBER(N302)),\"Bitte korrigiere die Menge\",\"OK\")))))))))))))))))))))","v":""},0,"",null,null,null,null,null,null,null,null,null,null,"",null,"",null,""]
["26)  ISOTREPP 36 dB",{"$f":"IF(LEN(D303)=0,IF(NOT(B302=\"OK\"),IF(SUMPRODUCT(--(D302:N302<>\"\"))=0,IF(AND(NOT(SUMPRODUCT(--(E303:N303<>\"\"))=0),D302=\"\"),\"Bitte keine Leerzeilen\",\"\"),IF(NOT(SUMPRODUCT(--(E303:N303<>\"\"))=0),\"Bitte korrigiere zuerst die vorherige Zeile\",\"\")),\"\"),IF(LEN(E303)>Parameter!$C$2,\"Beschreibung zu lang, bitte die Beschreibung kürzen\",IF(NOT(COUNTIF(Parameter!$C$3:$G$3,F303)),\"Beschreibung (optional) eingeben und Antritt/Austritt/Podest/Wand/Leer auswählen\",IF(ISBLANK(G303),\"Lagertyp auswählen\",IF(NOT(COUNTIF(Parameter!$C$4:$L$4,G303)),\"Bitte geben Sie einen korrekten Lagertyp ein \",IF(ISBLANK(H303),\"Form auswählen\",IF(NOT(COUNTIF(Parameter!$C$5:$F$5,H303)),\"Bitte geben Sie eine korrekte Form ein \",IF(ISBLANK(I303),\"Trittschallminderung auswählen\",IF(NOT(COUNTIF(Parameter!$E$6,I303)),\"Bitte geben Sie eine korrekte Trittschallminderung ein\",IF(AND(H303=\"F\",ISBLANK(J303)),\"Mass A eingeben in mm\",IF(AND(H303=\"L\",OR(ISBLANK(J303),ISBLANK(K303))),\"Mass A und B eingeben in mm\",IF(AND(OR(H303=\"Z\",H303=\"U\"),OR(ISBLANK(J303),ISBLANK(K303),ISBLANK(L303))),\"Mass A, B und C eingeben in mm\",IF(AND(H303=\"F\",OR(NOT(ISBLANK(K303)),NOT(ISBLANK(L303)))),\"Nur A eingeben bei F Form, bitte Abmessungen B und C löschen\",IF(AND(H303=\"L\",NOT(ISBLANK(L303))),\"Nur A und B eingeben bei L Form, bitte Abmessung C löschen\",IF(OR(AND(OR(Parameter!$D$7>J303,J303>Parameter!$F$7),OR(H303=\"F\",H303=\"U\")),AND(OR(Parameter!$H$7>J303,J303>Parameter!$J$7),OR(H303=\"L\",H303=\"Z\"))),\"Bitte korrigiere die Abmessung A\",IF(AND(OR(Parameter!$D$8>K303,K303>Parameter!$F$8),OR(H303=\"L\",H303=\"Z\",H303=\"U\")),\"Bitte korrigiere die Abmessung B\",IF(AND(OR(Parameter!$D$9>L303,L303>Parameter!$F$9),OR(H303=\"Z\",H303=\"U\")),\"Bitte korrigiere die Abmessung C\",IF(ISBLANK(M303),\"Länge eingeben in mm\",IF(OR(Parameter!$D$10>M303,M303>Parameter!$F$10),\"Bitte korrigiere die Länge\",IF(ISBLANK(N303),\"Menge eingeben\",IF(NOT(ISNUMBER(N303)),\"Bitte korrigiere die Menge\",\"OK\")))))))))))))))))))))","v":""},0,"",null,null,null,null,null,null,null,null,null,null,"",null,"",null,""]
["26)  ISOTREPP 36 dB",{"$f":"IF(LEN(D304)=0,IF(NOT(B303=\"OK\"),IF(SUMPRODUCT(--(D303:N303<>\"\"))=0,IF(AND(NOT(SUMPRODUCT(--(E304:N304<>\"\"))=0),D303=\"\"),\"Bitte keine Leerzeilen\",\"\"),IF(NOT(SUMPRODUCT(--(E304:N304<>\"\"))=0),\"Bitte korrigiere zuerst die vorherige Zeile\",\"\")),\"\"),IF(LEN(E304)>Parameter!$C$2,\"Beschreibung zu lang, bitte die Beschreibung kürzen\",IF(NOT(COUNTIF(Parameter!$C$3:$G$3,F304)),\"Beschreibung (optional) eingeben und Antritt/Austritt/Podest/Wand/Leer auswählen\",IF(ISBLANK(G304),\"Lagertyp auswählen\",IF(NOT(COUNTIF(Parameter!$C$4:$L$4,G304)),\"Bitte geben Sie einen korrekten Lagertyp ein \",IF(ISBLANK(H304),\"Form auswählen\",IF(NOT(COUNTIF(Parameter!$C$5:$F$5,H304)),\"Bitte geben Sie eine korrekte Form ein \",IF(ISBLANK(I304),\"Trittschallminderung auswählen\",IF(NOT(COUNTIF(Parameter!$E$6,I304)),\"Bitte geben Sie eine korrekte Trittschallminderung ein\",IF(AND(H304=\"F\",ISBLANK(J304)),\"Mass A eingeben in mm\",IF(AND(H304=\"L\",OR(ISBLANK(J304),ISBLANK(K304))),\"Mass A und B eingeben in mm\",IF(AND(OR(H304=\"Z\",H304=\"U\"),OR(ISBLANK(J304),ISBLANK(K304),ISBLANK(L304))),\"Mass A, B und C eingeben in mm\",IF(AND(H304=\"F\",OR(NOT(ISBLANK(K304)),NOT(ISBLANK(L304)))),\"Nur A eingeben bei F Form, bitte Abmessungen B und C löschen\",IF(AND(H304=\"L\",NOT(ISBLANK(L304))),\"Nur A und B eingeben bei L Form, bitte Abmessung C löschen\",IF(OR(AND(OR(Parameter!$D$7>J304,J304>Parameter!$F$7),OR(H304=\"F\",H304=\"U\")),AND(OR(Parameter!$H$7>J304,J304>Parameter!$J$7),OR(H304=\"L\",H304=\"Z\"))),\"Bitte korrigiere die Abmessung A\",IF(AND(OR(Parameter!$D$8>K304,K304>Parameter!$F$8),OR(H304=\"L\",H304=\"Z\",H304=\"U\")),\"Bitte korrigiere die Abmessung B\",IF(AND(OR(Parameter!$D$9>L304,L304>Parameter!$F$9),OR(H304=\"Z\",H304=\"U\")),\"Bitte korrigiere die Abmessung C\",IF(ISBLANK(M304),\"Länge eingeben in mm\",IF(OR(Parameter!$D$10>M304,M304>Parameter!$F$10),\"Bitte korrigiere die Länge\",IF(ISBLANK(N304),\"Menge eingeben\",IF(NOT(ISNUMBER(N304)),\"Bitte korrigiere die Menge\",\"OK\")))))))))))))))))))))","v":""},0,"",null,null,null,null,null,null,null,null,null,null,"",null,"",null,""]
["26)  ISOTREPP 36 dB",{"$f":"IF(LEN(D305)=0,IF(NOT(B304=\"OK\"),IF(SUMPRODUCT(--(D304:N304<>\"\"))=0,IF(AND(NOT(SUMPRODUCT(--(E305:N305<>\"\"))=0),D304=\"\"),\"Bitte keine Leerzeilen\",\"\"),IF(NOT(SUMPRODUCT(--(E305:N305<>\"\"))=0),\"Bitte korrigiere zuerst die vorherige Zeile\",\"\")),\"\"),IF(LEN(E305)>Parameter!$C$2,\"Beschreibung zu lang, bitte die Beschreibung kürzen\",IF(NOT(COUNTIF(Parameter!$C$3:$G$3,F305)),\"Beschreibung (optional) eingeben und Antritt/Austritt/Podest/Wand/Leer auswählen\",IF(ISBLANK(G305),\"Lagertyp auswählen\",IF(NOT(COUNTIF(Parameter!$C$4:$L$4,G305)),\"Bitte geben Sie einen korrekten Lagertyp ein \",IF(ISBLANK(H305),\"Form auswählen\",IF(NOT(COUNTIF(Parameter!$C$5:$F$5,H305)),\"Bitte geben Sie eine korrekte Form ein \",IF(ISBLANK(I305),\"Trittschallminderung auswählen\",IF(NOT(COUNTIF(Parameter!$E$6,I305)),\"Bitte geben Sie eine korrekte Trittschallminderung ein\",IF(AND(H305=\"F\",ISBLANK(J305)),\"Mass A eingeben in mm\",IF(AND(H305=\"L\",OR(ISBLANK(J305),ISBLANK(K305))),\"Mass A und B eingeben in mm\",IF(AND(OR(H305=\"Z\",H305=\"U\"),OR(ISBLANK(J305),ISBLANK(K305),ISBLANK(L305))),\"Mass A, B und C eingeben in mm\",IF(AND(H305=\"F\",OR(NOT(ISBLANK(K305)),NOT(ISBLANK(L305)))),\"Nur A eingeben bei F Form, bitte Abmessungen B und C löschen\",IF(AND(H305=\"L\",NOT(ISBLANK(L305))),\"Nur A und B eingeben bei L Form, bitte Abmessung C löschen\",IF(OR(AND(OR(Parameter!$D$7>J305,J305>Parameter!$F$7),OR(H305=\"F\",H305=\"U\")),AND(OR(Parameter!$H$7>J305,J305>Parameter!$J$7),OR(H305=\"L\",H305=\"Z\"))),\"Bitte korrigiere die Abmessung A\",IF(AND(OR(Parameter!$D$8>K305,K305>Parameter!$F$8),OR(H305=\"L\",H305=\"Z\",H305=\"U\")),\"Bitte korrigiere die Abmessung B\",IF(AND(OR(Parameter!$D$9>L305,L305>Parameter!$F$9),OR(H305=\"Z\",H305=\"U\")),\"Bitte korrigiere die Abmessung C\",IF(ISBLANK(M305),\"Länge eingeben in mm\",IF(OR(Parameter!$D$10>M305,M305>Parameter!$F$10),\"Bitte korrigiere die Länge\",IF(ISBLANK(N305),\"Menge eingeben\",IF(NOT(ISNUMBER(N305)),\"Bitte korrigiere die Menge\",\"OK\")))))))))))))))))))))","v":""},0,"",null,null,null,null,null,null,null,null,null,null,"",null,"",null,""]
["26)  ISOTREPP 36 dB",{"$f":"IF(LEN(D306)=0,IF(NOT(B305=\"OK\"),IF(SUMPRODUCT(--(D305:N305<>\"\"))=0,IF(AND(NOT(SUMPRODUCT(--(E306:N306<>\"\"))=0),D305=\"\"),\"Bitte keine Leerzeilen\",\"\"),IF(NOT(SUMPRODUCT(--(E306:N306<>\"\"))=0),\"Bitte korrigiere zuerst die vorherige Zeile\",\"\")),\"\"),IF(LEN(E306)>Parameter!$C$2,\"Beschreibung zu lang, bitte die Beschreibung kürzen\",IF(NOT(COUNTIF(Parameter!$C$3:$G$3,F306)),\"Beschreibung (optional) eingeben und Antritt/Austritt/Podest/Wand/Leer auswählen\",IF(ISBLANK(G306),\"Lagertyp auswählen\",IF(NOT(COUNTIF(Parameter!$C$4:$L$4,G306)),\"Bitte geben Sie einen korrekten Lagertyp ein \",IF(ISBLANK(H306),\"Form auswählen\",IF(NOT(COUNTIF(Parameter!$C$5:$F$5,H306)),\"Bitte geben Sie eine korrekte Form ein \",IF(ISBLANK(I306),\"Trittschallminderung auswählen\",IF(NOT(COUNTIF(Parameter!$E$6,I306)),\"Bitte geben Sie eine korrekte Trittschallminderung ein\",IF(AND(H306=\"F\",ISBLANK(J306)),\"Mass A eingeben in mm\",IF(AND(H306=\"L\",OR(ISBLANK(J306),ISBLANK(K306))),\"Mass A und B eingeben in mm\",IF(AND(OR(H306=\"Z\",H306=\"U\"),OR(ISBLANK(J306),ISBLANK(K306),ISBLANK(L306))),\"Mass A, B und C eingeben in mm\",IF(AND(H306=\"F\",OR(NOT(ISBLANK(K306)),NOT(ISBLANK(L306)))),\"Nur A eingeben bei F Form, bitte Abmessungen B und C löschen\",IF(AND(H306=\"L\",NOT(ISBLANK(L306))),\"Nur A und B eingeben bei L Form, bitte Abmessung C löschen\",IF(OR(AND(OR(Parameter!$D$7>J306,J306>Parameter!$F$7),OR(H306=\"F\",H306=\"U\")),AND(OR(Parameter!$H$7>J306,J306>Parameter!$J$7),OR(H306=\"L\",H306=\"Z\"))),\"Bitte korrigiere die Abmessung A\",IF(AND(OR(Parameter!$D$8>K306,K306>Parameter!$F$8),OR(H306=\"L\",H306=\"Z\",H306=\"U\")),\"Bitte korrigiere die Abmessung B\",IF(AND(OR(Parameter!$D$9>L306,L306>Parameter!$F$9),OR(H306=\"Z\",H306=\"U\")),\"Bitte korrigiere die Abmessung C\",IF(ISBLANK(M306),\"Länge eingeben in mm\",IF(OR(Parameter!$D$10>M306,M306>Parameter!$F$10),\"Bitte korrigiere die Länge\",IF(ISBLANK(N306),\"Menge eingeben\",IF(NOT(ISNUMBER(N306)),\"Bitte korrigiere die Menge\",\"OK\")))))))))))))))))))))","v":""},0,"",null,null,null,null,null,null,null,null,null,null,"",null,"",null,""]
["26)  ISOTREPP 36 dB",{"$f":"IF(LEN(D307)=0,IF(NOT(B306=\"OK\"),IF(SUMPRODUCT(--(D306:N306<>\"\"))=0,IF(AND(NOT(SUMPRODUCT(--(E307:N307<>\"\"))=0),D306=\"\"),\"Bitte keine Leerzeilen\",\"\"),IF(NOT(SUMPRODUCT(--(E307:N307<>\"\"))=0),\"Bitte korrigiere zuerst die vorherige Zeile\",\"\")),\"\"),IF(LEN(E307)>Parameter!$C$2,\"Beschreibung zu lang, bitte die Beschreibung kürzen\",IF(NOT(COUNTIF(Parameter!$C$3:$G$3,F307)),\"Beschreibung (optional) eingeben und Antritt/Austritt/Podest/Wand/Leer auswählen\",IF(ISBLANK(G307),\"Lagertyp auswählen\",IF(NOT(COUNTIF(Parameter!$C$4:$L$4,G307)),\"Bitte geben Sie einen korrekten Lagertyp ein \",IF(ISBLANK(H307),\"Form auswählen\",IF(NOT(COUNTIF(Parameter!$C$5:$F$5,H307)),\"Bitte geben Sie eine korrekte Form ein \",IF(ISBLANK(I307),\"Trittschallminderung auswählen\",IF(NOT(COUNTIF(Parameter!$E$6,I307)),\"Bitte geben Sie eine korrekte Trittschallminderung ein\",IF(AND(H307=\"F\",ISBLANK(J307)),\"Mass A eingeben in mm\",IF(AND(H307=\"L\",OR(ISBLANK(J307),ISBLANK(K307))),\"Mass A und B eingeben in mm\",IF(AND(OR(H307=\"Z\",H307=\"U\"),OR(ISBLANK(J307),ISBLANK(K307),ISBLANK(L307))),\"Mass A, B und C eingeben in mm\",IF(AND(H307=\"F\",OR(NOT(ISBLANK(K307)),NOT(ISBLANK(L307)))),\"Nur A eingeben bei F Form, bitte Abmessungen B und C löschen\",IF(AND(H307=\"L\",NOT(ISBLANK(L307))),\"Nur A und B eingeben bei L Form, bitte Abmessung C löschen\",IF(OR(AND(OR(Parameter!$D$7>J307,J307>Parameter!$F$7),OR(H307=\"F\",H307=\"U\")),AND(OR(Parameter!$H$7>J307,J307>Parameter!$J$7),OR(H307=\"L\",H307=\"Z\"))),\"Bitte korrigiere die Abmessung A\",IF(AND(OR(Parameter!$D$8>K307,K307>Parameter!$F$8),OR(H307=\"L\",H307=\"Z\",H307=\"U\")),\"Bitte korrigiere die Abmessung B\",IF(AND(OR(Parameter!$D$9>L307,L307>Parameter!$F$9),OR(H307=\"Z\",H307=\"U\")),\"Bitte korrigiere die Abmessung C\",IF(ISBLANK(M307),\"Länge eingeben in mm\",IF(OR(Parameter!$D$10>M307,M307>Parameter!$F$10),\"Bitte korrigiere die Länge\",IF(ISBLANK(N307),\"Menge eingeben\",IF(NOT(ISNUMBER(N307)),\"Bitte korrigiere die Menge\",\"OK\")))))))))))))))))))))","v":""},0,"",null,null,null,null,null,null,null,null,null,null,"",null,"",null,""]
["26)  ISOTREPP 36 dB",{"$f":"IF(LEN(D308)=0,IF(NOT(B307=\"OK\"),IF(SUMPRODUCT(--(D307:N307<>\"\"))=0,IF(AND(NOT(SUMPRODUCT(--(E308:N308<>\"\"))=0),D307=\"\"),\"Bitte keine Leerzeilen\",\"\"),IF(NOT(SUMPRODUCT(--(E308:N308<>\"\"))=0),\"Bitte korrigiere zuerst die vorherige Zeile\",\"\")),\"\"),IF(LEN(E308)>Parameter!$C$2,\"Beschreibung zu lang, bitte die Beschreibung kürzen\",IF(NOT(COUNTIF(Parameter!$C$3:$G$3,F308)),\"Beschreibung (optional) eingeben und Antritt/Austritt/Podest/Wand/Leer auswählen\",IF(ISBLANK(G308),\"Lagertyp auswählen\",IF(NOT(COUNTIF(Parameter!$C$4:$L$4,G308)),\"Bitte geben Sie einen korrekten Lagertyp ein \",IF(ISBLANK(H308),\"Form auswählen\",IF(NOT(COUNTIF(Parameter!$C$5:$F$5,H308)),\"Bitte geben Sie eine korrekte Form ein \",IF(ISBLANK(I308),\"Trittschallminderung auswählen\",IF(NOT(COUNTIF(Parameter!$E$6,I308)),\"Bitte geben Sie eine korrekte Trittschallminderung ein\",IF(AND(H308=\"F\",ISBLANK(J308)),\"Mass A eingeben in mm\",IF(AND(H308=\"L\",OR(ISBLANK(J308),ISBLANK(K308))),\"Mass A und B eingeben in mm\",IF(AND(OR(H308=\"Z\",H308=\"U\"),OR(ISBLANK(J308),ISBLANK(K308),ISBLANK(L308))),\"Mass A, B und C eingeben in mm\",IF(AND(H308=\"F\",OR(NOT(ISBLANK(K308)),NOT(ISBLANK(L308)))),\"Nur A eingeben bei F Form, bitte Abmessungen B und C löschen\",IF(AND(H308=\"L\",NOT(ISBLANK(L308))),\"Nur A und B eingeben bei L Form, bitte Abmessung C löschen\",IF(OR(AND(OR(Parameter!$D$7>J308,J308>Parameter!$F$7),OR(H308=\"F\",H308=\"U\")),AND(OR(Parameter!$H$7>J308,J308>Parameter!$J$7),OR(H308=\"L\",H308=\"Z\"))),\"Bitte korrigiere die Abmessung A\",IF(AND(OR(Parameter!$D$8>K308,K308>Parameter!$F$8),OR(H308=\"L\",H308=\"Z\",H308=\"U\")),\"Bitte korrigiere die Abmessung B\",IF(AND(OR(Parameter!$D$9>L308,L308>Parameter!$F$9),OR(H308=\"Z\",H308=\"U\")),\"Bitte korrigiere die Abmessung C\",IF(ISBLANK(M308),\"Länge eingeben in mm\",IF(OR(Parameter!$D$10>M308,M308>Parameter!$F$10),\"Bitte korrigiere die Länge\",IF(ISBLANK(N308),\"Menge eingeben\",IF(NOT(ISNUMBER(N308)),\"Bitte korrigiere die Menge\",\"OK\")))))))))))))))))))))","v":""},0,"",null,null,null,null,null,null,null,null,null,null,"",null,"",null,""]
["26)  ISOTREPP 36 dB",{"$f":"IF(LEN(D309)=0,IF(NOT(B308=\"OK\"),IF(SUMPRODUCT(--(D308:N308<>\"\"))=0,IF(AND(NOT(SUMPRODUCT(--(E309:N309<>\"\"))=0),D308=\"\"),\"Bitte keine Leerzeilen\",\"\"),IF(NOT(SUMPRODUCT(--(E309:N309<>\"\"))=0),\"Bitte korrigiere zuerst die vorherige Zeile\",\"\")),\"\"),IF(LEN(E309)>Parameter!$C$2,\"Beschreibung zu lang, bitte die Beschreibung kürzen\",IF(NOT(COUNTIF(Parameter!$C$3:$G$3,F309)),\"Beschreibung (optional) eingeben und Antritt/Austritt/Podest/Wand/Leer auswählen\",IF(ISBLANK(G309),\"Lagertyp auswählen\",IF(NOT(COUNTIF(Parameter!$C$4:$L$4,G309)),\"Bitte geben Sie einen korrekten Lagertyp ein \",IF(ISBLANK(H309),\"Form auswählen\",IF(NOT(COUNTIF(Parameter!$C$5:$F$5,H309)),\"Bitte geben Sie eine korrekte Form ein \",IF(ISBLANK(I309),\"Trittschallminderung auswählen\",IF(NOT(COUNTIF(Parameter!$E$6,I309)),\"Bitte geben Sie eine korrekte Trittschallminderung ein\",IF(AND(H309=\"F\",ISBLANK(J309)),\"Mass A eingeben in mm\",IF(AND(H309=\"L\",OR(ISBLANK(J309),ISBLANK(K309))),\"Mass A und B eingeben in mm\",IF(AND(OR(H309=\"Z\",H309=\"U\"),OR(ISBLANK(J309),ISBLANK(K309),ISBLANK(L309))),\"Mass A, B und C eingeben in mm\",IF(AND(H309=\"F\",OR(NOT(ISBLANK(K309)),NOT(ISBLANK(L309)))),\"Nur A eingeben bei F Form, bitte Abmessungen B und C löschen\",IF(AND(H309=\"L\",NOT(ISBLANK(L309))),\"Nur A und B eingeben bei L Form, bitte Abmessung C löschen\",IF(OR(AND(OR(Parameter!$D$7>J309,J309>Parameter!$F$7),OR(H309=\"F\",H309=\"U\")),AND(OR(Parameter!$H$7>J309,J309>Parameter!$J$7),OR(H309=\"L\",H309=\"Z\"))),\"Bitte korrigiere die Abmessung A\",IF(AND(OR(Parameter!$D$8>K309,K309>Parameter!$F$8),OR(H309=\"L\",H309=\"Z\",H309=\"U\")),\"Bitte korrigiere die Abmessung B\",IF(AND(OR(Parameter!$D$9>L309,L309>Parameter!$F$9),OR(H309=\"Z\",H309=\"U\")),\"Bitte korrigiere die Abmessung C\",IF(ISBLANK(M309),\"Länge eingeben in mm\",IF(OR(Parameter!$D$10>M309,M309>Parameter!$F$10),\"Bitte korrigiere die Länge\",IF(ISBLANK(N309),\"Menge eingeben\",IF(NOT(ISNUMBER(N309)),\"Bitte korrigiere die Menge\",\"OK\")))))))))))))))))))))","v":""},0,"",null,null,null,null,null,null,null,null,null,null,"",null,"",null,""]
["26)  ISOTREPP 36 dB",{"$f":"IF(LEN(D310)=0,IF(NOT(B309=\"OK\"),IF(SUMPRODUCT(--(D309:N309<>\"\"))=0,IF(AND(NOT(SUMPRODUCT(--(E310:N310<>\"\"))=0),D309=\"\"),\"Bitte keine Leerzeilen\",\"\"),IF(NOT(SUMPRODUCT(--(E310:N310<>\"\"))=0),\"Bitte korrigiere zuerst die vorherige Zeile\",\"\")),\"\"),IF(LEN(E310)>Parameter!$C$2,\"Beschreibung zu lang, bitte die Beschreibung kürzen\",IF(NOT(COUNTIF(Parameter!$C$3:$G$3,F310)),\"Beschreibung (optional) eingeben und Antritt/Austritt/Podest/Wand/Leer auswählen\",IF(ISBLANK(G310),\"Lagertyp auswählen\",IF(NOT(COUNTIF(Parameter!$C$4:$L$4,G310)),\"Bitte geben Sie einen korrekten Lagertyp ein \",IF(ISBLANK(H310),\"Form auswählen\",IF(NOT(COUNTIF(Parameter!$C$5:$F$5,H310)),\"Bitte geben Sie eine korrekte Form ein \",IF(ISBLANK(I310),\"Trittschallminderung auswählen\",IF(NOT(COUNTIF(Parameter!$E$6,I310)),\"Bitte geben Sie eine korrekte Trittschallminderung ein\",IF(AND(H310=\"F\",ISBLANK(J310)),\"Mass A eingeben in mm\",IF(AND(H310=\"L\",OR(ISBLANK(J310),ISBLANK(K310))),\"Mass A und B eingeben in mm\",IF(AND(OR(H310=\"Z\",H310=\"U\"),OR(ISBLANK(J310),ISBLANK(K310),ISBLANK(L310))),\"Mass A, B und C eingeben in mm\",IF(AND(H310=\"F\",OR(NOT(ISBLANK(K310)),NOT(ISBLANK(L310)))),\"Nur A eingeben bei F Form, bitte Abmessungen B und C löschen\",IF(AND(H310=\"L\",NOT(ISBLANK(L310))),\"Nur A und B eingeben bei L Form, bitte Abmessung C löschen\",IF(OR(AND(OR(Parameter!$D$7>J310,J310>Parameter!$F$7),OR(H310=\"F\",H310=\"U\")),AND(OR(Parameter!$H$7>J310,J310>Parameter!$J$7),OR(H310=\"L\",H310=\"Z\"))),\"Bitte korrigiere die Abmessung A\",IF(AND(OR(Parameter!$D$8>K310,K310>Parameter!$F$8),OR(H310=\"L\",H310=\"Z\",H310=\"U\")),\"Bitte korrigiere die Abmessung B\",IF(AND(OR(Parameter!$D$9>L310,L310>Parameter!$F$9),OR(H310=\"Z\",H310=\"U\")),\"Bitte korrigiere die Abmessung C\",IF(ISBLANK(M310),\"Länge eingeben in mm\",IF(OR(Parameter!$D$10>M310,M310>Parameter!$F$10),\"Bitte korrigiere die Länge\",IF(ISBLANK(N310),\"Menge eingeben\",IF(NOT(ISNUMBER(N310)),\"Bitte korrigiere die Menge\",\"OK\")))))))))))))))))))))","v":""},0,"",null,null,null,null,null,null,null,null,null,null,"",null,"",null,""]
["26)  ISOTREPP 36 dB",{"$f":"IF(LEN(D311)=0,IF(NOT(B310=\"OK\"),IF(SUMPRODUCT(--(D310:N310<>\"\"))=0,IF(AND(NOT(SUMPRODUCT(--(E311:N311<>\"\"))=0),D310=\"\"),\"Bitte keine Leerzeilen\",\"\"),IF(NOT(SUMPRODUCT(--(E311:N311<>\"\"))=0),\"Bitte korrigiere zuerst die vorherige Zeile\",\"\")),\"\"),IF(LEN(E311)>Parameter!$C$2,\"Beschreibung zu lang, bitte die Beschreibung kürzen\",IF(NOT(COUNTIF(Parameter!$C$3:$G$3,F311)),\"Beschreibung (optional) eingeben und Antritt/Austritt/Podest/Wand/Leer auswählen\",IF(ISBLANK(G311),\"Lagertyp auswählen\",IF(NOT(COUNTIF(Parameter!$C$4:$L$4,G311)),\"Bitte geben Sie einen korrekten Lagertyp ein \",IF(ISBLANK(H311),\"Form auswählen\",IF(NOT(COUNTIF(Parameter!$C$5:$F$5,H311)),\"Bitte geben Sie eine korrekte Form ein \",IF(ISBLANK(I311),\"Trittschallminderung auswählen\",IF(NOT(COUNTIF(Parameter!$E$6,I311)),\"Bitte geben Sie eine korrekte Trittschallminderung ein\",IF(AND(H311=\"F\",ISBLANK(J311)),\"Mass A eingeben in mm\",IF(AND(H311=\"L\",OR(ISBLANK(J311),ISBLANK(K311))),\"Mass A und B eingeben in mm\",IF(AND(OR(H311=\"Z\",H311=\"U\"),OR(ISBLANK(J311),ISBLANK(K311),ISBLANK(L311))),\"Mass A, B und C eingeben in mm\",IF(AND(H311=\"F\",OR(NOT(ISBLANK(K311)),NOT(ISBLANK(L311)))),\"Nur A eingeben bei F Form, bitte Abmessungen B und C löschen\",IF(AND(H311=\"L\",NOT(ISBLANK(L311))),\"Nur A und B eingeben bei L Form, bitte Abmessung C löschen\",IF(OR(AND(OR(Parameter!$D$7>J311,J311>Parameter!$F$7),OR(H311=\"F\",H311=\"U\")),AND(OR(Parameter!$H$7>J311,J311>Parameter!$J$7),OR(H311=\"L\",H311=\"Z\"))),\"Bitte korrigiere die Abmessung A\",IF(AND(OR(Parameter!$D$8>K311,K311>Parameter!$F$8),OR(H311=\"L\",H311=\"Z\",H311=\"U\")),\"Bitte korrigiere die Abmessung B\",IF(AND(OR(Parameter!$D$9>L311,L311>Parameter!$F$9),OR(H311=\"Z\",H311=\"U\")),\"Bitte korrigiere die Abmessung C\",IF(ISBLANK(M311),\"Länge eingeben in mm\",IF(OR(Parameter!$D$10>M311,M311>Parameter!$F$10),\"Bitte korrigiere die Länge\",IF(ISBLANK(N311),\"Menge eingeben\",IF(NOT(ISNUMBER(N311)),\"Bitte korrigiere die Menge\",\"OK\")))))))))))))))))))))","v":""},0,"",null,null,null,null,null,null,null,null,null,null,"",null,"",null,""]
["26)  ISOTREPP 36 dB",{"$f":"IF(LEN(D312)=0,IF(NOT(B311=\"OK\"),IF(SUMPRODUCT(--(D311:N311<>\"\"))=0,IF(AND(NOT(SUMPRODUCT(--(E312:N312<>\"\"))=0),D311=\"\"),\"Bitte keine Leerzeilen\",\"\"),IF(NOT(SUMPRODUCT(--(E312:N312<>\"\"))=0),\"Bitte korrigiere zuerst die vorherige Zeile\",\"\")),\"\"),IF(LEN(E312)>Parameter!$C$2,\"Beschreibung zu lang, bitte die Beschreibung kürzen\",IF(NOT(COUNTIF(Parameter!$C$3:$G$3,F312)),\"Beschreibung (optional) eingeben und Antritt/Austritt/Podest/Wand/Leer auswählen\",IF(ISBLANK(G312),\"Lagertyp auswählen\",IF(NOT(COUNTIF(Parameter!$C$4:$L$4,G312)),\"Bitte geben Sie einen korrekten Lagertyp ein \",IF(ISBLANK(H312),\"Form auswählen\",IF(NOT(COUNTIF(Parameter!$C$5:$F$5,H312)),\"Bitte geben Sie eine korrekte Form ein \",IF(ISBLANK(I312),\"Trittschallminderung auswählen\",IF(NOT(COUNTIF(Parameter!$E$6,I312)),\"Bitte geben Sie eine korrekte Trittschallminderung ein\",IF(AND(H312=\"F\",ISBLANK(J312)),\"Mass A eingeben in mm\",IF(AND(H312=\"L\",OR(ISBLANK(J312),ISBLANK(K312))),\"Mass A und B eingeben in mm\",IF(AND(OR(H312=\"Z\",H312=\"U\"),OR(ISBLANK(J312),ISBLANK(K312),ISBLANK(L312))),\"Mass A, B und C eingeben in mm\",IF(AND(H312=\"F\",OR(NOT(ISBLANK(K312)),NOT(ISBLANK(L312)))),\"Nur A eingeben bei F Form, bitte Abmessungen B und C löschen\",IF(AND(H312=\"L\",NOT(ISBLANK(L312))),\"Nur A und B eingeben bei L Form, bitte Abmessung C löschen\",IF(OR(AND(OR(Parameter!$D$7>J312,J312>Parameter!$F$7),OR(H312=\"F\",H312=\"U\")),AND(OR(Parameter!$H$7>J312,J312>Parameter!$J$7),OR(H312=\"L\",H312=\"Z\"))),\"Bitte korrigiere die Abmessung A\",IF(AND(OR(Parameter!$D$8>K312,K312>Parameter!$F$8),OR(H312=\"L\",H312=\"Z\",H312=\"U\")),\"Bitte korrigiere die Abmessung B\",IF(AND(OR(Parameter!$D$9>L312,L312>Parameter!$F$9),OR(H312=\"Z\",H312=\"U\")),\"Bitte korrigiere die Abmessung C\",IF(ISBLANK(M312),\"Länge eingeben in mm\",IF(OR(Parameter!$D$10>M312,M312>Parameter!$F$10),\"Bitte korrigiere die Länge\",IF(ISBLANK(N312),\"Menge eingeben\",IF(NOT(ISNUMBER(N312)),\"Bitte korrigiere die Menge\",\"OK\")))))))))))))))))))))","v":""},0,"",null,null,null,null,null,null,null,null,null,null,"",null,"",null,""]
["26)  ISOTREPP 36 dB",{"$f":"IF(LEN(D313)=0,IF(NOT(B312=\"OK\"),IF(SUMPRODUCT(--(D312:N312<>\"\"))=0,IF(AND(NOT(SUMPRODUCT(--(E313:N313<>\"\"))=0),D312=\"\"),\"Bitte keine Leerzeilen\",\"\"),IF(NOT(SUMPRODUCT(--(E313:N313<>\"\"))=0),\"Bitte korrigiere zuerst die vorherige Zeile\",\"\")),\"\"),IF(LEN(E313)>Parameter!$C$2,\"Beschreibung zu lang, bitte die Beschreibung kürzen\",IF(NOT(COUNTIF(Parameter!$C$3:$G$3,F313)),\"Beschreibung (optional) eingeben und Antritt/Austritt/Podest/Wand/Leer auswählen\",IF(ISBLANK(G313),\"Lagertyp auswählen\",IF(NOT(COUNTIF(Parameter!$C$4:$L$4,G313)),\"Bitte geben Sie einen korrekten Lagertyp ein \",IF(ISBLANK(H313),\"Form auswählen\",IF(NOT(COUNTIF(Parameter!$C$5:$F$5,H313)),\"Bitte geben Sie eine korrekte Form ein \",IF(ISBLANK(I313),\"Trittschallminderung auswählen\",IF(NOT(COUNTIF(Parameter!$E$6,I313)),\"Bitte geben Sie eine korrekte Trittschallminderung ein\",IF(AND(H313=\"F\",ISBLANK(J313)),\"Mass A eingeben in mm\",IF(AND(H313=\"L\",OR(ISBLANK(J313),ISBLANK(K313))),\"Mass A und B eingeben in mm\",IF(AND(OR(H313=\"Z\",H313=\"U\"),OR(ISBLANK(J313),ISBLANK(K313),ISBLANK(L313))),\"Mass A, B und C eingeben in mm\",IF(AND(H313=\"F\",OR(NOT(ISBLANK(K313)),NOT(ISBLANK(L313)))),\"Nur A eingeben bei F Form, bitte Abmessungen B und C löschen\",IF(AND(H313=\"L\",NOT(ISBLANK(L313))),\"Nur A und B eingeben bei L Form, bitte Abmessung C löschen\",IF(OR(AND(OR(Parameter!$D$7>J313,J313>Parameter!$F$7),OR(H313=\"F\",H313=\"U\")),AND(OR(Parameter!$H$7>J313,J313>Parameter!$J$7),OR(H313=\"L\",H313=\"Z\"))),\"Bitte korrigiere die Abmessung A\",IF(AND(OR(Parameter!$D$8>K313,K313>Parameter!$F$8),OR(H313=\"L\",H313=\"Z\",H313=\"U\")),\"Bitte korrigiere die Abmessung B\",IF(AND(OR(Parameter!$D$9>L313,L313>Parameter!$F$9),OR(H313=\"Z\",H313=\"U\")),\"Bitte korrigiere die Abmessung C\",IF(ISBLANK(M313),\"Länge eingeben in mm\",IF(OR(Parameter!$D$10>M313,M313>Parameter!$F$10),\"Bitte korrigiere die Länge\",IF(ISBLANK(N313),\"Menge eingeben\",IF(NOT(ISNUMBER(N313)),\"Bitte korrigiere die Menge\",\"OK\")))))))))))))))))))))","v":""},0,"",null,null,null,null,null,null,null,null,null,null,"",null,"",null,""]
["26)  ISOTREPP 36 dB",{"$f":"IF(LEN(D314)=0,IF(NOT(B313=\"OK\"),IF(SUMPRODUCT(--(D313:N313<>\"\"))=0,IF(AND(NOT(SUMPRODUCT(--(E314:N314<>\"\"))=0),D313=\"\"),\"Bitte keine Leerzeilen\",\"\"),IF(NOT(SUMPRODUCT(--(E314:N314<>\"\"))=0),\"Bitte korrigiere zuerst die vorherige Zeile\",\"\")),\"\"),IF(LEN(E314)>Parameter!$C$2,\"Beschreibung zu lang, bitte die Beschreibung kürzen\",IF(NOT(COUNTIF(Parameter!$C$3:$G$3,F314)),\"Beschreibung (optional) eingeben und Antritt/Austritt/Podest/Wand/Leer auswählen\",IF(ISBLANK(G314),\"Lagertyp auswählen\",IF(NOT(COUNTIF(Parameter!$C$4:$L$4,G314)),\"Bitte geben Sie einen korrekten Lagertyp ein \",IF(ISBLANK(H314),\"Form auswählen\",IF(NOT(COUNTIF(Parameter!$C$5:$F$5,H314)),\"Bitte geben Sie eine korrekte Form ein \",IF(ISBLANK(I314),\"Trittschallminderung auswählen\",IF(NOT(COUNTIF(Parameter!$E$6,I314)),\"Bitte geben Sie eine korrekte Trittschallminderung ein\",IF(AND(H314=\"F\",ISBLANK(J314)),\"Mass A eingeben in mm\",IF(AND(H314=\"L\",OR(ISBLANK(J314),ISBLANK(K314))),\"Mass A und B eingeben in mm\",IF(AND(OR(H314=\"Z\",H314=\"U\"),OR(ISBLANK(J314),ISBLANK(K314),ISBLANK(L314))),\"Mass A, B und C eingeben in mm\",IF(AND(H314=\"F\",OR(NOT(ISBLANK(K314)),NOT(ISBLANK(L314)))),\"Nur A eingeben bei F Form, bitte Abmessungen B und C löschen\",IF(AND(H314=\"L\",NOT(ISBLANK(L314))),\"Nur A und B eingeben bei L Form, bitte Abmessung C löschen\",IF(OR(AND(OR(Parameter!$D$7>J314,J314>Parameter!$F$7),OR(H314=\"F\",H314=\"U\")),AND(OR(Parameter!$H$7>J314,J314>Parameter!$J$7),OR(H314=\"L\",H314=\"Z\"))),\"Bitte korrigiere die Abmessung A\",IF(AND(OR(Parameter!$D$8>K314,K314>Parameter!$F$8),OR(H314=\"L\",H314=\"Z\",H314=\"U\")),\"Bitte korrigiere die Abmessung B\",IF(AND(OR(Parameter!$D$9>L314,L314>Parameter!$F$9),OR(H314=\"Z\",H314=\"U\")),\"Bitte korrigiere die Abmessung C\",IF(ISBLANK(M314),\"Länge eingeben in mm\",IF(OR(Parameter!$D$10>M314,M314>Parameter!$F$10),\"Bitte korrigiere die Länge\",IF(ISBLANK(N314),\"Menge eingeben\",IF(NOT(ISNUMBER(N314)),\"Bitte korrigiere die Menge\",\"OK\")))))))))))))))))))))","v":""},0,"",null,null,null,null,null,null,null,null,null,null,"",null,"",null,""]
["26)  ISOTREPP 36 dB",{"$f":"IF(B314=\"OK\",\"Falls Sie weitere Treppenlagern bestellen wollen, erstelle ein zweites Excel und sende diese mit.\",\"\")","v":""},null,null,null,null,null,null,null,null,"Total Treppenlager",null,null,{"$f":"SUM(N280:N314)","v":0}]
["26)  ISOTREPP 36 dB"]

{"sheet":"Parameter","index":1,"n_rows":15,"n_cols":13,"rows_kept":15,"cut":false,"hidden":true,"merged":[]}
[]
[null,"Max. Zeichen bei Beschreibung:",25]
[null,"Antritt/Antritt","Antritt","Austritt","Podest","Wand"," "]
[null,"Lagertyp",1500,2000,3000,4000,5000,6000,8000,10000,12000,14000,16000]
[null,"Form","F","L","Z","U"]
[null,"Trittschallminderung",28,32,36]
[null,"A","F/U-Min:",70,"F/U-Max:",2000,"L/Z-Min:",70,"L/Z-Max:",600]
[null,"B","Min:",30,"Max:",600]
[null,"C","Min:",30,"Max:",600]
[null,"Länge","Min:",600,"Max:",1500]
[]
[]
[]
[null,"Max. Zeichen bei Bauobjekt",35]
[null,"Max. Zeichen bei Firmenname",20]